Body Name,Date Paid,Transaction Number,Amount,Supplier Name,Supplier Type,Expense Area,Cost Centre Description,Expense Type
Cambridgeshire County Council,04-Jan-17,22240269-14603898,-45879.88,Kisimul School,Care Establishment,S&C,Placements - Education,Independent School Placements
Cambridgeshire County Council,12-Jan-17,22383282-14652570,-16949.34,Civica Uk Ltd,Trade Supplier,LGSS,3rd Party Contracts,Computer hardware - maintenance
Cambridgeshire County Council,24-Jan-17,21181427-14717454,-15045.43,Wings Education Ltd,Trade Supplier,S&C,Placements - Social Care,Agency Placements - Out County
Cambridgeshire County Council,19-Jan-17,21548616-14692798,-6666.67,Gretton School,Education,S&C,Placements - Education,Independent School Placements
Cambridgeshire County Council,04-Jan-17,22244298-14603900,-6236.25,Kisimul School,Care Establishment,S&C,Placements - Education,Independent School Placements
Cambridgeshire County Council,05-Jan-17,22173557-14618266,-5936.92,First Eastern Counties Buses Ltd,Trade Supplier,Passenger Transport,Concessionary Fares,Concessions - payments to bus operator
Cambridgeshire County Council,23-Jan-17,21806029-14711509,-5487,Youth Justice Board,Other Public Bodies,E&P,YOT - Remand,Serious Offenders
Cambridgeshire County Council,05-Jan-17,22274776-14612436,-4655,Brookdale Healthcare Limited,Care Establishment,2 - Operations - Learning Disability,LDP Hunts special needs,Respite Independent Sector
Cambridgeshire County Council,05-Jan-17,22336836-14612438,-4655,Brookdale Healthcare Limited,Care Establishment,2 - Operations - Learning Disability,LDP Hunts special needs,Respite Independent Sector
Cambridgeshire County Council,05-Jan-17,22336837-14612439,-4655,Brookdale Healthcare Limited,Care Establishment,2 - Operations - Learning Disability,LDP Hunts special needs,Respite Independent Sector
Cambridgeshire County Council,05-Jan-17,22336841-14612443,-4655,Brookdale Healthcare Limited,Care Establishment,2 - Operations - Learning Disability,LDP Huntingdonshire Locality - Care,Respite Independent Sector
Cambridgeshire County Council,05-Jan-17,22336843-14612445,-4655,Brookdale Healthcare Limited,Care Establishment,2 - Operations - Learning Disability,LDP Huntingdonshire Locality - Care,Respite Independent Sector
Cambridgeshire County Council,05-Jan-17,22336823-14612449,-4655,Brookdale Healthcare Limited,Care Establishment,2 - Operations - Learning Disability,LDP Hunts special needs,Respite Independent Sector
Cambridgeshire County Council,05-Jan-17,22336828-14612454,-4655,Brookdale Healthcare Limited,Care Establishment,2 - Operations - Learning Disability,LDP Huntingdonshire Locality - Care,Respite Independent Sector
Cambridgeshire County Council,05-Jan-17,22336829-14612455,-4655,Brookdale Healthcare Limited,Care Establishment,2 - Operations - Learning Disability,LDP Huntingdonshire Locality - Care,Respite Independent Sector
Cambridgeshire County Council,05-Jan-17,22336830-14612456,-4655,Brookdale Healthcare Limited,Care Establishment,2 - Operations - Learning Disability,LDP Huntingdonshire Locality - Care,Respite Independent Sector
Cambridgeshire County Council,05-Jan-17,22336834-14612460,-4655,Brookdale Healthcare Limited,Care Establishment,2 - Operations - Learning Disability,LDP Huntingdonshire Locality - Care,Respite Independent Sector
Cambridgeshire County Council,05-Jan-17,22309008-14612397,-4655,Brookdale Healthcare Limited,Care Establishment,2 - Operations - Learning Disability,LDP Hunts special needs,Respite Independent Sector
Cambridgeshire County Council,05-Jan-17,22309011-14612399,-4655,Brookdale Healthcare Limited,Care Establishment,2 - Operations - Learning Disability,LDP Huntingdonshire Locality - Care,Respite Independent Sector
Cambridgeshire County Council,05-Jan-17,22309015-14612402,-4655,Brookdale Healthcare Limited,Care Establishment,2 - Operations - Learning Disability,LDP Hunts special needs,Respite Independent Sector
Cambridgeshire County Council,05-Jan-17,22309018-14612405,-4655,Brookdale Healthcare Limited,Care Establishment,2 - Operations - Learning Disability,LDP Huntingdonshire Locality - Care,Respite Independent Sector
Cambridgeshire County Council,05-Jan-17,22309019-14612406,-4655,Brookdale Healthcare Limited,Care Establishment,2 - Operations - Learning Disability,LDP Huntingdonshire Locality - Care,Respite Independent Sector
Cambridgeshire County Council,05-Jan-17,22309020-14612407,-4655,Brookdale Healthcare Limited,Care Establishment,2 - Operations - Learning Disability,LDP Huntingdonshire Locality - Care,Respite Independent Sector
Cambridgeshire County Council,05-Jan-17,22309021-14612408,-4655,Brookdale Healthcare Limited,Care Establishment,2 - Operations - Learning Disability,LDP Huntingdonshire Locality - Care,Respite Independent Sector
Cambridgeshire County Council,05-Jan-17,22309023-14612410,-4655,Brookdale Healthcare Limited,Care Establishment,2 - Operations - Learning Disability,LDP Hunts special needs,Respite Independent Sector
Cambridgeshire County Council,05-Jan-17,22309025-14612412,-4655,Brookdale Healthcare Limited,Care Establishment,2 - Operations - Learning Disability,LDP Huntingdonshire Locality - Care,Respite Independent Sector
Cambridgeshire County Council,05-Jan-17,22274757-14612417,-4655,Brookdale Healthcare Limited,Care Establishment,2 - Operations - Learning Disability,LDP Hunts special needs,Respite Independent Sector
Cambridgeshire County Council,05-Jan-17,22274759-14612419,-4655,Brookdale Healthcare Limited,Care Establishment,2 - Operations - Learning Disability,LDP Hunts special needs,Respite Independent Sector
Cambridgeshire County Council,05-Jan-17,22274761-14612421,-4655,Brookdale Healthcare Limited,Care Establishment,2 - Operations - Learning Disability,LDP Hunts special needs,Respite Independent Sector
Cambridgeshire County Council,05-Jan-17,22274764-14612424,-4655,Brookdale Healthcare Limited,Care Establishment,2 - Operations - Learning Disability,LDP Hunts special needs,Respite Independent Sector
Cambridgeshire County Council,05-Jan-17,22274765-14612425,-4655,Brookdale Healthcare Limited,Care Establishment,2 - Operations - Learning Disability,LDP Hunts special needs,Respite Independent Sector
Cambridgeshire County Council,05-Jan-17,22274766-14612426,-4655,Brookdale Healthcare Limited,Care Establishment,2 - Operations - Learning Disability,LDP Huntingdonshire Locality - Care,Respite Independent Sector
Cambridgeshire County Council,05-Jan-17,22274767-14612427,-4655,Brookdale Healthcare Limited,Care Establishment,2 - Operations - Learning Disability,LDP Huntingdonshire Locality - Care,Respite Independent Sector
Cambridgeshire County Council,05-Jan-17,22274772-14612432,-4655,Brookdale Healthcare Limited,Care Establishment,2 - Operations - Learning Disability,LDP Huntingdonshire Locality - Care,Respite Independent Sector
Cambridgeshire County Council,13-Jan-17,22396767-14662509,-4655,Brookdale Healthcare Limited,Care Establishment,2 - Operations - Learning Disability,LDP Huntingdonshire Locality - Care,Respite Independent Sector
Cambridgeshire County Council,13-Jan-17,22396768-14662510,-4655,Brookdale Healthcare Limited,Care Establishment,2 - Operations - Learning Disability,LDP Hunts special needs,Respite Independent Sector
Cambridgeshire County Council,13-Jan-17,22396771-14662512,-4655,Brookdale Healthcare Limited,Care Establishment,2 - Operations - Learning Disability,LDP Huntingdonshire Locality - Care,Respite Independent Sector
Cambridgeshire County Council,13-Jan-17,22396773-14662514,-4655,Brookdale Healthcare Limited,Care Establishment,2 - Operations - Learning Disability,LDP Huntingdonshire Locality - Care,Respite Independent Sector
Cambridgeshire County Council,13-Jan-17,22396778-14662517,-4655,Brookdale Healthcare Limited,Care Establishment,2 - Operations - Learning Disability,LDP Hunts special needs,Respite Independent Sector
Cambridgeshire County Council,13-Jan-17,22396780-14662519,-4655,Brookdale Healthcare Limited,Care Establishment,2 - Operations - Learning Disability,LDP Hunts special needs,Respite Independent Sector
Cambridgeshire County Council,13-Jan-17,22393302-14662526,-4655,Brookdale Healthcare Limited,Care Establishment,2 - Operations - Learning Disability,LDP Hunts special needs,Respite Independent Sector
Cambridgeshire County Council,13-Jan-17,22393295-14662528,-4655,Brookdale Healthcare Limited,Care Establishment,2 - Operations - Learning Disability,LDP Hunts special needs,Respite Independent Sector
Cambridgeshire County Council,13-Jan-17,22393300-14662532,-4655,Brookdale Healthcare Limited,Care Establishment,2 - Operations - Learning Disability,LDP Hunts special needs,Respite Independent Sector
Cambridgeshire County Council,12-Jan-17,22383272-14652568,-4237.33,Civica Uk Ltd,Trade Supplier,LGSS,3rd Party Contracts,Computer hardware - maintenance
Cambridgeshire County Council,30-Jan-17,22463017-14738716,-4200.34,Guidant Group,Trade Supplier,1- Commissioning - Service Director,Mental Health Seconded Staff,Pay - Agency Staff
Cambridgeshire County Council,10-Jan-17,22360914-14640463,-3333,The Mary Hare Primary School,Education,S&C,Placements - Education,Independent School Placements
Cambridgeshire County Council,10-Jan-17,21403058-14640464,-3333,The Mary Hare Primary School,Education,S&C,Placements - Education,Independent School Placements
Cambridgeshire County Council,05-Jan-17,22274774-14612434,-3325,Brookdale Healthcare Limited,Care Establishment,2 - Operations - Learning Disability,LDP Hunts special needs,Respite Independent Sector
Cambridgeshire County Council,05-Jan-17,22336827-14612453,-3325,Brookdale Healthcare Limited,Care Establishment,2 - Operations - Learning Disability,LDP Hunts special needs,Respite Independent Sector
Cambridgeshire County Council,05-Jan-17,22309028-14612413,-3325,Brookdale Healthcare Limited,Care Establishment,2 - Operations - Learning Disability,LDP Huntingdonshire Locality - Care,Respite Independent Sector
Cambridgeshire County Council,13-Jan-17,22396776-14662516,-3325,Brookdale Healthcare Limited,Care Establishment,2 - Operations - Learning Disability,LDP Hunts special needs,Respite Independent Sector
Cambridgeshire County Council,13-Jan-17,22396733-14668309,-3186.63,Conquest Care Homes Peterborough,Care Establishment,3 - Operations - Countywide Services,LDP Young Adults - Care,Residential Independent Sector
Cambridgeshire County Council,13-Jan-17,22396735-14668310,-3186.63,Conquest Care Homes Peterborough,Care Establishment,3 - Operations - Countywide Services,LDP Young Adults - Care,Residential Independent Sector
Cambridgeshire County Council,13-Jan-17,22396736-14668311,-3186.63,Conquest Care Homes Peterborough,Care Establishment,3 - Operations - Countywide Services,LDP Young Adults - Care,Residential Independent Sector
Cambridgeshire County Council,13-Jan-17,22396742-14668313,-3186.63,Conquest Care Homes Peterborough,Care Establishment,3 - Operations - Countywide Services,LDP Young Adults - Care,Residential Independent Sector
Cambridgeshire County Council,13-Jan-17,22396749-14668317,-3186.63,Conquest Care Homes Peterborough,Care Establishment,3 - Operations - Countywide Services,LDP Young Adults - Care,Residential Independent Sector
Cambridgeshire County Council,13-Jan-17,22396753-14668318,-3186.63,Conquest Care Homes Peterborough,Care Establishment,3 - Operations - Countywide Services,LDP Young Adults - Care,Residential Independent Sector
Cambridgeshire County Council,05-Jan-17,21323806-14632572,-3040,Orchard Manor (Scope),Care Establishment,2 - Operations - Learning Disability,LDP South Cambs Locality - Care,Residential Independent Sector
Cambridgeshire County Council,05-Jan-17,21323808-14632574,-3040,Orchard Manor (Scope),Care Establishment,2 - Operations - Learning Disability,LDP South Cambs Locality - Care,Residential Independent Sector
Cambridgeshire County Council,05-Jan-17,21323812-14632578,-3040,Orchard Manor (Scope),Care Establishment,2 - Operations - Learning Disability,LDP South Cambs Locality - Care,Residential Independent Sector
Cambridgeshire County Council,05-Jan-17,21323813-14632579,-3040,Orchard Manor (Scope),Care Establishment,2 - Operations - Learning Disability,LDP South Cambs Locality - Care,Residential Independent Sector
Cambridgeshire County Council,05-Jan-17,21323815-14632581,-3040,Orchard Manor (Scope),Care Establishment,2 - Operations - Learning Disability,LDP South Cambs Locality - Care,Residential Independent Sector
Cambridgeshire County Council,05-Jan-17,21323816-14632582,-3040,Orchard Manor (Scope),Care Establishment,2 - Operations - Learning Disability,LDP South Cambs Locality - Care,Residential Independent Sector
Cambridgeshire County Council,05-Jan-17,21323818-14632584,-3040,Orchard Manor (Scope),Care Establishment,2 - Operations - Learning Disability,LDP South Cambs Locality - Care,Residential Independent Sector
Cambridgeshire County Council,05-Jan-17,21323819-14632585,-3040,Orchard Manor (Scope),Care Establishment,2 - Operations - Learning Disability,LDP South Cambs Locality - Care,Residential Independent Sector
Cambridgeshire County Council,05-Jan-17,21323821-14632587,-3040,Orchard Manor (Scope),Care Establishment,2 - Operations - Learning Disability,LDP South Cambs Locality - Care,Residential Independent Sector
Cambridgeshire County Council,05-Jan-17,21323823-14632589,-3040,Orchard Manor (Scope),Care Establishment,2 - Operations - Learning Disability,LDP South Cambs Locality - Care,Residential Independent Sector
Cambridgeshire County Council,05-Jan-17,21323824-14632590,-3040,Orchard Manor (Scope),Care Establishment,2 - Operations - Learning Disability,LDP South Cambs Locality - Care,Residential Independent Sector
Cambridgeshire County Council,05-Jan-17,21323829-14632595,-3040,Orchard Manor (Scope),Care Establishment,2 - Operations - Learning Disability,LDP South Cambs Locality - Care,Residential Independent Sector
Cambridgeshire County Council,05-Jan-17,21323833-14632599,-3040,Orchard Manor (Scope),Care Establishment,2 - Operations - Learning Disability,LDP South Cambs Locality - Care,Residential Independent Sector
Cambridgeshire County Council,05-Jan-17,21323836-14632602,-3040,Orchard Manor (Scope),Care Establishment,2 - Operations - Learning Disability,LDP South Cambs Locality - Care,Residential Independent Sector
Cambridgeshire County Council,05-Jan-17,21323837-14632603,-3040,Orchard Manor (Scope),Care Establishment,2 - Operations - Learning Disability,LDP South Cambs Locality - Care,Residential Independent Sector
Cambridgeshire County Council,05-Jan-17,21323838-14632604,-3040,Orchard Manor (Scope),Care Establishment,2 - Operations - Learning Disability,LDP South Cambs Locality - Care,Residential Independent Sector
Cambridgeshire County Council,18-Jan-17,22376421-14685718,-2416.82,Fosterplus Ltd,Care Establishment,S&C,Placements - Social Care,Agency Placements - Out County
Cambridgeshire County Council,05-Jan-17,22250022-14611069,-2337.29,Dimensions (Uk) Ltd,Care Establishment,2 - Operations - Learning Disability,LDP Cambs City - Special Needs,Supported Living
Cambridgeshire County Council,05-Jan-17,22250573-14611072,-2337.29,Dimensions (Uk) Ltd,Care Establishment,2 - Operations - Learning Disability,LDP South Cambs - Special Needs,Supported Living
Cambridgeshire County Council,05-Jan-17,22250575-14611074,-2337.29,Dimensions (Uk) Ltd,Care Establishment,2 - Operations - Learning Disability,LDP Cambs City - Special Needs,Supported Living
Cambridgeshire County Council,05-Jan-17,22250578-14611077,-2337.29,Dimensions (Uk) Ltd,Care Establishment,2 - Operations - Learning Disability,LDP South Cambs - Special Needs,Supported Living
Cambridgeshire County Council,05-Jan-17,22250581-14611080,-2337.29,Dimensions (Uk) Ltd,Care Establishment,2 - Operations - Learning Disability,LDP Cambs City - Special Needs,Supported Living
Cambridgeshire County Council,05-Jan-17,22250582-14611081,-2337.29,Dimensions (Uk) Ltd,Care Establishment,2 - Operations - Learning Disability,LDP South Cambs - Special Needs,Supported Living
Cambridgeshire County Council,05-Jan-17,22250584-14611083,-2337.29,Dimensions (Uk) Ltd,Care Establishment,2 - Operations - Learning Disability,LDP South Cambs - Special Needs,Supported Living
Cambridgeshire County Council,05-Jan-17,22250585-14611084,-2337.29,Dimensions (Uk) Ltd,Care Establishment,2 - Operations - Learning Disability,LDP Cambs City - Special Needs,Supported Living
Cambridgeshire County Council,05-Jan-17,22326447-14611154,-2337.29,Dimensions (Uk) Ltd,Care Establishment,2 - Operations - Learning Disability,LDP Cambs City - Special Needs,Supported Living
Cambridgeshire County Council,05-Jan-17,22326449-14611156,-2337.29,Dimensions (Uk) Ltd,Care Establishment,2 - Operations - Learning Disability,LDP Cambs City - Special Needs,Supported Living
Cambridgeshire County Council,05-Jan-17,22326456-14611163,-2337.29,Dimensions (Uk) Ltd,Care Establishment,2 - Operations - Learning Disability,LDP Cambs City - Special Needs,Supported Living
Cambridgeshire County Council,05-Jan-17,22326457-14611164,-2337.29,Dimensions (Uk) Ltd,Care Establishment,2 - Operations - Learning Disability,LDP Cambs City - Special Needs,Supported Living
Cambridgeshire County Council,05-Jan-17,22326460-14611166,-2337.29,Dimensions (Uk) Ltd,Care Establishment,2 - Operations - Learning Disability,LDP Cambs City - Special Needs,Supported Living
Cambridgeshire County Council,05-Jan-17,22326461-14611167,-2337.29,Dimensions (Uk) Ltd,Care Establishment,2 - Operations - Learning Disability,LDP Cambs City - Special Needs,Supported Living
Cambridgeshire County Council,05-Jan-17,22326463-14611169,-2337.29,Dimensions (Uk) Ltd,Care Establishment,2 - Operations - Learning Disability,LDP South Cambs - Special Needs,Supported Living
Cambridgeshire County Council,05-Jan-17,22326468-14611174,-2337.29,Dimensions (Uk) Ltd,Care Establishment,2 - Operations - Learning Disability,LDP Cambs City - Special Needs,Supported Living
Cambridgeshire County Council,05-Jan-17,22310062-14611009,-2337.29,Dimensions (Uk) Ltd,Care Establishment,2 - Operations - Learning Disability,LDP Cambs City - Special Needs,Supported Living
Cambridgeshire County Council,05-Jan-17,22310063-14611010,-2337.29,Dimensions (Uk) Ltd,Care Establishment,2 - Operations - Learning Disability,LDP South Cambs - Special Needs,Supported Living
Cambridgeshire County Council,05-Jan-17,22310067-14611014,-2337.29,Dimensions (Uk) Ltd,Care Establishment,2 - Operations - Learning Disability,LDP Cambs City - Special Needs,Supported Living
Cambridgeshire County Council,05-Jan-17,22310070-14611017,-2337.29,Dimensions (Uk) Ltd,Care Establishment,2 - Operations - Learning Disability,LDP South Cambs - Special Needs,Supported Living
Cambridgeshire County Council,05-Jan-17,22310074-14611021,-2337.29,Dimensions (Uk) Ltd,Care Establishment,2 - Operations - Learning Disability,LDP South Cambs - Special Needs,Supported Living
Cambridgeshire County Council,05-Jan-17,22310076-14611023,-2337.29,Dimensions (Uk) Ltd,Care Establishment,2 - Operations - Learning Disability,LDP South Cambs - Special Needs,Supported Living
Cambridgeshire County Council,05-Jan-17,22310077-14611024,-2337.29,Dimensions (Uk) Ltd,Care Establishment,2 - Operations - Learning Disability,LDP Cambs City - Special Needs,Supported Living
Cambridgeshire County Council,05-Jan-17,22310078-14611025,-2337.29,Dimensions (Uk) Ltd,Care Establishment,2 - Operations - Learning Disability,LDP Cambs City - Special Needs,Supported Living
Cambridgeshire County Council,05-Jan-17,22279010-14611031,-2337.29,Dimensions (Uk) Ltd,Care Establishment,2 - Operations - Learning Disability,LDP Cambs City - Special Needs,Supported Living
Cambridgeshire County Council,05-Jan-17,22279012-14611033,-2337.29,Dimensions (Uk) Ltd,Care Establishment,2 - Operations - Learning Disability,LDP South Cambs - Special Needs,Supported Living
Cambridgeshire County Council,05-Jan-17,22279014-14611035,-2337.29,Dimensions (Uk) Ltd,Care Establishment,2 - Operations - Learning Disability,LDP Cambs City - Special Needs,Supported Living
Cambridgeshire County Council,05-Jan-17,22279015-14611036,-2337.29,Dimensions (Uk) Ltd,Care Establishment,2 - Operations - Learning Disability,LDP Cambs City - Special Needs,Supported Living
Cambridgeshire County Council,05-Jan-17,22279016-14611037,-2337.29,Dimensions (Uk) Ltd,Care Establishment,2 - Operations - Learning Disability,LDP South Cambs - Special Needs,Supported Living
Cambridgeshire County Council,05-Jan-17,22279018-14611039,-2337.29,Dimensions (Uk) Ltd,Care Establishment,2 - Operations - Learning Disability,LDP Cambs City - Special Needs,Supported Living
Cambridgeshire County Council,05-Jan-17,22279022-14611043,-2337.29,Dimensions (Uk) Ltd,Care Establishment,2 - Operations - Learning Disability,LDP South Cambs - Special Needs,Supported Living
Cambridgeshire County Council,05-Jan-17,22279023-14611044,-2337.29,Dimensions (Uk) Ltd,Care Establishment,2 - Operations - Learning Disability,LDP South Cambs - Special Needs,Supported Living
Cambridgeshire County Council,05-Jan-17,21323112-14632563,-2325.17,Orchard Manor (Scope),Care Establishment,2 - Operations - Learning Disability,LDP Huntingdonshire Locality - Care,Residential Independent Sector
Cambridgeshire County Council,05-Jan-17,21323113-14632564,-2325.17,Orchard Manor (Scope),Care Establishment,2 - Operations - Learning Disability,LDP Huntingdonshire Locality - Care,Residential Independent Sector
Cambridgeshire County Council,05-Jan-17,21323114-14632565,-2325.17,Orchard Manor (Scope),Care Establishment,2 - Operations - Learning Disability,LDP Huntingdonshire Locality - Care,Residential Independent Sector
Cambridgeshire County Council,05-Jan-17,21323115-14632566,-2325.17,Orchard Manor (Scope),Care Establishment,2 - Operations - Learning Disability,LDP Huntingdonshire Locality - Care,Residential Independent Sector
Cambridgeshire County Council,05-Jan-17,21323116-14632567,-2325.17,Orchard Manor (Scope),Care Establishment,2 - Operations - Learning Disability,LDP Huntingdonshire Locality - Care,Residential Independent Sector
Cambridgeshire County Council,05-Jan-17,21323087-14632629,-2325.17,Orchard Manor (Scope),Care Establishment,2 - Operations - Learning Disability,LDP Huntingdonshire Locality - Care,Residential Independent Sector
Cambridgeshire County Council,05-Jan-17,21323092-14632634,-2325.17,Orchard Manor (Scope),Care Establishment,2 - Operations - Learning Disability,LDP Huntingdonshire Locality - Care,Residential Independent Sector
Cambridgeshire County Council,05-Jan-17,21323093-14632635,-2325.17,Orchard Manor (Scope),Care Establishment,2 - Operations - Learning Disability,LDP Huntingdonshire Locality - Care,Residential Independent Sector
Cambridgeshire County Council,05-Jan-17,21323094-14632636,-2325.17,Orchard Manor (Scope),Care Establishment,2 - Operations - Learning Disability,LDP Huntingdonshire Locality - Care,Residential Independent Sector
Cambridgeshire County Council,05-Jan-17,21323095-14632637,-2325.17,Orchard Manor (Scope),Care Establishment,2 - Operations - Learning Disability,LDP Huntingdonshire Locality - Care,Residential Independent Sector
Cambridgeshire County Council,05-Jan-17,21323097-14632639,-2325.17,Orchard Manor (Scope),Care Establishment,2 - Operations - Learning Disability,LDP Huntingdonshire Locality - Care,Residential Independent Sector
Cambridgeshire County Council,05-Jan-17,21323098-14632640,-2325.17,Orchard Manor (Scope),Care Establishment,2 - Operations - Learning Disability,LDP Huntingdonshire Locality - Care,Residential Independent Sector
Cambridgeshire County Council,05-Jan-17,21323102-14632644,-2325.17,Orchard Manor (Scope),Care Establishment,2 - Operations - Learning Disability,LDP Huntingdonshire Locality - Care,Residential Independent Sector
Cambridgeshire County Council,05-Jan-17,21323103-14632645,-2325.17,Orchard Manor (Scope),Care Establishment,2 - Operations - Learning Disability,LDP Huntingdonshire Locality - Care,Residential Independent Sector
Cambridgeshire County Council,05-Jan-17,21323104-14632646,-2325.17,Orchard Manor (Scope),Care Establishment,2 - Operations - Learning Disability,LDP Huntingdonshire Locality - Care,Residential Independent Sector
Cambridgeshire County Council,05-Jan-17,21323105-14632647,-2325.17,Orchard Manor (Scope),Care Establishment,2 - Operations - Learning Disability,LDP Huntingdonshire Locality - Care,Residential Independent Sector
Cambridgeshire County Council,05-Jan-17,21323106-14632648,-2325.17,Orchard Manor (Scope),Care Establishment,2 - Operations - Learning Disability,LDP Huntingdonshire Locality - Care,Residential Independent Sector
Cambridgeshire County Council,31-Jan-17,22376418-14743534,-2297.96,Fosterplus Ltd,Care Establishment,S&C,Placements - Social Care,Agency Placements - Out County
Cambridgeshire County Council,09-Jan-17,22282232-14637445,-2150,Decker Bus,Trade Supplier,S&C,H to S Transport - Secondary,Home to School - Contract
Cambridgeshire County Council,17-Jan-17,22322460-14678933,-1923.42,Sixteen Plus,Care Establishment,S&C,Placements - Social Care,Agency Placements - In Cambs
Cambridgeshire County Council,05-Jan-17,22310142-14631865,-1800,Granta Housing- 71 /73 Fen Road,Care Establishment,2 - Operations - Learning Disability,LDP South Cambs - Special Needs,Nursing Independent Sector
Cambridgeshire County Council,05-Jan-17,22310146-14631869,-1800,Granta Housing- 71 /73 Fen Road,Care Establishment,2 - Operations - Learning Disability,LDP Cambs City - Special Needs,Nursing Independent Sector
Cambridgeshire County Council,05-Jan-17,22310148-14631871,-1800,Granta Housing- 71 /73 Fen Road,Care Establishment,2 - Operations - Learning Disability,LDP Cambs City - Special Needs,Nursing Independent Sector
Cambridgeshire County Council,05-Jan-17,22310153-14631876,-1800,Granta Housing- 71 /73 Fen Road,Care Establishment,2 - Operations - Learning Disability,LDP South Cambs - Special Needs,Nursing Independent Sector
Cambridgeshire County Council,05-Jan-17,22308600-14631879,-1800,Granta Housing- 71 /73 Fen Road,Care Establishment,2 - Operations - Learning Disability,LDP South Cambs - Special Needs,Nursing Independent Sector
Cambridgeshire County Council,05-Jan-17,22308601-14631880,-1800,Granta Housing- 71 /73 Fen Road,Care Establishment,2 - Operations - Learning Disability,LDP Cambs City - Special Needs,Nursing Independent Sector
Cambridgeshire County Council,05-Jan-17,22308602-14631881,-1800,Granta Housing- 71 /73 Fen Road,Care Establishment,2 - Operations - Learning Disability,LDP South Cambs - Special Needs,Nursing Independent Sector
Cambridgeshire County Council,05-Jan-17,22308603-14631882,-1800,Granta Housing- 71 /73 Fen Road,Care Establishment,2 - Operations - Learning Disability,LDP South Cambs - Special Needs,Nursing Independent Sector
Cambridgeshire County Council,05-Jan-17,22308605-14631884,-1800,Granta Housing- 71 /73 Fen Road,Care Establishment,2 - Operations - Learning Disability,LDP South Cambs - Special Needs,Nursing Independent Sector
Cambridgeshire County Council,05-Jan-17,22308607-14631886,-1800,Granta Housing- 71 /73 Fen Road,Care Establishment,2 - Operations - Learning Disability,LDP South Cambs - Special Needs,Nursing Independent Sector
Cambridgeshire County Council,05-Jan-17,22308608-14631887,-1800,Granta Housing- 71 /73 Fen Road,Care Establishment,2 - Operations - Learning Disability,LDP Cambs City - Special Needs,Nursing Independent Sector
Cambridgeshire County Council,05-Jan-17,22308610-14631889,-1800,Granta Housing- 71 /73 Fen Road,Care Establishment,2 - Operations - Learning Disability,LDP Cambs City - Special Needs,Nursing Independent Sector
Cambridgeshire County Council,05-Jan-17,22308611-14631890,-1800,Granta Housing- 71 /73 Fen Road,Care Establishment,2 - Operations - Learning Disability,LDP Cambs City - Special Needs,Nursing Independent Sector
Cambridgeshire County Council,05-Jan-17,22308613-14631892,-1800,Granta Housing- 71 /73 Fen Road,Care Establishment,2 - Operations - Learning Disability,LDP South Cambs - Special Needs,Nursing Independent Sector
Cambridgeshire County Council,05-Jan-17,22308614-14631893,-1800,Granta Housing- 71 /73 Fen Road,Care Establishment,2 - Operations - Learning Disability,LDP Cambs City - Special Needs,Nursing Independent Sector
Cambridgeshire County Council,05-Jan-17,22308616-14631895,-1800,Granta Housing- 71 /73 Fen Road,Care Establishment,2 - Operations - Learning Disability,LDP Cambs City - Special Needs,Nursing Independent Sector
Cambridgeshire County Council,05-Jan-17,22308618-14631897,-1800,Granta Housing- 71 /73 Fen Road,Care Establishment,2 - Operations - Learning Disability,LDP South Cambs - Special Needs,Nursing Independent Sector
Cambridgeshire County Council,05-Jan-17,22308621-14631900,-1800,Granta Housing- 71 /73 Fen Road,Care Establishment,2 - Operations - Learning Disability,LDP South Cambs - Special Needs,Nursing Independent Sector
Cambridgeshire County Council,05-Jan-17,22273337-14631903,-1800,Granta Housing- 71 /73 Fen Road,Care Establishment,2 - Operations - Learning Disability,LDP Cambs City - Special Needs,Nursing Independent Sector
Cambridgeshire County Council,05-Jan-17,22273340-14631906,-1800,Granta Housing- 71 /73 Fen Road,Care Establishment,2 - Operations - Learning Disability,LDP Cambs City - Special Needs,Nursing Independent Sector
Cambridgeshire County Council,05-Jan-17,22273344-14631910,-1800,Granta Housing- 71 /73 Fen Road,Care Establishment,2 - Operations - Learning Disability,LDP South Cambs - Special Needs,Nursing Independent Sector
Cambridgeshire County Council,05-Jan-17,22273345-14631911,-1800,Granta Housing- 71 /73 Fen Road,Care Establishment,2 - Operations - Learning Disability,LDP Cambs City - Special Needs,Nursing Independent Sector
Cambridgeshire County Council,05-Jan-17,22273347-14631913,-1800,Granta Housing- 71 /73 Fen Road,Care Establishment,2 - Operations - Learning Disability,LDP South Cambs - Special Needs,Nursing Independent Sector
Cambridgeshire County Council,05-Jan-17,22273349-14631915,-1800,Granta Housing- 71 /73 Fen Road,Care Establishment,2 - Operations - Learning Disability,LDP Cambs City - Special Needs,Nursing Independent Sector
Cambridgeshire County Council,05-Jan-17,22273350-14631916,-1800,Granta Housing- 71 /73 Fen Road,Care Establishment,2 - Operations - Learning Disability,LDP Cambs City - Special Needs,Nursing Independent Sector
Cambridgeshire County Council,05-Jan-17,22273353-14631919,-1800,Granta Housing- 71 /73 Fen Road,Care Establishment,2 - Operations - Learning Disability,LDP South Cambs - Special Needs,Nursing Independent Sector
Cambridgeshire County Council,05-Jan-17,22273354-14631920,-1800,Granta Housing- 71 /73 Fen Road,Care Establishment,2 - Operations - Learning Disability,LDP South Cambs - Special Needs,Nursing Independent Sector
Cambridgeshire County Council,05-Jan-17,22273355-14631921,-1800,Granta Housing- 71 /73 Fen Road,Care Establishment,2 - Operations - Learning Disability,LDP Cambs City - Special Needs,Nursing Independent Sector
Cambridgeshire County Council,05-Jan-17,22273356-14631922,-1800,Granta Housing- 71 /73 Fen Road,Care Establishment,2 - Operations - Learning Disability,LDP South Cambs - Special Needs,Nursing Independent Sector
Cambridgeshire County Council,05-Jan-17,22273361-14631927,-1800,Granta Housing- 71 /73 Fen Road,Care Establishment,2 - Operations - Learning Disability,LDP Cambs City - Special Needs,Nursing Independent Sector
Cambridgeshire County Council,05-Jan-17,22273366-14631932,-1800,Granta Housing- 71 /73 Fen Road,Care Establishment,2 - Operations - Learning Disability,LDP South Cambs - Special Needs,Nursing Independent Sector
Cambridgeshire County Council,05-Jan-17,22273368-14631934,-1800,Granta Housing- 71 /73 Fen Road,Care Establishment,2 - Operations - Learning Disability,LDP South Cambs - Special Needs,Nursing Independent Sector
Cambridgeshire County Council,05-Jan-17,22273369-14631935,-1800,Granta Housing- 71 /73 Fen Road,Care Establishment,2 - Operations - Learning Disability,LDP Cambs City - Special Needs,Nursing Independent Sector
Cambridgeshire County Council,05-Jan-17,22273370-14631936,-1800,Granta Housing- 71 /73 Fen Road,Care Establishment,2 - Operations - Learning Disability,LDP South Cambs - Special Needs,Nursing Independent Sector
Cambridgeshire County Council,05-Jan-17,22273371-14631937,-1800,Granta Housing- 71 /73 Fen Road,Care Establishment,2 - Operations - Learning Disability,LDP South Cambs - Special Needs,Nursing Independent Sector
Cambridgeshire County Council,05-Jan-17,22273372-14631938,-1800,Granta Housing- 71 /73 Fen Road,Care Establishment,2 - Operations - Learning Disability,LDP South Cambs - Special Needs,Nursing Independent Sector
Cambridgeshire County Council,05-Jan-17,22253677-14631941,-1800,Granta Housing- 71 /73 Fen Road,Care Establishment,2 - Operations - Learning Disability,LDP Cambs City - Special Needs,Nursing Independent Sector
Cambridgeshire County Council,05-Jan-17,22253678-14631942,-1800,Granta Housing- 71 /73 Fen Road,Care Establishment,2 - Operations - Learning Disability,LDP Cambs City - Special Needs,Nursing Independent Sector
Cambridgeshire County Council,05-Jan-17,22251885-14631951,-1800,Granta Housing- 71 /73 Fen Road,Care Establishment,2 - Operations - Learning Disability,LDP Cambs City - Special Needs,Nursing Independent Sector
Cambridgeshire County Council,05-Jan-17,22251886-14631952,-1800,Granta Housing- 71 /73 Fen Road,Care Establishment,2 - Operations - Learning Disability,LDP Cambs City - Special Needs,Nursing Independent Sector
Cambridgeshire County Council,05-Jan-17,22251887-14631953,-1800,Granta Housing- 71 /73 Fen Road,Care Establishment,2 - Operations - Learning Disability,LDP Cambs City - Special Needs,Nursing Independent Sector
Cambridgeshire County Council,05-Jan-17,22251890-14631956,-1800,Granta Housing- 71 /73 Fen Road,Care Establishment,2 - Operations - Learning Disability,LDP South Cambs - Special Needs,Nursing Independent Sector
Cambridgeshire County Council,05-Jan-17,22251891-14631957,-1800,Granta Housing- 71 /73 Fen Road,Care Establishment,2 - Operations - Learning Disability,LDP Cambs City - Special Needs,Nursing Independent Sector
Cambridgeshire County Council,05-Jan-17,22251893-14631959,-1800,Granta Housing- 71 /73 Fen Road,Care Establishment,2 - Operations - Learning Disability,LDP Cambs City - Special Needs,Nursing Independent Sector
Cambridgeshire County Council,05-Jan-17,22251896-14631962,-1800,Granta Housing- 71 /73 Fen Road,Care Establishment,2 - Operations - Learning Disability,LDP Cambs City - Special Needs,Nursing Independent Sector
Cambridgeshire County Council,05-Jan-17,22251899-14631965,-1800,Granta Housing- 71 /73 Fen Road,Care Establishment,2 - Operations - Learning Disability,LDP Cambs City - Special Needs,Nursing Independent Sector
Cambridgeshire County Council,05-Jan-17,22251900-14631966,-1800,Granta Housing- 71 /73 Fen Road,Care Establishment,2 - Operations - Learning Disability,LDP South Cambs - Special Needs,Nursing Independent Sector
Cambridgeshire County Council,05-Jan-17,22251901-14631967,-1800,Granta Housing- 71 /73 Fen Road,Care Establishment,2 - Operations - Learning Disability,LDP South Cambs - Special Needs,Nursing Independent Sector
Cambridgeshire County Council,05-Jan-17,22251903-14631969,-1800,Granta Housing- 71 /73 Fen Road,Care Establishment,2 - Operations - Learning Disability,LDP Cambs City - Special Needs,Nursing Independent Sector
Cambridgeshire County Council,05-Jan-17,22251904-14631970,-1800,Granta Housing- 71 /73 Fen Road,Care Establishment,2 - Operations - Learning Disability,LDP South Cambs - Special Needs,Nursing Independent Sector
Cambridgeshire County Council,05-Jan-17,22251906-14631972,-1800,Granta Housing- 71 /73 Fen Road,Care Establishment,2 - Operations - Learning Disability,LDP Cambs City - Special Needs,Nursing Independent Sector
Cambridgeshire County Council,05-Jan-17,22251907-14631973,-1800,Granta Housing- 71 /73 Fen Road,Care Establishment,2 - Operations - Learning Disability,LDP South Cambs - Special Needs,Nursing Independent Sector
Cambridgeshire County Council,05-Jan-17,22251910-14631976,-1800,Granta Housing- 71 /73 Fen Road,Care Establishment,2 - Operations - Learning Disability,LDP Cambs City - Special Needs,Nursing Independent Sector
Cambridgeshire County Council,05-Jan-17,22251912-14631978,-1800,Granta Housing- 71 /73 Fen Road,Care Establishment,2 - Operations - Learning Disability,LDP South Cambs - Special Needs,Nursing Independent Sector
Cambridgeshire County Council,05-Jan-17,22330828-14631983,-1800,Granta Housing- 71 /73 Fen Road,Care Establishment,2 - Operations - Learning Disability,LDP South Cambs - Special Needs,Nursing Independent Sector
Cambridgeshire County Council,05-Jan-17,22330829-14631984,-1800,Granta Housing- 71 /73 Fen Road,Care Establishment,2 - Operations - Learning Disability,LDP South Cambs - Special Needs,Nursing Independent Sector
Cambridgeshire County Council,05-Jan-17,22330830-14631985,-1800,Granta Housing- 71 /73 Fen Road,Care Establishment,2 - Operations - Learning Disability,LDP Cambs City - Special Needs,Nursing Independent Sector
Cambridgeshire County Council,05-Jan-17,22330831-14631986,-1800,Granta Housing- 71 /73 Fen Road,Care Establishment,2 - Operations - Learning Disability,LDP South Cambs - Special Needs,Nursing Independent Sector
Cambridgeshire County Council,05-Jan-17,22330833-14631988,-1800,Granta Housing- 71 /73 Fen Road,Care Establishment,2 - Operations - Learning Disability,LDP Cambs City - Special Needs,Nursing Independent Sector
Cambridgeshire County Council,05-Jan-17,22330835-14631990,-1800,Granta Housing- 71 /73 Fen Road,Care Establishment,2 - Operations - Learning Disability,LDP South Cambs - Special Needs,Nursing Independent Sector
Cambridgeshire County Council,05-Jan-17,22330841-14631996,-1800,Granta Housing- 71 /73 Fen Road,Care Establishment,2 - Operations - Learning Disability,LDP Cambs City - Special Needs,Nursing Independent Sector
Cambridgeshire County Council,05-Jan-17,22330844-14631999,-1800,Granta Housing- 71 /73 Fen Road,Care Establishment,2 - Operations - Learning Disability,LDP South Cambs - Special Needs,Nursing Independent Sector
Cambridgeshire County Council,05-Jan-17,22330845-14632000,-1800,Granta Housing- 71 /73 Fen Road,Care Establishment,2 - Operations - Learning Disability,LDP South Cambs - Special Needs,Nursing Independent Sector
Cambridgeshire County Council,05-Jan-17,22330847-14632002,-1800,Granta Housing- 71 /73 Fen Road,Care Establishment,2 - Operations - Learning Disability,LDP South Cambs - Special Needs,Nursing Independent Sector
Cambridgeshire County Council,05-Jan-17,22330848-14632003,-1800,Granta Housing- 71 /73 Fen Road,Care Establishment,2 - Operations - Learning Disability,LDP South Cambs - Special Needs,Nursing Independent Sector
Cambridgeshire County Council,05-Jan-17,22330850-14632005,-1800,Granta Housing- 71 /73 Fen Road,Care Establishment,2 - Operations - Learning Disability,LDP South Cambs - Special Needs,Nursing Independent Sector
Cambridgeshire County Council,05-Jan-17,22330851-14632006,-1800,Granta Housing- 71 /73 Fen Road,Care Establishment,2 - Operations - Learning Disability,LDP South Cambs - Special Needs,Nursing Independent Sector
Cambridgeshire County Council,05-Jan-17,22330854-14632009,-1800,Granta Housing- 71 /73 Fen Road,Care Establishment,2 - Operations - Learning Disability,LDP South Cambs - Special Needs,Nursing Independent Sector
Cambridgeshire County Council,05-Jan-17,22330858-14632013,-1800,Granta Housing- 71 /73 Fen Road,Care Establishment,2 - Operations - Learning Disability,LDP Cambs City - Special Needs,Nursing Independent Sector
Cambridgeshire County Council,05-Jan-17,22330859-14632014,-1800,Granta Housing- 71 /73 Fen Road,Care Establishment,2 - Operations - Learning Disability,LDP Cambs City - Special Needs,Nursing Independent Sector
Cambridgeshire County Council,05-Jan-17,22330861-14632016,-1800,Granta Housing- 71 /73 Fen Road,Care Establishment,2 - Operations - Learning Disability,LDP Cambs City - Special Needs,Nursing Independent Sector
Cambridgeshire County Council,05-Jan-17,22330863-14632018,-1800,Granta Housing- 71 /73 Fen Road,Care Establishment,2 - Operations - Learning Disability,LDP South Cambs - Special Needs,Nursing Independent Sector
Cambridgeshire County Council,23-Jan-17,22316436-14711643,-1791.79,Nexus Fostering Ltd,Care Establishment,S&C,Placements - Social Care,Agency Placements - In Cambs
Cambridgeshire County Council,23-Jan-17,22316437-14711644,-1791.79,Nexus Fostering Ltd,Care Establishment,S&C,Placements - Social Care,Agency Placements - Out County
Cambridgeshire County Council,13-Jan-17,22394853-14670794,-1604.89,Conifer Lodge,Care Establishment,2 - Operations - Learning Disability,LDP City Locality - Care,Residential Independent Sector
Cambridgeshire County Council,13-Jan-17,22394855-14670796,-1604.89,Conifer Lodge,Care Establishment,2 - Operations - Learning Disability,LDP City Locality - Care,Residential Independent Sector
Cambridgeshire County Council,13-Jan-17,22394858-14670799,-1604.89,Conifer Lodge,Care Establishment,2 - Operations - Learning Disability,LDP City Locality - Care,Residential Independent Sector
Cambridgeshire County Council,13-Jan-17,22394859-14670800,-1604.89,Conifer Lodge,Care Establishment,2 - Operations - Learning Disability,LDP City Locality - Care,Residential Independent Sector
Cambridgeshire County Council,13-Jan-17,22394863-14670804,-1604.89,Conifer Lodge,Care Establishment,2 - Operations - Learning Disability,LDP City Locality - Care,Residential Independent Sector
Cambridgeshire County Council,13-Jan-17,22394867-14670808,-1604.89,Conifer Lodge,Care Establishment,2 - Operations - Learning Disability,LDP City Locality - Care,Residential Independent Sector
Cambridgeshire County Council,13-Jan-17,22394868-14670809,-1604.89,Conifer Lodge,Care Establishment,2 - Operations - Learning Disability,LDP City Locality - Care,Residential Independent Sector
Cambridgeshire County Council,13-Jan-17,22394229-14670813,-1604.89,Conifer Lodge,Care Establishment,2 - Operations - Learning Disability,LDP City Locality - Care,Residential Independent Sector
Cambridgeshire County Council,13-Jan-17,22394233-14670815,-1604.89,Conifer Lodge,Care Establishment,2 - Operations - Learning Disability,LDP City Locality - Care,Residential Independent Sector
Cambridgeshire County Council,13-Jan-17,22394234-14670816,-1604.89,Conifer Lodge,Care Establishment,2 - Operations - Learning Disability,LDP City Locality - Care,Residential Independent Sector
Cambridgeshire County Council,13-Jan-17,22394235-14670817,-1604.89,Conifer Lodge,Care Establishment,2 - Operations - Learning Disability,LDP City Locality - Care,Residential Independent Sector
Cambridgeshire County Council,13-Jan-17,22394238-14670820,-1604.89,Conifer Lodge,Care Establishment,2 - Operations - Learning Disability,LDP City Locality - Care,Residential Independent Sector
Cambridgeshire County Council,13-Jan-17,22394240-14670822,-1604.89,Conifer Lodge,Care Establishment,2 - Operations - Learning Disability,LDP City Locality - Care,Residential Independent Sector
Cambridgeshire County Council,13-Jan-17,22394874-14670732,-1604.89,Conifer Lodge,Care Establishment,2 - Operations - Learning Disability,LDP City Locality - Care,Residential Independent Sector
Cambridgeshire County Council,13-Jan-17,22394878-14670736,-1604.89,Conifer Lodge,Care Establishment,2 - Operations - Learning Disability,LDP City Locality - Care,Residential Independent Sector
Cambridgeshire County Council,13-Jan-17,22394880-14670738,-1604.89,Conifer Lodge,Care Establishment,2 - Operations - Learning Disability,LDP City Locality - Care,Residential Independent Sector
Cambridgeshire County Council,13-Jan-17,22394882-14670740,-1604.89,Conifer Lodge,Care Establishment,2 - Operations - Learning Disability,LDP City Locality - Care,Residential Independent Sector
Cambridgeshire County Council,13-Jan-17,22394885-14670741,-1604.89,Conifer Lodge,Care Establishment,2 - Operations - Learning Disability,LDP City Locality - Care,Residential Independent Sector
Cambridgeshire County Council,13-Jan-17,22394886-14670742,-1604.89,Conifer Lodge,Care Establishment,2 - Operations - Learning Disability,LDP City Locality - Care,Residential Independent Sector
Cambridgeshire County Council,13-Jan-17,22394888-14670744,-1604.89,Conifer Lodge,Care Establishment,2 - Operations - Learning Disability,LDP City Locality - Care,Residential Independent Sector
Cambridgeshire County Council,13-Jan-17,22394889-14670745,-1604.89,Conifer Lodge,Care Establishment,2 - Operations - Learning Disability,LDP City Locality - Care,Residential Independent Sector
Cambridgeshire County Council,13-Jan-17,22394890-14670746,-1604.89,Conifer Lodge,Care Establishment,2 - Operations - Learning Disability,LDP City Locality - Care,Residential Independent Sector
Cambridgeshire County Council,13-Jan-17,22394891-14670747,-1604.89,Conifer Lodge,Care Establishment,2 - Operations - Learning Disability,LDP City Locality - Care,Residential Independent Sector
Cambridgeshire County Council,13-Jan-17,22394900-14670751,-1604.89,Conifer Lodge,Care Establishment,2 - Operations - Learning Disability,LDP City Locality - Care,Residential Independent Sector
Cambridgeshire County Council,13-Jan-17,22394910-14670759,-1604.89,Conifer Lodge,Care Establishment,2 - Operations - Learning Disability,LDP City Locality - Care,Residential Independent Sector
Cambridgeshire County Council,13-Jan-17,22394914-14670763,-1604.89,Conifer Lodge,Care Establishment,2 - Operations - Learning Disability,LDP City Locality - Care,Residential Independent Sector
Cambridgeshire County Council,13-Jan-17,22394915-14670764,-1604.89,Conifer Lodge,Care Establishment,2 - Operations - Learning Disability,LDP City Locality - Care,Residential Independent Sector
Cambridgeshire County Council,13-Jan-17,22394916-14670765,-1604.89,Conifer Lodge,Care Establishment,2 - Operations - Learning Disability,LDP City Locality - Care,Residential Independent Sector
Cambridgeshire County Council,13-Jan-17,22394917-14670766,-1604.89,Conifer Lodge,Care Establishment,2 - Operations - Learning Disability,LDP City Locality - Care,Residential Independent Sector
Cambridgeshire County Council,13-Jan-17,22394922-14670769,-1604.89,Conifer Lodge,Care Establishment,2 - Operations - Learning Disability,LDP City Locality - Care,Residential Independent Sector
Cambridgeshire County Council,13-Jan-17,22394923-14670770,-1604.89,Conifer Lodge,Care Establishment,2 - Operations - Learning Disability,LDP City Locality - Care,Residential Independent Sector
Cambridgeshire County Council,13-Jan-17,22394926-14670772,-1604.89,Conifer Lodge,Care Establishment,2 - Operations - Learning Disability,LDP City Locality - Care,Residential Independent Sector
Cambridgeshire County Council,13-Jan-17,22394928-14670774,-1604.89,Conifer Lodge,Care Establishment,2 - Operations - Learning Disability,LDP City Locality - Care,Residential Independent Sector
Cambridgeshire County Council,13-Jan-17,22394929-14670775,-1604.89,Conifer Lodge,Care Establishment,2 - Operations - Learning Disability,LDP City Locality - Care,Residential Independent Sector
Cambridgeshire County Council,13-Jan-17,22394930-14670776,-1604.89,Conifer Lodge,Care Establishment,2 - Operations - Learning Disability,LDP City Locality - Care,Residential Independent Sector
Cambridgeshire County Council,13-Jan-17,22394931-14670777,-1604.89,Conifer Lodge,Care Establishment,2 - Operations - Learning Disability,LDP City Locality - Care,Residential Independent Sector
Cambridgeshire County Council,13-Jan-17,22394934-14670779,-1604.89,Conifer Lodge,Care Establishment,2 - Operations - Learning Disability,LDP City Locality - Care,Residential Independent Sector
Cambridgeshire County Council,13-Jan-17,22394836-14670781,-1604.89,Conifer Lodge,Care Establishment,2 - Operations - Learning Disability,LDP City Locality - Care,Residential Independent Sector
Cambridgeshire County Council,13-Jan-17,22394837-14670782,-1604.89,Conifer Lodge,Care Establishment,2 - Operations - Learning Disability,LDP City Locality - Care,Residential Independent Sector
Cambridgeshire County Council,13-Jan-17,22394841-14670785,-1604.89,Conifer Lodge,Care Establishment,2 - Operations - Learning Disability,LDP City Locality - Care,Residential Independent Sector
Cambridgeshire County Council,13-Jan-17,22394843-14670787,-1604.89,Conifer Lodge,Care Establishment,2 - Operations - Learning Disability,LDP City Locality - Care,Residential Independent Sector
Cambridgeshire County Council,13-Jan-17,22394848-14670790,-1604.89,Conifer Lodge,Care Establishment,2 - Operations - Learning Disability,LDP City Locality - Care,Residential Independent Sector
Cambridgeshire County Council,30-Jan-17,22463814-14738720,-1528.24,Guidant Group,Trade Supplier,CSC,Kinship Support and Private Fostering,Pay - Agency Staff
Cambridgeshire County Council,25-Jan-17,22232794-14724630,-1520.61,Compass Fostering,Care Establishment,S&C,Placements - Social Care,Agency Placements - Out County
Cambridgeshire County Council,13-Jan-17,22392525-14670891,-1506.43,Conifer Lodge,Care Establishment,2 - Operations - Learning Disability,LDP Fenland Locality - Care,Residential Independent Sector
Cambridgeshire County Council,13-Jan-17,22392527-14670893,-1506.43,Conifer Lodge,Care Establishment,2 - Operations - Learning Disability,LDP Fenland Locality - Care,Residential Independent Sector
Cambridgeshire County Council,13-Jan-17,22392529-14670895,-1506.43,Conifer Lodge,Care Establishment,2 - Operations - Learning Disability,LDP Fenland Locality - Care,Residential Independent Sector
Cambridgeshire County Council,13-Jan-17,22392531-14670897,-1506.43,Conifer Lodge,Care Establishment,2 - Operations - Learning Disability,LDP Fenland Locality - Care,Residential Independent Sector
Cambridgeshire County Council,13-Jan-17,22392532-14670898,-1506.43,Conifer Lodge,Care Establishment,2 - Operations - Learning Disability,LDP Fenland Locality - Care,Residential Independent Sector
Cambridgeshire County Council,13-Jan-17,22392535-14670899,-1506.43,Conifer Lodge,Care Establishment,2 - Operations - Learning Disability,LDP Fenland Locality - Care,Residential Independent Sector
Cambridgeshire County Council,13-Jan-17,22392536-14670900,-1506.43,Conifer Lodge,Care Establishment,2 - Operations - Learning Disability,LDP Fenland Locality - Care,Residential Independent Sector
Cambridgeshire County Council,13-Jan-17,22392537-14670901,-1506.43,Conifer Lodge,Care Establishment,2 - Operations - Learning Disability,LDP Fenland Locality - Care,Residential Independent Sector
Cambridgeshire County Council,13-Jan-17,22392545-14670905,-1506.43,Conifer Lodge,Care Establishment,2 - Operations - Learning Disability,LDP Fenland Locality - Care,Residential Independent Sector
Cambridgeshire County Council,13-Jan-17,22392546-14670906,-1506.43,Conifer Lodge,Care Establishment,2 - Operations - Learning Disability,LDP Fenland Locality - Care,Residential Independent Sector
Cambridgeshire County Council,13-Jan-17,22392550-14670909,-1506.43,Conifer Lodge,Care Establishment,2 - Operations - Learning Disability,LDP Fenland Locality - Care,Residential Independent Sector
Cambridgeshire County Council,13-Jan-17,22392551-14670910,-1506.43,Conifer Lodge,Care Establishment,2 - Operations - Learning Disability,LDP Fenland Locality - Care,Residential Independent Sector
Cambridgeshire County Council,13-Jan-17,22392555-14670914,-1506.43,Conifer Lodge,Care Establishment,2 - Operations - Learning Disability,LDP Fenland Locality - Care,Residential Independent Sector
Cambridgeshire County Council,13-Jan-17,22392562-14670917,-1506.43,Conifer Lodge,Care Establishment,2 - Operations - Learning Disability,LDP Fenland Locality - Care,Residential Independent Sector
Cambridgeshire County Council,13-Jan-17,22392566-14670919,-1506.43,Conifer Lodge,Care Establishment,2 - Operations - Learning Disability,LDP Fenland Locality - Care,Residential Independent Sector
Cambridgeshire County Council,13-Jan-17,22392567-14670920,-1506.43,Conifer Lodge,Care Establishment,2 - Operations - Learning Disability,LDP Fenland Locality - Care,Residential Independent Sector
Cambridgeshire County Council,13-Jan-17,22392579-14670925,-1506.43,Conifer Lodge,Care Establishment,2 - Operations - Learning Disability,LDP Fenland Locality - Care,Residential Independent Sector
Cambridgeshire County Council,13-Jan-17,22392581-14670927,-1506.43,Conifer Lodge,Care Establishment,2 - Operations - Learning Disability,LDP Fenland Locality - Care,Residential Independent Sector
Cambridgeshire County Council,13-Jan-17,22392587-14670932,-1506.43,Conifer Lodge,Care Establishment,2 - Operations - Learning Disability,LDP Fenland Locality - Care,Residential Independent Sector
Cambridgeshire County Council,13-Jan-17,22392593-14670936,-1506.43,Conifer Lodge,Care Establishment,2 - Operations - Learning Disability,LDP Fenland Locality - Care,Residential Independent Sector
Cambridgeshire County Council,13-Jan-17,22392595-14670938,-1506.43,Conifer Lodge,Care Establishment,2 - Operations - Learning Disability,LDP Fenland Locality - Care,Residential Independent Sector
Cambridgeshire County Council,13-Jan-17,22392596-14670939,-1506.43,Conifer Lodge,Care Establishment,2 - Operations - Learning Disability,LDP Fenland Locality - Care,Residential Independent Sector
Cambridgeshire County Council,13-Jan-17,22392599-14670941,-1506.43,Conifer Lodge,Care Establishment,2 - Operations - Learning Disability,LDP Fenland Locality - Care,Residential Independent Sector
Cambridgeshire County Council,13-Jan-17,22392603-14670945,-1506.43,Conifer Lodge,Care Establishment,2 - Operations - Learning Disability,LDP Fenland Locality - Care,Residential Independent Sector
Cambridgeshire County Council,13-Jan-17,22392605-14670947,-1506.43,Conifer Lodge,Care Establishment,2 - Operations - Learning Disability,LDP Fenland Locality - Care,Residential Independent Sector
Cambridgeshire County Council,13-Jan-17,22392609-14670951,-1506.43,Conifer Lodge,Care Establishment,2 - Operations - Learning Disability,LDP Fenland Locality - Care,Residential Independent Sector
Cambridgeshire County Council,13-Jan-17,22392613-14670955,-1506.43,Conifer Lodge,Care Establishment,2 - Operations - Learning Disability,LDP Fenland Locality - Care,Residential Independent Sector
Cambridgeshire County Council,13-Jan-17,22392615-14670957,-1506.43,Conifer Lodge,Care Establishment,2 - Operations - Learning Disability,LDP Fenland Locality - Care,Residential Independent Sector
Cambridgeshire County Council,13-Jan-17,22392616-14670958,-1506.43,Conifer Lodge,Care Establishment,2 - Operations - Learning Disability,LDP Fenland Locality - Care,Residential Independent Sector
Cambridgeshire County Council,13-Jan-17,22392621-14670961,-1506.43,Conifer Lodge,Care Establishment,2 - Operations - Learning Disability,LDP Fenland Locality - Care,Residential Independent Sector
Cambridgeshire County Council,13-Jan-17,22392023-14670963,-1506.43,Conifer Lodge,Care Establishment,2 - Operations - Learning Disability,LDP Fenland Locality - Care,Residential Independent Sector
Cambridgeshire County Council,13-Jan-17,22392025-14670964,-1506.43,Conifer Lodge,Care Establishment,2 - Operations - Learning Disability,LDP Fenland Locality - Care,Residential Independent Sector
Cambridgeshire County Council,13-Jan-17,22392002-14670968,-1506.43,Conifer Lodge,Care Establishment,2 - Operations - Learning Disability,LDP Fenland Locality - Care,Residential Independent Sector
Cambridgeshire County Council,13-Jan-17,22392003-14670969,-1506.43,Conifer Lodge,Care Establishment,2 - Operations - Learning Disability,LDP Fenland Locality - Care,Residential Independent Sector
Cambridgeshire County Council,13-Jan-17,22392004-14670970,-1506.43,Conifer Lodge,Care Establishment,2 - Operations - Learning Disability,LDP Fenland Locality - Care,Residential Independent Sector
Cambridgeshire County Council,13-Jan-17,22392005-14670971,-1506.43,Conifer Lodge,Care Establishment,2 - Operations - Learning Disability,LDP Fenland Locality - Care,Residential Independent Sector
Cambridgeshire County Council,13-Jan-17,22392007-14670973,-1506.43,Conifer Lodge,Care Establishment,2 - Operations - Learning Disability,LDP Fenland Locality - Care,Residential Independent Sector
Cambridgeshire County Council,13-Jan-17,22392009-14670975,-1506.43,Conifer Lodge,Care Establishment,2 - Operations - Learning Disability,LDP Fenland Locality - Care,Residential Independent Sector
Cambridgeshire County Council,13-Jan-17,22392012-14670978,-1506.43,Conifer Lodge,Care Establishment,2 - Operations - Learning Disability,LDP Fenland Locality - Care,Residential Independent Sector
Cambridgeshire County Council,13-Jan-17,22392017-14670980,-1506.43,Conifer Lodge,Care Establishment,2 - Operations - Learning Disability,LDP Fenland Locality - Care,Residential Independent Sector
Cambridgeshire County Council,13-Jan-17,22392018-14670981,-1506.43,Conifer Lodge,Care Establishment,2 - Operations - Learning Disability,LDP Fenland Locality - Care,Residential Independent Sector
Cambridgeshire County Council,13-Jan-17,22392020-14670983,-1506.43,Conifer Lodge,Care Establishment,2 - Operations - Learning Disability,LDP Fenland Locality - Care,Residential Independent Sector
Cambridgeshire County Council,13-Jan-17,22392021-14670984,-1506.43,Conifer Lodge,Care Establishment,2 - Operations - Learning Disability,LDP Fenland Locality - Care,Residential Independent Sector
Cambridgeshire County Council,23-Jan-17,22418300-14711567,-1326.42,Guidant Group,Trade Supplier,4 - Operations - Providers services,17/18 St Lukes Close (Supp Living),Pay - Agency Staff
Cambridgeshire County Council,25-Jan-17,22316431-14724842,-1313.13,Nexus Fostering Ltd,Care Establishment,S&C,Placements - Social Care,Agency Placements - Out County
Cambridgeshire County Council,25-Jan-17,22316435-14724843,-1313.13,Nexus Fostering Ltd,Care Establishment,S&C,Placements - Social Care,Agency Placements - Out County
Cambridgeshire County Council,23-Jan-17,22316430-14711642,-1300.39,Nexus Fostering Ltd,Care Establishment,S&C,Placements - Social Care,Agency Placements - In Cambs
Cambridgeshire County Council,19-Jan-17,22407984-14695584,-1235.16,Askews And Holts Library Services Ltd,Trade Supplier,Corporate Services,Support - Stock & Distribution,Library Book Fund
Cambridgeshire County Council,18-Jan-17,22376419-14685717,-1234.8,Fosterplus Ltd,Care Establishment,S&C,Placements - Social Care,Agency Placements - Out County
Cambridgeshire County Council,05-Jan-17,22329060-14624250,-1198.04,Caretech Community Services,Care Establishment,2 - Operations - Learning Disability,LDP South Cambs Locality - Care,Residential Independent Sector
Cambridgeshire County Council,05-Jan-17,22329062-14624252,-1198.04,Caretech Community Services,Care Establishment,2 - Operations - Learning Disability,LDP South Cambs - Special Needs,Residential Independent Sector
Cambridgeshire County Council,05-Jan-17,22329065-14624255,-1198.04,Caretech Community Services,Care Establishment,2 - Operations - Learning Disability,LDP South Cambs Locality - Care,Residential Independent Sector
Cambridgeshire County Council,05-Jan-17,22329067-14624257,-1198.04,Caretech Community Services,Care Establishment,2 - Operations - Learning Disability,LDP South Cambs - Special Needs,Residential Independent Sector
Cambridgeshire County Council,05-Jan-17,22329069-14624259,-1198.04,Caretech Community Services,Care Establishment,2 - Operations - Learning Disability,LDP South Cambs - Special Needs,Residential Independent Sector
Cambridgeshire County Council,05-Jan-17,22329070-14624260,-1198.04,Caretech Community Services,Care Establishment,2 - Operations - Learning Disability,LDP South Cambs - Special Needs,Residential Independent Sector
Cambridgeshire County Council,05-Jan-17,22329076-14624266,-1198.04,Caretech Community Services,Care Establishment,2 - Operations - Learning Disability,LDP South Cambs Locality - Care,Residential Independent Sector
Cambridgeshire County Council,05-Jan-17,22329077-14624267,-1198.04,Caretech Community Services,Care Establishment,2 - Operations - Learning Disability,LDP South Cambs Locality - Care,Residential Independent Sector
Cambridgeshire County Council,05-Jan-17,22329083-14624273,-1198.04,Caretech Community Services,Care Establishment,2 - Operations - Learning Disability,LDP South Cambs - Special Needs,Residential Independent Sector
Cambridgeshire County Council,05-Jan-17,22329086-14624276,-1198.04,Caretech Community Services,Care Establishment,2 - Operations - Learning Disability,LDP South Cambs - Special Needs,Residential Independent Sector
Cambridgeshire County Council,05-Jan-17,22329087-14624277,-1198.04,Caretech Community Services,Care Establishment,2 - Operations - Learning Disability,LDP South Cambs - Special Needs,Residential Independent Sector
Cambridgeshire County Council,05-Jan-17,22329088-14624278,-1198.04,Caretech Community Services,Care Establishment,2 - Operations - Learning Disability,LDP South Cambs - Special Needs,Residential Independent Sector
Cambridgeshire County Council,05-Jan-17,22329089-14624279,-1198.04,Caretech Community Services,Care Establishment,2 - Operations - Learning Disability,LDP South Cambs Locality - Care,Residential Independent Sector
Cambridgeshire County Council,05-Jan-17,22329090-14624280,-1198.04,Caretech Community Services,Care Establishment,2 - Operations - Learning Disability,LDP South Cambs - Special Needs,Residential Independent Sector
Cambridgeshire County Council,05-Jan-17,22346014-14624204,-1198.04,Caretech Community Services,Care Establishment,2 - Operations - Learning Disability,LDP South Cambs - Special Needs,Residential Independent Sector
Cambridgeshire County Council,05-Jan-17,22346015-14624205,-1198.04,Caretech Community Services,Care Establishment,2 - Operations - Learning Disability,LDP South Cambs - Special Needs,Residential Independent Sector
Cambridgeshire County Council,05-Jan-17,22346016-14624206,-1198.04,Caretech Community Services,Care Establishment,2 - Operations - Learning Disability,LDP South Cambs Locality - Care,Residential Independent Sector
Cambridgeshire County Council,05-Jan-17,22346017-14624207,-1198.04,Caretech Community Services,Care Establishment,2 - Operations - Learning Disability,LDP South Cambs - Special Needs,Residential Independent Sector
Cambridgeshire County Council,05-Jan-17,22346018-14624208,-1198.04,Caretech Community Services,Care Establishment,2 - Operations - Learning Disability,LDP South Cambs - Special Needs,Residential Independent Sector
Cambridgeshire County Council,05-Jan-17,22346019-14624209,-1198.04,Caretech Community Services,Care Establishment,2 - Operations - Learning Disability,LDP South Cambs - Special Needs,Residential Independent Sector
Cambridgeshire County Council,05-Jan-17,22346020-14624210,-1198.04,Caretech Community Services,Care Establishment,2 - Operations - Learning Disability,LDP South Cambs Locality - Care,Residential Independent Sector
Cambridgeshire County Council,05-Jan-17,22346026-14624216,-1198.04,Caretech Community Services,Care Establishment,2 - Operations - Learning Disability,LDP South Cambs - Special Needs,Residential Independent Sector
Cambridgeshire County Council,05-Jan-17,22346027-14624217,-1198.04,Caretech Community Services,Care Establishment,2 - Operations - Learning Disability,LDP South Cambs - Special Needs,Residential Independent Sector
Cambridgeshire County Council,05-Jan-17,22346031-14624221,-1198.04,Caretech Community Services,Care Establishment,2 - Operations - Learning Disability,LDP South Cambs - Special Needs,Residential Independent Sector
Cambridgeshire County Council,05-Jan-17,22346032-14624222,-1198.04,Caretech Community Services,Care Establishment,2 - Operations - Learning Disability,LDP South Cambs - Special Needs,Residential Independent Sector
Cambridgeshire County Council,05-Jan-17,22346033-14624223,-1198.04,Caretech Community Services,Care Establishment,2 - Operations - Learning Disability,LDP South Cambs - Special Needs,Residential Independent Sector
Cambridgeshire County Council,05-Jan-17,22346034-14624224,-1198.04,Caretech Community Services,Care Establishment,2 - Operations - Learning Disability,LDP South Cambs - Special Needs,Residential Independent Sector
Cambridgeshire County Council,13-Jan-17,22393431-14668797,-1198.04,Caretech Community Services,Care Establishment,2 - Operations - Learning Disability,LDP South Cambs Locality - Care,Residential Independent Sector
Cambridgeshire County Council,13-Jan-17,22393412-14668799,-1198.04,Caretech Community Services,Care Establishment,2 - Operations - Learning Disability,LDP South Cambs - Special Needs,Residential Independent Sector
Cambridgeshire County Council,13-Jan-17,22393413-14668800,-1198.04,Caretech Community Services,Care Establishment,2 - Operations - Learning Disability,LDP South Cambs Locality - Care,Residential Independent Sector
Cambridgeshire County Council,13-Jan-17,22393414-14668801,-1198.04,Caretech Community Services,Care Establishment,2 - Operations - Learning Disability,LDP South Cambs Locality - Care,Residential Independent Sector
Cambridgeshire County Council,13-Jan-17,22393415-14668802,-1198.04,Caretech Community Services,Care Establishment,2 - Operations - Learning Disability,LDP South Cambs Locality - Care,Residential Independent Sector
Cambridgeshire County Council,13-Jan-17,22393417-14668804,-1198.04,Caretech Community Services,Care Establishment,2 - Operations - Learning Disability,LDP South Cambs - Special Needs,Residential Independent Sector
Cambridgeshire County Council,13-Jan-17,22393421-14668808,-1198.04,Caretech Community Services,Care Establishment,2 - Operations - Learning Disability,LDP South Cambs Locality - Care,Residential Independent Sector
Cambridgeshire County Council,13-Jan-17,22393423-14668810,-1198.04,Caretech Community Services,Care Establishment,2 - Operations - Learning Disability,LDP South Cambs Locality - Care,Residential Independent Sector
Cambridgeshire County Council,13-Jan-17,22393426-14668813,-1198.04,Caretech Community Services,Care Establishment,2 - Operations - Learning Disability,LDP South Cambs Locality - Care,Residential Independent Sector
Cambridgeshire County Council,13-Jan-17,22393427-14668814,-1198.04,Caretech Community Services,Care Establishment,2 - Operations - Learning Disability,LDP South Cambs - Special Needs,Residential Independent Sector
Cambridgeshire County Council,13-Jan-17,22393428-14668815,-1198.04,Caretech Community Services,Care Establishment,2 - Operations - Learning Disability,LDP South Cambs - Special Needs,Residential Independent Sector
Cambridgeshire County Council,13-Jan-17,22393429-14668816,-1198.04,Caretech Community Services,Care Establishment,2 - Operations - Learning Disability,LDP South Cambs Locality - Care,Residential Independent Sector
Cambridgeshire County Council,13-Jan-17,22397021-14668825,-1198.04,Caretech Community Services,Care Establishment,2 - Operations - Learning Disability,LDP South Cambs Locality - Care,Residential Independent Sector
Cambridgeshire County Council,13-Jan-17,22397026-14668830,-1198.04,Caretech Community Services,Care Establishment,2 - Operations - Learning Disability,LDP South Cambs - Special Needs,Residential Independent Sector
Cambridgeshire County Council,13-Jan-17,22397028-14668832,-1198.04,Caretech Community Services,Care Establishment,2 - Operations - Learning Disability,LDP South Cambs - Special Needs,Residential Independent Sector
Cambridgeshire County Council,13-Jan-17,22397036-14668840,-1198.04,Caretech Community Services,Care Establishment,2 - Operations - Learning Disability,LDP South Cambs - Special Needs,Residential Independent Sector
Cambridgeshire County Council,13-Jan-17,22397037-14668841,-1198.04,Caretech Community Services,Care Establishment,2 - Operations - Learning Disability,LDP South Cambs Locality - Care,Residential Independent Sector
Cambridgeshire County Council,13-Jan-17,22397038-14668842,-1198.04,Caretech Community Services,Care Establishment,2 - Operations - Learning Disability,LDP South Cambs - Special Needs,Residential Independent Sector
Cambridgeshire County Council,13-Jan-17,22397039-14668843,-1198.04,Caretech Community Services,Care Establishment,2 - Operations - Learning Disability,LDP South Cambs - Special Needs,Residential Independent Sector
Cambridgeshire County Council,13-Jan-17,22397040-14668844,-1198.04,Caretech Community Services,Care Establishment,2 - Operations - Learning Disability,LDP South Cambs - Special Needs,Residential Independent Sector
Cambridgeshire County Council,13-Jan-17,22397041-14668845,-1198.04,Caretech Community Services,Care Establishment,2 - Operations - Learning Disability,LDP South Cambs Locality - Care,Residential Independent Sector
Cambridgeshire County Council,13-Jan-17,22397042-14668846,-1198.04,Caretech Community Services,Care Establishment,2 - Operations - Learning Disability,LDP South Cambs - Special Needs,Residential Independent Sector
Cambridgeshire County Council,13-Jan-17,22397044-14668848,-1198.04,Caretech Community Services,Care Establishment,2 - Operations - Learning Disability,LDP South Cambs - Special Needs,Residential Independent Sector
Cambridgeshire County Council,13-Jan-17,22397045-14668849,-1198.04,Caretech Community Services,Care Establishment,2 - Operations - Learning Disability,LDP South Cambs - Special Needs,Residential Independent Sector
Cambridgeshire County Council,13-Jan-17,22397049-14668853,-1198.04,Caretech Community Services,Care Establishment,2 - Operations - Learning Disability,LDP South Cambs Locality - Care,Residential Independent Sector
Cambridgeshire County Council,13-Jan-17,22397053-14668857,-1198.04,Caretech Community Services,Care Establishment,2 - Operations - Learning Disability,LDP South Cambs Locality - Care,Residential Independent Sector
Cambridgeshire County Council,13-Jan-17,22397055-14668859,-1198.04,Caretech Community Services,Care Establishment,2 - Operations - Learning Disability,LDP South Cambs Locality - Care,Residential Independent Sector
Cambridgeshire County Council,19-Jan-17,22414248-14694697,-1198.04,Caretech Community Services,Care Establishment,2 - Operations - Learning Disability,LDP South Cambs Locality - Care,Residential Independent Sector
Cambridgeshire County Council,19-Jan-17,22414250-14694699,-1198.04,Caretech Community Services,Care Establishment,2 - Operations - Learning Disability,LDP South Cambs - Special Needs,Residential Independent Sector
Cambridgeshire County Council,19-Jan-17,22414253-14694702,-1198.04,Caretech Community Services,Care Establishment,2 - Operations - Learning Disability,LDP South Cambs - Special Needs,Residential Independent Sector
Cambridgeshire County Council,19-Jan-17,22414259-14694708,-1198.04,Caretech Community Services,Care Establishment,2 - Operations - Learning Disability,LDP South Cambs - Special Needs,Residential Independent Sector
Cambridgeshire County Council,19-Jan-17,22414261-14694710,-1198.04,Caretech Community Services,Care Establishment,2 - Operations - Learning Disability,LDP South Cambs - Special Needs,Residential Independent Sector
Cambridgeshire County Council,19-Jan-17,22414262-14694711,-1198.04,Caretech Community Services,Care Establishment,2 - Operations - Learning Disability,LDP South Cambs - Special Needs,Residential Independent Sector
Cambridgeshire County Council,19-Jan-17,22414264-14694713,-1198.04,Caretech Community Services,Care Establishment,2 - Operations - Learning Disability,LDP South Cambs - Special Needs,Residential Independent Sector
Cambridgeshire County Council,19-Jan-17,22414265-14694714,-1198.04,Caretech Community Services,Care Establishment,2 - Operations - Learning Disability,LDP South Cambs - Special Needs,Residential Independent Sector
Cambridgeshire County Council,19-Jan-17,22414267-14694716,-1198.04,Caretech Community Services,Care Establishment,2 - Operations - Learning Disability,LDP South Cambs - Special Needs,Residential Independent Sector
Cambridgeshire County Council,19-Jan-17,22414268-14694717,-1198.04,Caretech Community Services,Care Establishment,2 - Operations - Learning Disability,LDP South Cambs - Special Needs,Residential Independent Sector
Cambridgeshire County Council,19-Jan-17,22414272-14694721,-1198.04,Caretech Community Services,Care Establishment,2 - Operations - Learning Disability,LDP South Cambs - Special Needs,Residential Independent Sector
Cambridgeshire County Council,19-Jan-17,22414274-14694723,-1198.04,Caretech Community Services,Care Establishment,2 - Operations - Learning Disability,LDP South Cambs - Special Needs,Residential Independent Sector
Cambridgeshire County Council,19-Jan-17,22414276-14694725,-1198.04,Caretech Community Services,Care Establishment,2 - Operations - Learning Disability,LDP South Cambs - Special Needs,Residential Independent Sector
Cambridgeshire County Council,19-Jan-17,22411425-14694733,-1198.04,Caretech Community Services,Care Establishment,2 - Operations - Learning Disability,LDP South Cambs Locality - Care,Residential Independent Sector
Cambridgeshire County Council,19-Jan-17,22411427-14694735,-1198.04,Caretech Community Services,Care Establishment,2 - Operations - Learning Disability,LDP South Cambs Locality - Care,Residential Independent Sector
Cambridgeshire County Council,19-Jan-17,22411405-14694740,-1198.04,Caretech Community Services,Care Establishment,2 - Operations - Learning Disability,LDP South Cambs - Special Needs,Residential Independent Sector
Cambridgeshire County Council,19-Jan-17,22411407-14694742,-1198.04,Caretech Community Services,Care Establishment,2 - Operations - Learning Disability,LDP South Cambs - Special Needs,Residential Independent Sector
Cambridgeshire County Council,19-Jan-17,22411408-14694743,-1198.04,Caretech Community Services,Care Establishment,2 - Operations - Learning Disability,LDP South Cambs Locality - Care,Residential Independent Sector
Cambridgeshire County Council,19-Jan-17,22411409-14694744,-1198.04,Caretech Community Services,Care Establishment,2 - Operations - Learning Disability,LDP South Cambs - Special Needs,Residential Independent Sector
Cambridgeshire County Council,19-Jan-17,22411410-14694745,-1198.04,Caretech Community Services,Care Establishment,2 - Operations - Learning Disability,LDP South Cambs Locality - Care,Residential Independent Sector
Cambridgeshire County Council,19-Jan-17,22411411-14694746,-1198.04,Caretech Community Services,Care Establishment,2 - Operations - Learning Disability,LDP South Cambs - Special Needs,Residential Independent Sector
Cambridgeshire County Council,19-Jan-17,22411415-14694750,-1198.04,Caretech Community Services,Care Establishment,2 - Operations - Learning Disability,LDP South Cambs Locality - Care,Residential Independent Sector
Cambridgeshire County Council,19-Jan-17,22411418-14694753,-1198.04,Caretech Community Services,Care Establishment,2 - Operations - Learning Disability,LDP South Cambs - Special Needs,Residential Independent Sector
Cambridgeshire County Council,19-Jan-17,22411419-14694754,-1198.04,Caretech Community Services,Care Establishment,2 - Operations - Learning Disability,LDP South Cambs - Special Needs,Residential Independent Sector
Cambridgeshire County Council,19-Jan-17,22411420-14694755,-1198.04,Caretech Community Services,Care Establishment,2 - Operations - Learning Disability,LDP South Cambs - Special Needs,Residential Independent Sector
Cambridgeshire County Council,19-Jan-17,22411422-14694757,-1198.04,Caretech Community Services,Care Establishment,2 - Operations - Learning Disability,LDP South Cambs - Special Needs,Residential Independent Sector
Cambridgeshire County Council,19-Jan-17,22411423-14694758,-1198.04,Caretech Community Services,Care Establishment,2 - Operations - Learning Disability,LDP South Cambs Locality - Care,Residential Independent Sector
Cambridgeshire County Council,26-Jan-17,22457330-14728535,-1198.04,Caretech Community Services,Care Establishment,2 - Operations - Learning Disability,LDP South Cambs Locality - Care,Residential Independent Sector
Cambridgeshire County Council,26-Jan-17,22457331-14728536,-1198.04,Caretech Community Services,Care Establishment,2 - Operations - Learning Disability,LDP South Cambs Locality - Care,Residential Independent Sector
Cambridgeshire County Council,26-Jan-17,22457332-14728537,-1198.04,Caretech Community Services,Care Establishment,2 - Operations - Learning Disability,LDP South Cambs Locality - Care,Residential Independent Sector
Cambridgeshire County Council,26-Jan-17,22457335-14728540,-1198.04,Caretech Community Services,Care Establishment,2 - Operations - Learning Disability,LDP South Cambs - Special Needs,Residential Independent Sector
Cambridgeshire County Council,26-Jan-17,22457336-14728541,-1198.04,Caretech Community Services,Care Establishment,2 - Operations - Learning Disability,LDP South Cambs Locality - Care,Residential Independent Sector
Cambridgeshire County Council,26-Jan-17,22457337-14728542,-1198.04,Caretech Community Services,Care Establishment,2 - Operations - Learning Disability,LDP South Cambs - Special Needs,Residential Independent Sector
Cambridgeshire County Council,26-Jan-17,22457338-14728543,-1198.04,Caretech Community Services,Care Establishment,2 - Operations - Learning Disability,LDP South Cambs Locality - Care,Residential Independent Sector
Cambridgeshire County Council,26-Jan-17,22457341-14728546,-1198.04,Caretech Community Services,Care Establishment,2 - Operations - Learning Disability,LDP South Cambs Locality - Care,Residential Independent Sector
Cambridgeshire County Council,26-Jan-17,22457342-14728547,-1198.04,Caretech Community Services,Care Establishment,2 - Operations - Learning Disability,LDP South Cambs Locality - Care,Residential Independent Sector
Cambridgeshire County Council,26-Jan-17,22457344-14728549,-1198.04,Caretech Community Services,Care Establishment,2 - Operations - Learning Disability,LDP South Cambs - Special Needs,Residential Independent Sector
Cambridgeshire County Council,26-Jan-17,22457349-14728554,-1198.04,Caretech Community Services,Care Establishment,2 - Operations - Learning Disability,LDP South Cambs Locality - Care,Residential Independent Sector
Cambridgeshire County Council,26-Jan-17,22457289-14728494,-1198.04,Caretech Community Services,Care Establishment,2 - Operations - Learning Disability,LDP South Cambs - Special Needs,Residential Independent Sector
Cambridgeshire County Council,26-Jan-17,22457292-14728497,-1198.04,Caretech Community Services,Care Establishment,2 - Operations - Learning Disability,LDP South Cambs Locality - Care,Residential Independent Sector
Cambridgeshire County Council,26-Jan-17,22457296-14728501,-1198.04,Caretech Community Services,Care Establishment,2 - Operations - Learning Disability,LDP South Cambs - Special Needs,Residential Independent Sector
Cambridgeshire County Council,26-Jan-17,22457299-14728504,-1198.04,Caretech Community Services,Care Establishment,2 - Operations - Learning Disability,LDP South Cambs Locality - Care,Residential Independent Sector
Cambridgeshire County Council,26-Jan-17,22457301-14728506,-1198.04,Caretech Community Services,Care Establishment,2 - Operations - Learning Disability,LDP South Cambs Locality - Care,Residential Independent Sector
Cambridgeshire County Council,26-Jan-17,22457302-14728507,-1198.04,Caretech Community Services,Care Establishment,2 - Operations - Learning Disability,LDP South Cambs - Special Needs,Residential Independent Sector
Cambridgeshire County Council,26-Jan-17,22457305-14728510,-1198.04,Caretech Community Services,Care Establishment,2 - Operations - Learning Disability,LDP South Cambs Locality - Care,Residential Independent Sector
Cambridgeshire County Council,26-Jan-17,22457306-14728511,-1198.04,Caretech Community Services,Care Establishment,2 - Operations - Learning Disability,LDP South Cambs Locality - Care,Residential Independent Sector
Cambridgeshire County Council,26-Jan-17,22457307-14728512,-1198.04,Caretech Community Services,Care Establishment,2 - Operations - Learning Disability,LDP South Cambs Locality - Care,Residential Independent Sector
Cambridgeshire County Council,26-Jan-17,22457308-14728513,-1198.04,Caretech Community Services,Care Establishment,2 - Operations - Learning Disability,LDP South Cambs Locality - Care,Residential Independent Sector
Cambridgeshire County Council,26-Jan-17,22457315-14728520,-1198.04,Caretech Community Services,Care Establishment,2 - Operations - Learning Disability,LDP South Cambs - Special Needs,Residential Independent Sector
Cambridgeshire County Council,26-Jan-17,22457318-14728523,-1198.04,Caretech Community Services,Care Establishment,2 - Operations - Learning Disability,LDP South Cambs Locality - Care,Residential Independent Sector
Cambridgeshire County Council,26-Jan-17,22457319-14728524,-1198.04,Caretech Community Services,Care Establishment,2 - Operations - Learning Disability,LDP South Cambs Locality - Care,Residential Independent Sector
Cambridgeshire County Council,26-Jan-17,22457320-14728525,-1198.04,Caretech Community Services,Care Establishment,2 - Operations - Learning Disability,LDP South Cambs - Special Needs,Residential Independent Sector
Cambridgeshire County Council,26-Jan-17,22457324-14728529,-1198.04,Caretech Community Services,Care Establishment,2 - Operations - Learning Disability,LDP South Cambs Locality - Care,Residential Independent Sector
Cambridgeshire County Council,26-Jan-17,22457325-14728530,-1198.04,Caretech Community Services,Care Establishment,2 - Operations - Learning Disability,LDP South Cambs Locality - Care,Residential Independent Sector
Cambridgeshire County Council,23-Jan-17,22418303-14711568,-1172.1,Guidant Group,Trade Supplier,S&C,PPOS - Admissions Service,Pay - Agency Staff
Cambridgeshire County Council,23-Jan-17,22316438-14711645,-1041.04,Nexus Fostering Ltd,Care Establishment,S&C,Placements - Social Care,Agency Placements - Out County
Cambridgeshire County Council,05-Jan-17,22346021-14624211,-1026.89,Caretech Community Services,Care Establishment,2 - Operations - Learning Disability,LDP South Cambs Locality - Care,Residential Independent Sector
Cambridgeshire County Council,13-Jan-17,22397030-14668834,-1026.89,Caretech Community Services,Care Establishment,2 - Operations - Learning Disability,LDP South Cambs - Special Needs,Residential Independent Sector
Cambridgeshire County Council,19-Jan-17,22411412-14694747,-1026.89,Caretech Community Services,Care Establishment,2 - Operations - Learning Disability,LDP South Cambs Locality - Care,Residential Independent Sector
Cambridgeshire County Council,26-Jan-17,22457287-14728492,-1026.89,Caretech Community Services,Care Establishment,2 - Operations - Learning Disability,LDP South Cambs - Special Needs,Residential Independent Sector
Cambridgeshire County Council,05-Jan-17,22254763-14630200,-1000,Social Care Solutions Ltd,Care Establishment,2 - Operations - Learning Disability,LDP E Cambs Locality - Care,Day and Domicillary Care Independent Sector
Cambridgeshire County Council,05-Jan-17,22254765-14630201,-1000,Social Care Solutions Ltd,Care Establishment,2 - Operations - Learning Disability,LDP E Cambs Locality - Care,Day and Domicillary Care Independent Sector
Cambridgeshire County Council,05-Jan-17,22254767-14630202,-1000,Social Care Solutions Ltd,Care Establishment,2 - Operations - Learning Disability,LDP E Cambs Locality - Care,Day and Domicillary Care Independent Sector
Cambridgeshire County Council,05-Jan-17,22254768-14630203,-1000,Social Care Solutions Ltd,Care Establishment,2 - Operations - Learning Disability,LDP E Cambs Locality - Care,Day and Domicillary Care Independent Sector
Cambridgeshire County Council,05-Jan-17,22254769-14630204,-1000,Social Care Solutions Ltd,Care Establishment,2 - Operations - Learning Disability,LDP E Cambs Locality - Care,Day and Domicillary Care Independent Sector
Cambridgeshire County Council,05-Jan-17,22254770-14630205,-1000,Social Care Solutions Ltd,Care Establishment,2 - Operations - Learning Disability,LDP E Cambs Locality - Care,Day and Domicillary Care Independent Sector
Cambridgeshire County Council,05-Jan-17,22254771-14630206,-1000,Social Care Solutions Ltd,Care Establishment,2 - Operations - Learning Disability,LDP E Cambs Locality - Care,Day and Domicillary Care Independent Sector
Cambridgeshire County Council,05-Jan-17,22254772-14630207,-1000,Social Care Solutions Ltd,Care Establishment,2 - Operations - Learning Disability,LDP E Cambs Locality - Care,Day and Domicillary Care Independent Sector
Cambridgeshire County Council,05-Jan-17,22254773-14630208,-1000,Social Care Solutions Ltd,Care Establishment,2 - Operations - Learning Disability,LDP E Cambs Locality - Care,Day and Domicillary Care Independent Sector
Cambridgeshire County Council,19-Jan-17,22413031-14695654,-990,Bramley Court,Care Establishment,2 - Commissioning - Older people Pool,Older People - City & South,Residential Independent Sector
Cambridgeshire County Council,19-Jan-17,22413032-14695655,-990,Bramley Court,Care Establishment,2 - Commissioning - Older people Pool,Older People - City & South,Residential Independent Sector
Cambridgeshire County Council,19-Jan-17,22413033-14695656,-990,Bramley Court,Care Establishment,2 - Commissioning - Older people Pool,Older People - City & South,Residential Independent Sector
Cambridgeshire County Council,19-Jan-17,22413034-14695657,-990,Bramley Court,Care Establishment,2 - Commissioning - Older people Pool,Older People - City & South,Residential Independent Sector
Cambridgeshire County Council,05-Jan-17,22257388-14617502,-959.78,Askham Place Pd,Care Establishment,3 - Operations - Countywide Services,Countywide PD Service - Care,Respite Independent Sector
Cambridgeshire County Council,05-Jan-17,22257389-14617503,-959.78,Askham Place Pd,Care Establishment,3 - Operations - Countywide Services,Countywide PD Service - Care,Respite Independent Sector
Cambridgeshire County Council,05-Jan-17,22253679-14617504,-959.78,Askham Place Pd,Care Establishment,3 - Operations - Countywide Services,Countywide PD Service - Care,Respite Independent Sector
Cambridgeshire County Council,05-Jan-17,22253680-14617505,-959.78,Askham Place Pd,Care Establishment,3 - Operations - Countywide Services,Countywide PD Service - Care,Respite Independent Sector
Cambridgeshire County Council,05-Jan-17,22253681-14617506,-959.78,Askham Place Pd,Care Establishment,3 - Operations - Countywide Services,Countywide PD Service - Care,Respite Independent Sector
Cambridgeshire County Council,05-Jan-17,22253682-14617507,-959.78,Askham Place Pd,Care Establishment,3 - Operations - Countywide Services,Countywide PD Service - Care,Respite Independent Sector
Cambridgeshire County Council,05-Jan-17,22253683-14617508,-959.78,Askham Place Pd,Care Establishment,3 - Operations - Countywide Services,Countywide PD Service - Care,Respite Independent Sector
Cambridgeshire County Council,05-Jan-17,22253685-14617510,-959.78,Askham Place Pd,Care Establishment,3 - Operations - Countywide Services,Countywide PD Service - Care,Respite Independent Sector
Cambridgeshire County Council,05-Jan-17,22253686-14617511,-959.78,Askham Place Pd,Care Establishment,3 - Operations - Countywide Services,Countywide PD Service - Care,Respite Independent Sector
Cambridgeshire County Council,19-Jan-17,22387814-14693688,-926.11,Making Space#1,Care Establishment,3 - Operations - Countywide Services,Countywide PD Service - Care,Nursing Independent Sector
Cambridgeshire County Council,19-Jan-17,22387818-14693692,-926.11,Making Space#1,Care Establishment,3 - Operations - Countywide Services,Countywide PD Service - Care,Nursing Independent Sector
Cambridgeshire County Council,19-Jan-17,22387821-14693695,-926.11,Making Space#1,Care Establishment,3 - Operations - Countywide Services,Countywide PD Service - Care,Nursing Independent Sector
Cambridgeshire County Council,19-Jan-17,22387807-14693681,-926.11,Making Space#1,Care Establishment,3 - Operations - Countywide Services,Countywide PD Service - Care,Nursing Independent Sector
Cambridgeshire County Council,19-Jan-17,22387810-14693684,-926.11,Making Space#1,Care Establishment,3 - Operations - Countywide Services,Countywide PD Service - Care,Nursing Independent Sector
Cambridgeshire County Council,19-Jan-17,22387812-14693686,-926.11,Making Space#1,Care Establishment,3 - Operations - Countywide Services,Countywide PD Service - Care,Nursing Independent Sector
Cambridgeshire County Council,19-Jan-17,22387815-14693689,-926.11,Making Space#1,Care Establishment,3 - Operations - Countywide Services,Countywide PD Service - Care,Nursing Independent Sector
Cambridgeshire County Council,19-Jan-17,22387817-14693691,-926.11,Making Space#1,Care Establishment,3 - Operations - Countywide Services,Countywide PD Service - Care,Nursing Independent Sector
Cambridgeshire County Council,19-Jan-17,22387819-14693693,-926.11,Making Space#1,Care Establishment,3 - Operations - Countywide Services,Countywide PD Service - Care,Nursing Independent Sector
Cambridgeshire County Council,19-Jan-17,22387823-14693697,-926.11,Making Space#1,Care Establishment,3 - Operations - Countywide Services,Countywide PD Service - Care,Nursing Independent Sector
Cambridgeshire County Council,19-Jan-17,22387824-14693698,-926.11,Making Space#1,Care Establishment,3 - Operations - Countywide Services,Countywide PD Service - Care,Nursing Independent Sector
Cambridgeshire County Council,19-Jan-17,22387829-14693703,-926.11,Making Space#1,Care Establishment,3 - Operations - Countywide Services,Countywide PD Service - Care,Nursing Independent Sector
Cambridgeshire County Council,19-Jan-17,22387830-14693704,-926.11,Making Space#1,Care Establishment,3 - Operations - Countywide Services,Countywide PD Service - Care,Nursing Independent Sector
Cambridgeshire County Council,19-Jan-17,22344197-14693706,-926.11,Making Space#1,Care Establishment,3 - Operations - Countywide Services,Countywide PD Service - Care,Nursing Independent Sector
Cambridgeshire County Council,19-Jan-17,22344199-14693708,-926.11,Making Space#1,Care Establishment,3 - Operations - Countywide Services,Countywide PD Service - Care,Nursing Independent Sector
Cambridgeshire County Council,19-Jan-17,22344201-14693710,-926.11,Making Space#1,Care Establishment,3 - Operations - Countywide Services,Countywide PD Service - Care,Nursing Independent Sector
Cambridgeshire County Council,19-Jan-17,22344202-14693711,-926.11,Making Space#1,Care Establishment,3 - Operations - Countywide Services,Countywide PD Service - Care,Nursing Independent Sector
Cambridgeshire County Council,19-Jan-17,22344205-14693714,-926.11,Making Space#1,Care Establishment,3 - Operations - Countywide Services,Countywide PD Service - Care,Nursing Independent Sector
Cambridgeshire County Council,19-Jan-17,22344207-14693716,-926.11,Making Space#1,Care Establishment,3 - Operations - Countywide Services,Countywide PD Service - Care,Nursing Independent Sector
Cambridgeshire County Council,19-Jan-17,22344209-14693718,-926.11,Making Space#1,Care Establishment,3 - Operations - Countywide Services,Countywide PD Service - Care,Nursing Independent Sector
Cambridgeshire County Council,19-Jan-17,22344210-14693719,-926.11,Making Space#1,Care Establishment,3 - Operations - Countywide Services,Countywide PD Service - Care,Nursing Independent Sector
Cambridgeshire County Council,19-Jan-17,22344212-14693721,-926.11,Making Space#1,Care Establishment,3 - Operations - Countywide Services,Countywide PD Service - Care,Nursing Independent Sector
Cambridgeshire County Council,19-Jan-17,22344213-14693722,-926.11,Making Space#1,Care Establishment,3 - Operations - Countywide Services,Countywide PD Service - Care,Nursing Independent Sector
Cambridgeshire County Council,19-Jan-17,22344214-14693723,-926.11,Making Space#1,Care Establishment,3 - Operations - Countywide Services,Countywide PD Service - Care,Nursing Independent Sector
Cambridgeshire County Council,19-Jan-17,22344215-14693724,-926.11,Making Space#1,Care Establishment,3 - Operations - Countywide Services,Countywide PD Service - Care,Nursing Independent Sector
Cambridgeshire County Council,19-Jan-17,22344216-14693725,-926.11,Making Space#1,Care Establishment,3 - Operations - Countywide Services,Countywide PD Service - Care,Nursing Independent Sector
Cambridgeshire County Council,19-Jan-17,22344217-14693726,-926.11,Making Space#1,Care Establishment,3 - Operations - Countywide Services,Countywide PD Service - Care,Nursing Independent Sector
Cambridgeshire County Council,19-Jan-17,22344220-14693729,-926.11,Making Space#1,Care Establishment,3 - Operations - Countywide Services,Countywide PD Service - Care,Nursing Independent Sector
Cambridgeshire County Council,19-Jan-17,22344221-14693730,-926.11,Making Space#1,Care Establishment,3 - Operations - Countywide Services,Countywide PD Service - Care,Nursing Independent Sector
Cambridgeshire County Council,19-Jan-17,22344224-14693733,-926.11,Making Space#1,Care Establishment,3 - Operations - Countywide Services,Countywide PD Service - Care,Nursing Independent Sector
Cambridgeshire County Council,19-Jan-17,22344225-14693734,-926.11,Making Space#1,Care Establishment,3 - Operations - Countywide Services,Countywide PD Service - Care,Nursing Independent Sector
Cambridgeshire County Council,19-Jan-17,22344226-14693735,-926.11,Making Space#1,Care Establishment,3 - Operations - Countywide Services,Countywide PD Service - Care,Nursing Independent Sector
Cambridgeshire County Council,19-Jan-17,22344228-14693737,-926.11,Making Space#1,Care Establishment,3 - Operations - Countywide Services,Countywide PD Service - Care,Nursing Independent Sector
Cambridgeshire County Council,19-Jan-17,22410577-14693925,-926.11,Making Space#1,Care Establishment,3 - Operations - Countywide Services,Countywide PD Service - Care,Nursing Independent Sector
Cambridgeshire County Council,19-Jan-17,22410579-14693927,-926.11,Making Space#1,Care Establishment,3 - Operations - Countywide Services,Countywide PD Service - Care,Nursing Independent Sector
Cambridgeshire County Council,19-Jan-17,22410580-14693928,-926.11,Making Space#1,Care Establishment,3 - Operations - Countywide Services,Countywide PD Service - Care,Nursing Independent Sector
Cambridgeshire County Council,19-Jan-17,22410583-14693931,-926.11,Making Space#1,Care Establishment,3 - Operations - Countywide Services,Countywide PD Service - Care,Nursing Independent Sector
Cambridgeshire County Council,19-Jan-17,22410584-14693932,-926.11,Making Space#1,Care Establishment,3 - Operations - Countywide Services,Countywide PD Service - Care,Nursing Independent Sector
Cambridgeshire County Council,19-Jan-17,22344233-14693742,-926.11,Making Space#1,Care Establishment,3 - Operations - Countywide Services,Countywide PD Service - Care,Nursing Independent Sector
Cambridgeshire County Council,19-Jan-17,22344235-14693744,-926.11,Making Space#1,Care Establishment,3 - Operations - Countywide Services,Countywide PD Service - Care,Nursing Independent Sector
Cambridgeshire County Council,19-Jan-17,22344237-14693746,-926.11,Making Space#1,Care Establishment,3 - Operations - Countywide Services,Countywide PD Service - Care,Nursing Independent Sector
Cambridgeshire County Council,19-Jan-17,22344238-14693747,-926.11,Making Space#1,Care Establishment,3 - Operations - Countywide Services,Countywide PD Service - Care,Nursing Independent Sector
Cambridgeshire County Council,19-Jan-17,22344240-14693749,-926.11,Making Space#1,Care Establishment,3 - Operations - Countywide Services,Countywide PD Service - Care,Nursing Independent Sector
Cambridgeshire County Council,19-Jan-17,22344243-14693752,-926.11,Making Space#1,Care Establishment,3 - Operations - Countywide Services,Countywide PD Service - Care,Nursing Independent Sector
Cambridgeshire County Council,19-Jan-17,22344244-14693753,-926.11,Making Space#1,Care Establishment,3 - Operations - Countywide Services,Countywide PD Service - Care,Nursing Independent Sector
Cambridgeshire County Council,19-Jan-17,22344249-14693758,-926.11,Making Space#1,Care Establishment,3 - Operations - Countywide Services,Countywide PD Service - Care,Nursing Independent Sector
Cambridgeshire County Council,19-Jan-17,22344251-14693760,-926.11,Making Space#1,Care Establishment,3 - Operations - Countywide Services,Countywide PD Service - Care,Nursing Independent Sector
Cambridgeshire County Council,19-Jan-17,22344253-14693762,-926.11,Making Space#1,Care Establishment,3 - Operations - Countywide Services,Countywide PD Service - Care,Nursing Independent Sector
Cambridgeshire County Council,19-Jan-17,22344254-14693763,-926.11,Making Space#1,Care Establishment,3 - Operations - Countywide Services,Countywide PD Service - Care,Nursing Independent Sector
Cambridgeshire County Council,19-Jan-17,22344256-14693765,-926.11,Making Space#1,Care Establishment,3 - Operations - Countywide Services,Countywide PD Service - Care,Nursing Independent Sector
Cambridgeshire County Council,19-Jan-17,22387781-14693767,-926.11,Making Space#1,Care Establishment,3 - Operations - Countywide Services,Countywide PD Service - Care,Nursing Independent Sector
Cambridgeshire County Council,19-Jan-17,22387783-14693769,-926.11,Making Space#1,Care Establishment,3 - Operations - Countywide Services,Countywide PD Service - Care,Nursing Independent Sector
Cambridgeshire County Council,19-Jan-17,22387784-14693770,-926.11,Making Space#1,Care Establishment,3 - Operations - Countywide Services,Countywide PD Service - Care,Nursing Independent Sector
Cambridgeshire County Council,19-Jan-17,22387785-14693771,-926.11,Making Space#1,Care Establishment,3 - Operations - Countywide Services,Countywide PD Service - Care,Nursing Independent Sector
Cambridgeshire County Council,19-Jan-17,22387786-14693772,-926.11,Making Space#1,Care Establishment,3 - Operations - Countywide Services,Countywide PD Service - Care,Nursing Independent Sector
Cambridgeshire County Council,19-Jan-17,22387789-14693775,-926.11,Making Space#1,Care Establishment,3 - Operations - Countywide Services,Countywide PD Service - Care,Nursing Independent Sector
Cambridgeshire County Council,19-Jan-17,22387790-14693776,-926.11,Making Space#1,Care Establishment,3 - Operations - Countywide Services,Countywide PD Service - Care,Nursing Independent Sector
Cambridgeshire County Council,19-Jan-17,22387791-14693777,-926.11,Making Space#1,Care Establishment,3 - Operations - Countywide Services,Countywide PD Service - Care,Nursing Independent Sector
Cambridgeshire County Council,19-Jan-17,22308397-14693785,-926.11,Making Space#1,Care Establishment,3 - Operations - Countywide Services,Countywide PD Service - Care,Nursing Independent Sector
Cambridgeshire County Council,19-Jan-17,22308400-14693788,-926.11,Making Space#1,Care Establishment,3 - Operations - Countywide Services,Countywide PD Service - Care,Nursing Independent Sector
Cambridgeshire County Council,19-Jan-17,22308401-14693789,-926.11,Making Space#1,Care Establishment,3 - Operations - Countywide Services,Countywide PD Service - Care,Nursing Independent Sector
Cambridgeshire County Council,19-Jan-17,22308402-14693790,-926.11,Making Space#1,Care Establishment,3 - Operations - Countywide Services,Countywide PD Service - Care,Nursing Independent Sector
Cambridgeshire County Council,19-Jan-17,22308403-14693791,-926.11,Making Space#1,Care Establishment,3 - Operations - Countywide Services,Countywide PD Service - Care,Nursing Independent Sector
Cambridgeshire County Council,19-Jan-17,22308409-14693797,-926.11,Making Space#1,Care Establishment,3 - Operations - Countywide Services,Countywide PD Service - Care,Nursing Independent Sector
Cambridgeshire County Council,19-Jan-17,22308410-14693798,-926.11,Making Space#1,Care Establishment,3 - Operations - Countywide Services,Countywide PD Service - Care,Nursing Independent Sector
Cambridgeshire County Council,19-Jan-17,22308412-14693800,-926.11,Making Space#1,Care Establishment,3 - Operations - Countywide Services,Countywide PD Service - Care,Nursing Independent Sector
Cambridgeshire County Council,19-Jan-17,22308413-14693801,-926.11,Making Space#1,Care Establishment,3 - Operations - Countywide Services,Countywide PD Service - Care,Nursing Independent Sector
Cambridgeshire County Council,19-Jan-17,22308414-14693802,-926.11,Making Space#1,Care Establishment,3 - Operations - Countywide Services,Countywide PD Service - Care,Nursing Independent Sector
Cambridgeshire County Council,19-Jan-17,22308415-14693803,-926.11,Making Space#1,Care Establishment,3 - Operations - Countywide Services,Countywide PD Service - Care,Nursing Independent Sector
Cambridgeshire County Council,19-Jan-17,22308417-14693805,-926.11,Making Space#1,Care Establishment,3 - Operations - Countywide Services,Countywide PD Service - Care,Nursing Independent Sector
Cambridgeshire County Council,19-Jan-17,22308419-14693807,-926.11,Making Space#1,Care Establishment,3 - Operations - Countywide Services,Countywide PD Service - Care,Nursing Independent Sector
Cambridgeshire County Council,19-Jan-17,22308421-14693809,-926.11,Making Space#1,Care Establishment,3 - Operations - Countywide Services,Countywide PD Service - Care,Nursing Independent Sector
Cambridgeshire County Council,19-Jan-17,22308424-14693812,-926.11,Making Space#1,Care Establishment,3 - Operations - Countywide Services,Countywide PD Service - Care,Nursing Independent Sector
Cambridgeshire County Council,19-Jan-17,22308427-14693815,-926.11,Making Space#1,Care Establishment,3 - Operations - Countywide Services,Countywide PD Service - Care,Nursing Independent Sector
Cambridgeshire County Council,19-Jan-17,22308428-14693816,-926.11,Making Space#1,Care Establishment,3 - Operations - Countywide Services,Countywide PD Service - Care,Nursing Independent Sector
Cambridgeshire County Council,19-Jan-17,22308430-14693818,-926.11,Making Space#1,Care Establishment,3 - Operations - Countywide Services,Countywide PD Service - Care,Nursing Independent Sector
Cambridgeshire County Council,19-Jan-17,22308431-14693819,-926.11,Making Space#1,Care Establishment,3 - Operations - Countywide Services,Countywide PD Service - Care,Nursing Independent Sector
Cambridgeshire County Council,19-Jan-17,22308433-14693821,-926.11,Making Space#1,Care Establishment,3 - Operations - Countywide Services,Countywide PD Service - Care,Nursing Independent Sector
Cambridgeshire County Council,19-Jan-17,22308436-14693824,-926.11,Making Space#1,Care Establishment,3 - Operations - Countywide Services,Countywide PD Service - Care,Nursing Independent Sector
Cambridgeshire County Council,19-Jan-17,22308437-14693825,-926.11,Making Space#1,Care Establishment,3 - Operations - Countywide Services,Countywide PD Service - Care,Nursing Independent Sector
Cambridgeshire County Council,19-Jan-17,22308438-14693826,-926.11,Making Space#1,Care Establishment,3 - Operations - Countywide Services,Countywide PD Service - Care,Nursing Independent Sector
Cambridgeshire County Council,19-Jan-17,22308442-14693830,-926.11,Making Space#1,Care Establishment,3 - Operations - Countywide Services,Countywide PD Service - Care,Nursing Independent Sector
Cambridgeshire County Council,19-Jan-17,22308444-14693832,-926.11,Making Space#1,Care Establishment,3 - Operations - Countywide Services,Countywide PD Service - Care,Nursing Independent Sector
Cambridgeshire County Council,19-Jan-17,22308445-14693833,-926.11,Making Space#1,Care Establishment,3 - Operations - Countywide Services,Countywide PD Service - Care,Nursing Independent Sector
Cambridgeshire County Council,19-Jan-17,22308447-14693835,-926.11,Making Space#1,Care Establishment,3 - Operations - Countywide Services,Countywide PD Service - Care,Nursing Independent Sector
Cambridgeshire County Council,19-Jan-17,22308448-14693836,-926.11,Making Space#1,Care Establishment,3 - Operations - Countywide Services,Countywide PD Service - Care,Nursing Independent Sector
Cambridgeshire County Council,19-Jan-17,22308453-14693841,-926.11,Making Space#1,Care Establishment,3 - Operations - Countywide Services,Countywide PD Service - Care,Nursing Independent Sector
Cambridgeshire County Council,19-Jan-17,22308454-14693842,-926.11,Making Space#1,Care Establishment,3 - Operations - Countywide Services,Countywide PD Service - Care,Nursing Independent Sector
Cambridgeshire County Council,19-Jan-17,22308456-14693844,-926.11,Making Space#1,Care Establishment,3 - Operations - Countywide Services,Countywide PD Service - Care,Nursing Independent Sector
Cambridgeshire County Council,19-Jan-17,22308459-14693847,-926.11,Making Space#1,Care Establishment,3 - Operations - Countywide Services,Countywide PD Service - Care,Nursing Independent Sector
Cambridgeshire County Council,19-Jan-17,22410591-14693869,-926.11,Making Space#1,Care Establishment,3 - Operations - Countywide Services,Countywide PD Service - Care,Nursing Independent Sector
Cambridgeshire County Council,19-Jan-17,22410595-14693873,-926.11,Making Space#1,Care Establishment,3 - Operations - Countywide Services,Countywide PD Service - Care,Nursing Independent Sector
Cambridgeshire County Council,19-Jan-17,22410596-14693874,-926.11,Making Space#1,Care Establishment,3 - Operations - Countywide Services,Countywide PD Service - Care,Nursing Independent Sector
Cambridgeshire County Council,19-Jan-17,22410598-14693876,-926.11,Making Space#1,Care Establishment,3 - Operations - Countywide Services,Countywide PD Service - Care,Nursing Independent Sector
Cambridgeshire County Council,19-Jan-17,22410604-14693882,-926.11,Making Space#1,Care Establishment,3 - Operations - Countywide Services,Countywide PD Service - Care,Nursing Independent Sector
Cambridgeshire County Council,19-Jan-17,22410605-14693883,-926.11,Making Space#1,Care Establishment,3 - Operations - Countywide Services,Countywide PD Service - Care,Nursing Independent Sector
Cambridgeshire County Council,19-Jan-17,22410607-14693885,-926.11,Making Space#1,Care Establishment,3 - Operations - Countywide Services,Countywide PD Service - Care,Nursing Independent Sector
Cambridgeshire County Council,19-Jan-17,22410608-14693886,-926.11,Making Space#1,Care Establishment,3 - Operations - Countywide Services,Countywide PD Service - Care,Nursing Independent Sector
Cambridgeshire County Council,19-Jan-17,22410609-14693887,-926.11,Making Space#1,Care Establishment,3 - Operations - Countywide Services,Countywide PD Service - Care,Nursing Independent Sector
Cambridgeshire County Council,19-Jan-17,22410610-14693888,-926.11,Making Space#1,Care Establishment,3 - Operations - Countywide Services,Countywide PD Service - Care,Nursing Independent Sector
Cambridgeshire County Council,19-Jan-17,22410611-14693889,-926.11,Making Space#1,Care Establishment,3 - Operations - Countywide Services,Countywide PD Service - Care,Nursing Independent Sector
Cambridgeshire County Council,19-Jan-17,22410613-14693891,-926.11,Making Space#1,Care Establishment,3 - Operations - Countywide Services,Countywide PD Service - Care,Nursing Independent Sector
Cambridgeshire County Council,19-Jan-17,22410614-14693892,-926.11,Making Space#1,Care Establishment,3 - Operations - Countywide Services,Countywide PD Service - Care,Nursing Independent Sector
Cambridgeshire County Council,19-Jan-17,22410615-14693893,-926.11,Making Space#1,Care Establishment,3 - Operations - Countywide Services,Countywide PD Service - Care,Nursing Independent Sector
Cambridgeshire County Council,19-Jan-17,22410620-14693898,-926.11,Making Space#1,Care Establishment,3 - Operations - Countywide Services,Countywide PD Service - Care,Nursing Independent Sector
Cambridgeshire County Council,19-Jan-17,22410621-14693899,-926.11,Making Space#1,Care Establishment,3 - Operations - Countywide Services,Countywide PD Service - Care,Nursing Independent Sector
Cambridgeshire County Council,19-Jan-17,22410622-14693900,-926.11,Making Space#1,Care Establishment,3 - Operations - Countywide Services,Countywide PD Service - Care,Nursing Independent Sector
Cambridgeshire County Council,19-Jan-17,22410623-14693901,-926.11,Making Space#1,Care Establishment,3 - Operations - Countywide Services,Countywide PD Service - Care,Nursing Independent Sector
Cambridgeshire County Council,19-Jan-17,22410624-14693902,-926.11,Making Space#1,Care Establishment,3 - Operations - Countywide Services,Countywide PD Service - Care,Nursing Independent Sector
Cambridgeshire County Council,19-Jan-17,22410630-14693908,-926.11,Making Space#1,Care Establishment,3 - Operations - Countywide Services,Countywide PD Service - Care,Nursing Independent Sector
Cambridgeshire County Council,19-Jan-17,22410632-14693910,-926.11,Making Space#1,Care Establishment,3 - Operations - Countywide Services,Countywide PD Service - Care,Nursing Independent Sector
Cambridgeshire County Council,19-Jan-17,22410633-14693911,-926.11,Making Space#1,Care Establishment,3 - Operations - Countywide Services,Countywide PD Service - Care,Nursing Independent Sector
Cambridgeshire County Council,19-Jan-17,22410635-14693913,-926.11,Making Space#1,Care Establishment,3 - Operations - Countywide Services,Countywide PD Service - Care,Nursing Independent Sector
Cambridgeshire County Council,19-Jan-17,22410636-14693914,-926.11,Making Space#1,Care Establishment,3 - Operations - Countywide Services,Countywide PD Service - Care,Nursing Independent Sector
Cambridgeshire County Council,19-Jan-17,22410568-14693916,-926.11,Making Space#1,Care Establishment,3 - Operations - Countywide Services,Countywide PD Service - Care,Nursing Independent Sector
Cambridgeshire County Council,19-Jan-17,22410572-14693920,-926.11,Making Space#1,Care Establishment,3 - Operations - Countywide Services,Countywide PD Service - Care,Nursing Independent Sector
Cambridgeshire County Council,19-Jan-17,22410574-14693922,-926.11,Making Space#1,Care Establishment,3 - Operations - Countywide Services,Countywide PD Service - Care,Nursing Independent Sector
Cambridgeshire County Council,19-Jan-17,22389859-14693654,-926.11,Making Space#1,Care Establishment,3 - Operations - Countywide Services,Countywide PD Service - Care,Nursing Independent Sector
Cambridgeshire County Council,19-Jan-17,22389861-14693656,-926.11,Making Space#1,Care Establishment,3 - Operations - Countywide Services,Countywide PD Service - Care,Nursing Independent Sector
Cambridgeshire County Council,19-Jan-17,22389863-14693658,-926.11,Making Space#1,Care Establishment,3 - Operations - Countywide Services,Countywide PD Service - Care,Nursing Independent Sector
Cambridgeshire County Council,19-Jan-17,22389866-14693661,-926.11,Making Space#1,Care Establishment,3 - Operations - Countywide Services,Countywide PD Service - Care,Nursing Independent Sector
Cambridgeshire County Council,19-Jan-17,22389868-14693663,-926.11,Making Space#1,Care Establishment,3 - Operations - Countywide Services,Countywide PD Service - Care,Nursing Independent Sector
Cambridgeshire County Council,19-Jan-17,22389869-14693664,-926.11,Making Space#1,Care Establishment,3 - Operations - Countywide Services,Countywide PD Service - Care,Nursing Independent Sector
Cambridgeshire County Council,19-Jan-17,22389870-14693665,-926.11,Making Space#1,Care Establishment,3 - Operations - Countywide Services,Countywide PD Service - Care,Nursing Independent Sector
Cambridgeshire County Council,19-Jan-17,22387794-14693668,-926.11,Making Space#1,Care Establishment,3 - Operations - Countywide Services,Countywide PD Service - Care,Nursing Independent Sector
Cambridgeshire County Council,19-Jan-17,22387796-14693670,-926.11,Making Space#1,Care Establishment,3 - Operations - Countywide Services,Countywide PD Service - Care,Nursing Independent Sector
Cambridgeshire County Council,19-Jan-17,22387798-14693672,-926.11,Making Space#1,Care Establishment,3 - Operations - Countywide Services,Countywide PD Service - Care,Nursing Independent Sector
Cambridgeshire County Council,19-Jan-17,22387799-14693673,-926.11,Making Space#1,Care Establishment,3 - Operations - Countywide Services,Countywide PD Service - Care,Nursing Independent Sector
Cambridgeshire County Council,27-Jan-17,22447414-14736540,-895.51,Cambridgeshire And Peterborough Nhs Foundation Trust,Trust (Other),E&P,YOS - MST Problem Sexual Behaviour,Other Hired Contract Services
Cambridgeshire County Council,18-Jan-17,22399602-14685775,-891,Whippet Coaches Limited,Trade Supplier,S&C,H to S Transport - Secondary,Home to School - Contract
Cambridgeshire County Council,16-Jan-17,22399659-14675582,-871.35,School'S Out - Out Of School Club,Local Clubs & Groups,S&C,Procurement - TA Inclusion & Access (EARLY YEARS),Care & Ed Partner Organisations
Cambridgeshire County Council,05-Jan-17,21323814-14632580,-868.57,Orchard Manor (Scope),Care Establishment,2 - Operations - Learning Disability,LDP South Cambs Locality - Care,Residential Independent Sector
Cambridgeshire County Council,31-Jan-17,22376422-14743535,-859.74,Fosterplus Ltd,Care Establishment,S&C,Placements - Social Care,Agency Placements - Out County
Cambridgeshire County Council,13-Jan-17,22393182-14670823,-854,Conifer Lodge,Care Establishment,2 - Operations - Learning Disability,LDP Fenland Locality - Care,Residential Independent Sector
Cambridgeshire County Council,13-Jan-17,22393222-14670824,-854,Conifer Lodge,Care Establishment,2 - Operations - Learning Disability,LDP Fenland Locality - Care,Residential Independent Sector
Cambridgeshire County Council,13-Jan-17,22393223-14670825,-854,Conifer Lodge,Care Establishment,2 - Operations - Learning Disability,LDP Fenland Locality - Care,Residential Independent Sector
Cambridgeshire County Council,13-Jan-17,22393226-14670828,-854,Conifer Lodge,Care Establishment,2 - Operations - Learning Disability,LDP Fenland Locality - Care,Residential Independent Sector
Cambridgeshire County Council,13-Jan-17,22393227-14670829,-854,Conifer Lodge,Care Establishment,2 - Operations - Learning Disability,LDP Fenland Locality - Care,Residential Independent Sector
Cambridgeshire County Council,13-Jan-17,22393229-14670831,-854,Conifer Lodge,Care Establishment,2 - Operations - Learning Disability,LDP Fenland Locality - Care,Residential Independent Sector
Cambridgeshire County Council,13-Jan-17,22393230-14670832,-854,Conifer Lodge,Care Establishment,2 - Operations - Learning Disability,LDP Fenland Locality - Care,Residential Independent Sector
Cambridgeshire County Council,13-Jan-17,22393231-14670833,-854,Conifer Lodge,Care Establishment,2 - Operations - Learning Disability,LDP Fenland Locality - Care,Residential Independent Sector
Cambridgeshire County Council,13-Jan-17,22393232-14670834,-854,Conifer Lodge,Care Establishment,2 - Operations - Learning Disability,LDP Fenland Locality - Care,Residential Independent Sector
Cambridgeshire County Council,13-Jan-17,22393233-14670835,-854,Conifer Lodge,Care Establishment,2 - Operations - Learning Disability,LDP Fenland Locality - Care,Residential Independent Sector
Cambridgeshire County Council,13-Jan-17,22393235-14670837,-854,Conifer Lodge,Care Establishment,2 - Operations - Learning Disability,LDP Fenland Locality - Care,Residential Independent Sector
Cambridgeshire County Council,13-Jan-17,22393238-14670840,-854,Conifer Lodge,Care Establishment,2 - Operations - Learning Disability,LDP Fenland Locality - Care,Residential Independent Sector
Cambridgeshire County Council,13-Jan-17,22393240-14670842,-854,Conifer Lodge,Care Establishment,2 - Operations - Learning Disability,LDP Fenland Locality - Care,Residential Independent Sector
Cambridgeshire County Council,13-Jan-17,22393242-14670844,-854,Conifer Lodge,Care Establishment,2 - Operations - Learning Disability,LDP Fenland Locality - Care,Residential Independent Sector
Cambridgeshire County Council,13-Jan-17,22393245-14670847,-854,Conifer Lodge,Care Establishment,2 - Operations - Learning Disability,LDP Fenland Locality - Care,Residential Independent Sector
Cambridgeshire County Council,13-Jan-17,22393246-14670848,-854,Conifer Lodge,Care Establishment,2 - Operations - Learning Disability,LDP Fenland Locality - Care,Residential Independent Sector
Cambridgeshire County Council,13-Jan-17,22393247-14670849,-854,Conifer Lodge,Care Establishment,2 - Operations - Learning Disability,LDP Fenland Locality - Care,Residential Independent Sector
Cambridgeshire County Council,13-Jan-17,22391064-14671072,-854,Conifer Lodge,Care Establishment,2 - Operations - Learning Disability,LDP Fenland Locality - Care,Residential Independent Sector
Cambridgeshire County Council,13-Jan-17,22391065-14671073,-854,Conifer Lodge,Care Establishment,2 - Operations - Learning Disability,LDP Fenland Locality - Care,Residential Independent Sector
Cambridgeshire County Council,13-Jan-17,22391067-14671075,-854,Conifer Lodge,Care Establishment,2 - Operations - Learning Disability,LDP Fenland Locality - Care,Residential Independent Sector
Cambridgeshire County Council,13-Jan-17,22391068-14671076,-854,Conifer Lodge,Care Establishment,2 - Operations - Learning Disability,LDP Fenland Locality - Care,Residential Independent Sector
Cambridgeshire County Council,13-Jan-17,22393253-14670855,-854,Conifer Lodge,Care Establishment,2 - Operations - Learning Disability,LDP Fenland Locality - Care,Residential Independent Sector
Cambridgeshire County Council,13-Jan-17,22393255-14670857,-854,Conifer Lodge,Care Establishment,2 - Operations - Learning Disability,LDP Fenland Locality - Care,Residential Independent Sector
Cambridgeshire County Council,13-Jan-17,22393256-14670858,-854,Conifer Lodge,Care Establishment,2 - Operations - Learning Disability,LDP Fenland Locality - Care,Residential Independent Sector
Cambridgeshire County Council,13-Jan-17,22393257-14670859,-854,Conifer Lodge,Care Establishment,2 - Operations - Learning Disability,LDP Fenland Locality - Care,Residential Independent Sector
Cambridgeshire County Council,13-Jan-17,22393260-14670862,-854,Conifer Lodge,Care Establishment,2 - Operations - Learning Disability,LDP Fenland Locality - Care,Residential Independent Sector
Cambridgeshire County Council,13-Jan-17,22393262-14670864,-854,Conifer Lodge,Care Establishment,2 - Operations - Learning Disability,LDP Fenland Locality - Care,Residential Independent Sector
Cambridgeshire County Council,13-Jan-17,22393264-14670866,-854,Conifer Lodge,Care Establishment,2 - Operations - Learning Disability,LDP Fenland Locality - Care,Residential Independent Sector
Cambridgeshire County Council,13-Jan-17,22393265-14670867,-854,Conifer Lodge,Care Establishment,2 - Operations - Learning Disability,LDP Fenland Locality - Care,Residential Independent Sector
Cambridgeshire County Council,13-Jan-17,22393266-14670868,-854,Conifer Lodge,Care Establishment,2 - Operations - Learning Disability,LDP Fenland Locality - Care,Residential Independent Sector
Cambridgeshire County Council,13-Jan-17,22393268-14670870,-854,Conifer Lodge,Care Establishment,2 - Operations - Learning Disability,LDP Fenland Locality - Care,Residential Independent Sector
Cambridgeshire County Council,13-Jan-17,22393271-14670873,-854,Conifer Lodge,Care Establishment,2 - Operations - Learning Disability,LDP Fenland Locality - Care,Residential Independent Sector
Cambridgeshire County Council,13-Jan-17,22393273-14670875,-854,Conifer Lodge,Care Establishment,2 - Operations - Learning Disability,LDP Fenland Locality - Care,Residential Independent Sector
Cambridgeshire County Council,13-Jan-17,22393281-14670883,-854,Conifer Lodge,Care Establishment,2 - Operations - Learning Disability,LDP Fenland Locality - Care,Residential Independent Sector
Cambridgeshire County Council,13-Jan-17,22393283-14670885,-854,Conifer Lodge,Care Establishment,2 - Operations - Learning Disability,LDP Fenland Locality - Care,Residential Independent Sector
Cambridgeshire County Council,13-Jan-17,22393287-14670889,-854,Conifer Lodge,Care Establishment,2 - Operations - Learning Disability,LDP Fenland Locality - Care,Residential Independent Sector
Cambridgeshire County Council,13-Jan-17,22390978-14670987,-854,Conifer Lodge,Care Establishment,2 - Operations - Learning Disability,LDP Fenland Locality - Care,Residential Independent Sector
Cambridgeshire County Council,13-Jan-17,22390979-14670988,-854,Conifer Lodge,Care Establishment,2 - Operations - Learning Disability,LDP Fenland Locality - Care,Residential Independent Sector
Cambridgeshire County Council,13-Jan-17,22390980-14670989,-854,Conifer Lodge,Care Establishment,2 - Operations - Learning Disability,LDP Fenland Locality - Care,Residential Independent Sector
Cambridgeshire County Council,13-Jan-17,22390985-14670994,-854,Conifer Lodge,Care Establishment,2 - Operations - Learning Disability,LDP Fenland Locality - Care,Residential Independent Sector
Cambridgeshire County Council,13-Jan-17,22390986-14670995,-854,Conifer Lodge,Care Establishment,2 - Operations - Learning Disability,LDP Fenland Locality - Care,Residential Independent Sector
Cambridgeshire County Council,13-Jan-17,22390987-14670996,-854,Conifer Lodge,Care Establishment,2 - Operations - Learning Disability,LDP Fenland Locality - Care,Residential Independent Sector
Cambridgeshire County Council,13-Jan-17,22390989-14670998,-854,Conifer Lodge,Care Establishment,2 - Operations - Learning Disability,LDP Fenland Locality - Care,Residential Independent Sector
Cambridgeshire County Council,13-Jan-17,22390992-14671001,-854,Conifer Lodge,Care Establishment,2 - Operations - Learning Disability,LDP Fenland Locality - Care,Residential Independent Sector
Cambridgeshire County Council,13-Jan-17,22390995-14671004,-854,Conifer Lodge,Care Establishment,2 - Operations - Learning Disability,LDP Fenland Locality - Care,Residential Independent Sector
Cambridgeshire County Council,13-Jan-17,22390998-14671007,-854,Conifer Lodge,Care Establishment,2 - Operations - Learning Disability,LDP Fenland Locality - Care,Residential Independent Sector
Cambridgeshire County Council,13-Jan-17,22390999-14671008,-854,Conifer Lodge,Care Establishment,2 - Operations - Learning Disability,LDP Fenland Locality - Care,Residential Independent Sector
Cambridgeshire County Council,13-Jan-17,22391001-14671010,-854,Conifer Lodge,Care Establishment,2 - Operations - Learning Disability,LDP Fenland Locality - Care,Residential Independent Sector
Cambridgeshire County Council,13-Jan-17,22391009-14671017,-854,Conifer Lodge,Care Establishment,2 - Operations - Learning Disability,LDP Fenland Locality - Care,Residential Independent Sector
Cambridgeshire County Council,13-Jan-17,22391011-14671019,-854,Conifer Lodge,Care Establishment,2 - Operations - Learning Disability,LDP Fenland Locality - Care,Residential Independent Sector
Cambridgeshire County Council,13-Jan-17,22391012-14671020,-854,Conifer Lodge,Care Establishment,2 - Operations - Learning Disability,LDP Fenland Locality - Care,Residential Independent Sector
Cambridgeshire County Council,13-Jan-17,22391013-14671021,-854,Conifer Lodge,Care Establishment,2 - Operations - Learning Disability,LDP Fenland Locality - Care,Residential Independent Sector
Cambridgeshire County Council,13-Jan-17,22391016-14671024,-854,Conifer Lodge,Care Establishment,2 - Operations - Learning Disability,LDP Fenland Locality - Care,Residential Independent Sector
Cambridgeshire County Council,13-Jan-17,22391019-14671027,-854,Conifer Lodge,Care Establishment,2 - Operations - Learning Disability,LDP Fenland Locality - Care,Residential Independent Sector
Cambridgeshire County Council,13-Jan-17,22391021-14671029,-854,Conifer Lodge,Care Establishment,2 - Operations - Learning Disability,LDP Fenland Locality - Care,Residential Independent Sector
Cambridgeshire County Council,13-Jan-17,22391025-14671033,-854,Conifer Lodge,Care Establishment,2 - Operations - Learning Disability,LDP Fenland Locality - Care,Residential Independent Sector
Cambridgeshire County Council,13-Jan-17,22391026-14671034,-854,Conifer Lodge,Care Establishment,2 - Operations - Learning Disability,LDP Fenland Locality - Care,Residential Independent Sector
Cambridgeshire County Council,13-Jan-17,22391029-14671037,-854,Conifer Lodge,Care Establishment,2 - Operations - Learning Disability,LDP Fenland Locality - Care,Residential Independent Sector
Cambridgeshire County Council,13-Jan-17,22391030-14671038,-854,Conifer Lodge,Care Establishment,2 - Operations - Learning Disability,LDP Fenland Locality - Care,Residential Independent Sector
Cambridgeshire County Council,13-Jan-17,22391031-14671039,-854,Conifer Lodge,Care Establishment,2 - Operations - Learning Disability,LDP Fenland Locality - Care,Residential Independent Sector
Cambridgeshire County Council,13-Jan-17,22391033-14671041,-854,Conifer Lodge,Care Establishment,2 - Operations - Learning Disability,LDP Fenland Locality - Care,Residential Independent Sector
Cambridgeshire County Council,13-Jan-17,22391037-14671045,-854,Conifer Lodge,Care Establishment,2 - Operations - Learning Disability,LDP Fenland Locality - Care,Residential Independent Sector
Cambridgeshire County Council,13-Jan-17,22391038-14671046,-854,Conifer Lodge,Care Establishment,2 - Operations - Learning Disability,LDP Fenland Locality - Care,Residential Independent Sector
Cambridgeshire County Council,13-Jan-17,22391039-14671047,-854,Conifer Lodge,Care Establishment,2 - Operations - Learning Disability,LDP Fenland Locality - Care,Residential Independent Sector
Cambridgeshire County Council,13-Jan-17,22391042-14671050,-854,Conifer Lodge,Care Establishment,2 - Operations - Learning Disability,LDP Fenland Locality - Care,Residential Independent Sector
Cambridgeshire County Council,13-Jan-17,22391044-14671052,-854,Conifer Lodge,Care Establishment,2 - Operations - Learning Disability,LDP Fenland Locality - Care,Residential Independent Sector
Cambridgeshire County Council,13-Jan-17,22391046-14671054,-854,Conifer Lodge,Care Establishment,2 - Operations - Learning Disability,LDP Fenland Locality - Care,Residential Independent Sector
Cambridgeshire County Council,13-Jan-17,22391047-14671055,-854,Conifer Lodge,Care Establishment,2 - Operations - Learning Disability,LDP Fenland Locality - Care,Residential Independent Sector
Cambridgeshire County Council,13-Jan-17,22391053-14671061,-854,Conifer Lodge,Care Establishment,2 - Operations - Learning Disability,LDP Fenland Locality - Care,Residential Independent Sector
Cambridgeshire County Council,13-Jan-17,22391056-14671064,-854,Conifer Lodge,Care Establishment,2 - Operations - Learning Disability,LDP Fenland Locality - Care,Residential Independent Sector
Cambridgeshire County Council,13-Jan-17,22391057-14671065,-854,Conifer Lodge,Care Establishment,2 - Operations - Learning Disability,LDP Fenland Locality - Care,Residential Independent Sector
Cambridgeshire County Council,13-Jan-17,22391058-14671066,-854,Conifer Lodge,Care Establishment,2 - Operations - Learning Disability,LDP Fenland Locality - Care,Residential Independent Sector
Cambridgeshire County Council,13-Jan-17,22391059-14671067,-854,Conifer Lodge,Care Establishment,2 - Operations - Learning Disability,LDP Fenland Locality - Care,Residential Independent Sector
Cambridgeshire County Council,13-Jan-17,22391062-14671070,-854,Conifer Lodge,Care Establishment,2 - Operations - Learning Disability,LDP Fenland Locality - Care,Residential Independent Sector
Cambridgeshire County Council,13-Jan-17,22396659-14670703,-854,Conifer Lodge,Care Establishment,2 - Operations - Learning Disability,LDP Fenland Locality - Care,Residential Independent Sector
Cambridgeshire County Council,13-Jan-17,22396661-14670705,-854,Conifer Lodge,Care Establishment,2 - Operations - Learning Disability,LDP Fenland Locality - Care,Residential Independent Sector
Cambridgeshire County Council,13-Jan-17,22396665-14670709,-854,Conifer Lodge,Care Establishment,2 - Operations - Learning Disability,LDP Fenland Locality - Care,Residential Independent Sector
Cambridgeshire County Council,13-Jan-17,22396666-14670710,-854,Conifer Lodge,Care Establishment,2 - Operations - Learning Disability,LDP Fenland Locality - Care,Residential Independent Sector
Cambridgeshire County Council,13-Jan-17,22396670-14670714,-854,Conifer Lodge,Care Establishment,2 - Operations - Learning Disability,LDP Fenland Locality - Care,Residential Independent Sector
Cambridgeshire County Council,13-Jan-17,22396671-14670715,-854,Conifer Lodge,Care Establishment,2 - Operations - Learning Disability,LDP Fenland Locality - Care,Residential Independent Sector
Cambridgeshire County Council,13-Jan-17,22396672-14670716,-854,Conifer Lodge,Care Establishment,2 - Operations - Learning Disability,LDP Fenland Locality - Care,Residential Independent Sector
Cambridgeshire County Council,13-Jan-17,22396675-14670719,-854,Conifer Lodge,Care Establishment,2 - Operations - Learning Disability,LDP Fenland Locality - Care,Residential Independent Sector
Cambridgeshire County Council,13-Jan-17,22396676-14670720,-854,Conifer Lodge,Care Establishment,2 - Operations - Learning Disability,LDP Fenland Locality - Care,Residential Independent Sector
Cambridgeshire County Council,13-Jan-17,22396679-14670723,-854,Conifer Lodge,Care Establishment,2 - Operations - Learning Disability,LDP Fenland Locality - Care,Residential Independent Sector
Cambridgeshire County Council,13-Jan-17,22396680-14670724,-854,Conifer Lodge,Care Establishment,2 - Operations - Learning Disability,LDP Fenland Locality - Care,Residential Independent Sector
Cambridgeshire County Council,13-Jan-17,22396681-14670725,-854,Conifer Lodge,Care Establishment,2 - Operations - Learning Disability,LDP Fenland Locality - Care,Residential Independent Sector
Cambridgeshire County Council,05-Jan-17,22344295-14618534,-798,Cambridge Manor Care Home (Tlc),Care Establishment,2 - Commissioning - Older people Pool,Older People Mental Health City & South,Nursing Independent Sector
Cambridgeshire County Council,19-Jan-17,22344255-14693764,-793.81,Making Space#1,Care Establishment,3 - Operations - Countywide Services,Countywide PD Service - Care,Nursing Independent Sector
Cambridgeshire County Council,19-Jan-17,22387788-14693774,-793.81,Making Space#1,Care Establishment,3 - Operations - Countywide Services,Countywide PD Service - Care,Nursing Independent Sector
Cambridgeshire County Council,19-Jan-17,22308398-14693786,-793.81,Making Space#1,Care Establishment,3 - Operations - Countywide Services,Countywide PD Service - Care,Nursing Independent Sector
Cambridgeshire County Council,19-Jan-17,22410570-14693918,-793.81,Making Space#1,Care Establishment,3 - Operations - Countywide Services,Countywide PD Service - Care,Nursing Independent Sector
Cambridgeshire County Council,05-Jan-17,22067190-14617711,-779.29,Glennfield Care Centre (Op),Care Establishment,2 - Commissioning - Older people Pool,Older People - Fenland,Nursing Independent Sector
Cambridgeshire County Council,05-Jan-17,22067191-14617712,-779.29,Glennfield Care Centre (Op),Care Establishment,2 - Commissioning - Older people Pool,Older People - Fenland,Nursing Independent Sector
Cambridgeshire County Council,05-Jan-17,22067192-14617713,-779.29,Glennfield Care Centre (Op),Care Establishment,2 - Commissioning - Older people Pool,Older People - Fenland,Nursing Independent Sector
Cambridgeshire County Council,05-Jan-17,22067193-14617714,-779.29,Glennfield Care Centre (Op),Care Establishment,2 - Commissioning - Older people Pool,Older People - Fenland,Nursing Independent Sector
Cambridgeshire County Council,05-Jan-17,22067194-14617715,-779.29,Glennfield Care Centre (Op),Care Establishment,2 - Commissioning - Older people Pool,Older People - Fenland,Nursing Independent Sector
Cambridgeshire County Council,05-Jan-17,22067195-14617716,-779.29,Glennfield Care Centre (Op),Care Establishment,2 - Commissioning - Older people Pool,Older People - Fenland,Nursing Independent Sector
Cambridgeshire County Council,05-Jan-17,22067196-14617717,-779.29,Glennfield Care Centre (Op),Care Establishment,2 - Commissioning - Older people Pool,Older People - Fenland,Nursing Independent Sector
Cambridgeshire County Council,05-Jan-17,22067197-14617718,-779.29,Glennfield Care Centre (Op),Care Establishment,2 - Commissioning - Older people Pool,Older People - Fenland,Nursing Independent Sector
Cambridgeshire County Council,05-Jan-17,22067198-14617719,-779.29,Glennfield Care Centre (Op),Care Establishment,2 - Commissioning - Older people Pool,Older People - Fenland,Nursing Independent Sector
Cambridgeshire County Council,05-Jan-17,22067199-14617720,-779.29,Glennfield Care Centre (Op),Care Establishment,2 - Commissioning - Older people Pool,Older People - Fenland,Nursing Independent Sector
Cambridgeshire County Council,05-Jan-17,22067201-14617722,-779.29,Glennfield Care Centre (Op),Care Establishment,2 - Commissioning - Older people Pool,Older People - Fenland,Nursing Independent Sector
Cambridgeshire County Council,05-Jan-17,22067202-14617723,-779.29,Glennfield Care Centre (Op),Care Establishment,2 - Commissioning - Older people Pool,Older People - Fenland,Nursing Independent Sector
Cambridgeshire County Council,05-Jan-17,22067203-14617724,-779.29,Glennfield Care Centre (Op),Care Establishment,2 - Commissioning - Older people Pool,Older People - Fenland,Nursing Independent Sector
Cambridgeshire County Council,05-Jan-17,22067204-14617725,-779.29,Glennfield Care Centre (Op),Care Establishment,2 - Commissioning - Older people Pool,Older People - Fenland,Nursing Independent Sector
Cambridgeshire County Council,05-Jan-17,22276927-14629285,-776.61,Westminster Homecare Limited,Care Establishment,2 - Operations - Learning Disability,LDP E Cambs Locality - Care,Day and Domicillary Care Independent Sector
Cambridgeshire County Council,05-Jan-17,22276928-14629286,-776.61,Westminster Homecare Limited,Care Establishment,2 - Operations - Learning Disability,LDP E Cambs Locality - Care,Day and Domicillary Care Independent Sector
Cambridgeshire County Council,05-Jan-17,22343573-14629991,-750,St Georges Nursing Home,Care Establishment,2 - Commissioning - Older people Pool,Older People - City & South,Nursing Independent Sector
Cambridgeshire County Council,05-Jan-17,22343574-14629992,-750,St Georges Nursing Home,Care Establishment,2 - Commissioning - Older people Pool,Older People - City & South,Nursing Independent Sector
Cambridgeshire County Council,05-Jan-17,22343577-14629995,-750,St Georges Nursing Home,Care Establishment,2 - Commissioning - Older people Pool,Older People - City & South,Nursing Independent Sector
Cambridgeshire County Council,05-Jan-17,22343578-14629996,-750,St Georges Nursing Home,Care Establishment,2 - Commissioning - Older people Pool,Older People - City & South,Nursing Independent Sector
Cambridgeshire County Council,05-Jan-17,22343580-14629998,-750,St Georges Nursing Home,Care Establishment,2 - Commissioning - Older people Pool,Older People - City & South,Nursing Independent Sector
Cambridgeshire County Council,05-Jan-17,22343582-14630000,-750,St Georges Nursing Home,Care Establishment,2 - Commissioning - Older people Pool,Older People - City & South,Nursing Independent Sector
Cambridgeshire County Council,05-Jan-17,22343584-14630002,-750,St Georges Nursing Home,Care Establishment,2 - Commissioning - Older people Pool,Older People - City & South,Nursing Independent Sector
Cambridgeshire County Council,05-Jan-17,22343585-14630003,-750,St Georges Nursing Home,Care Establishment,2 - Commissioning - Older people Pool,Older People - City & South,Nursing Independent Sector
Cambridgeshire County Council,05-Jan-17,22343587-14630005,-750,St Georges Nursing Home,Care Establishment,2 - Commissioning - Older people Pool,Older People - City & South,Nursing Independent Sector
Cambridgeshire County Council,05-Jan-17,22343588-14630006,-750,St Georges Nursing Home,Care Establishment,2 - Commissioning - Older people Pool,Older People - City & South,Nursing Independent Sector
Cambridgeshire County Council,05-Jan-17,22343589-14630007,-750,St Georges Nursing Home,Care Establishment,2 - Commissioning - Older people Pool,Older People - City & South,Nursing Independent Sector
Cambridgeshire County Council,05-Jan-17,22343590-14630008,-750,St Georges Nursing Home,Care Establishment,2 - Commissioning - Older people Pool,Older People - City & South,Nursing Independent Sector
Cambridgeshire County Council,05-Jan-17,22343594-14630012,-750,St Georges Nursing Home,Care Establishment,2 - Commissioning - Older people Pool,Older People - City & South,Nursing Independent Sector
Cambridgeshire County Council,05-Jan-17,22343597-14630015,-750,St Georges Nursing Home,Care Establishment,2 - Commissioning - Older people Pool,Older People - City & South,Nursing Independent Sector
Cambridgeshire County Council,05-Jan-17,22343598-14630016,-750,St Georges Nursing Home,Care Establishment,2 - Commissioning - Older people Pool,Older People - City & South,Nursing Independent Sector
Cambridgeshire County Council,05-Jan-17,22343599-14630017,-750,St Georges Nursing Home,Care Establishment,2 - Commissioning - Older people Pool,Older People - City & South,Nursing Independent Sector
Cambridgeshire County Council,05-Jan-17,22343604-14630022,-750,St Georges Nursing Home,Care Establishment,2 - Commissioning - Older people Pool,Older People - City & South,Nursing Independent Sector
Cambridgeshire County Council,05-Jan-17,22343605-14630023,-750,St Georges Nursing Home,Care Establishment,2 - Commissioning - Older people Pool,Older People - City & South,Nursing Independent Sector
Cambridgeshire County Council,05-Jan-17,22343606-14630024,-750,St Georges Nursing Home,Care Establishment,2 - Commissioning - Older people Pool,Older People - City & South,Nursing Independent Sector
Cambridgeshire County Council,05-Jan-17,22343608-14630026,-750,St Georges Nursing Home,Care Establishment,2 - Commissioning - Older people Pool,Older People - City & South,Nursing Independent Sector
Cambridgeshire County Council,05-Jan-17,22343612-14630030,-750,St Georges Nursing Home,Care Establishment,2 - Commissioning - Older people Pool,Older People - City & South,Nursing Independent Sector
Cambridgeshire County Council,05-Jan-17,22343617-14630035,-750,St Georges Nursing Home,Care Establishment,2 - Commissioning - Older people Pool,Older People - City & South,Nursing Independent Sector
Cambridgeshire County Council,05-Jan-17,22343619-14630037,-750,St Georges Nursing Home,Care Establishment,2 - Commissioning - Older people Pool,Older People - City & South,Nursing Independent Sector
Cambridgeshire County Council,05-Jan-17,22343621-14630039,-750,St Georges Nursing Home,Care Establishment,2 - Commissioning - Older people Pool,Older People - City & South,Nursing Independent Sector
Cambridgeshire County Council,05-Jan-17,22343622-14630040,-750,St Georges Nursing Home,Care Establishment,2 - Commissioning - Older people Pool,Older People - City & South,Nursing Independent Sector
Cambridgeshire County Council,05-Jan-17,22343625-14630043,-750,St Georges Nursing Home,Care Establishment,2 - Commissioning - Older people Pool,Older People - City & South,Nursing Independent Sector
Cambridgeshire County Council,05-Jan-17,22343626-14630044,-750,St Georges Nursing Home,Care Establishment,2 - Commissioning - Older people Pool,Older People - City & South,Nursing Independent Sector
Cambridgeshire County Council,05-Jan-17,22343628-14630046,-750,St Georges Nursing Home,Care Establishment,2 - Commissioning - Older people Pool,Older People - City & South,Nursing Independent Sector
Cambridgeshire County Council,05-Jan-17,22343630-14630048,-750,St Georges Nursing Home,Care Establishment,2 - Commissioning - Older people Pool,Older People - City & South,Nursing Independent Sector
Cambridgeshire County Council,05-Jan-17,22343631-14630049,-750,St Georges Nursing Home,Care Establishment,2 - Commissioning - Older people Pool,Older People - City & South,Nursing Independent Sector
Cambridgeshire County Council,05-Jan-17,22343632-14630050,-750,St Georges Nursing Home,Care Establishment,2 - Commissioning - Older people Pool,Older People - City & South,Nursing Independent Sector
Cambridgeshire County Council,05-Jan-17,22343634-14630052,-750,St Georges Nursing Home,Care Establishment,2 - Commissioning - Older people Pool,Older People - City & South,Nursing Independent Sector
Cambridgeshire County Council,05-Jan-17,22326470-14630056,-750,St Georges Nursing Home,Care Establishment,2 - Commissioning - Older people Pool,Older People - City & South,Nursing Independent Sector
Cambridgeshire County Council,05-Jan-17,22326471-14630057,-750,St Georges Nursing Home,Care Establishment,2 - Commissioning - Older people Pool,Older People - City & South,Nursing Independent Sector
Cambridgeshire County Council,05-Jan-17,22326475-14630061,-750,St Georges Nursing Home,Care Establishment,2 - Commissioning - Older people Pool,Older People - City & South,Nursing Independent Sector
Cambridgeshire County Council,05-Jan-17,22326482-14630068,-750,St Georges Nursing Home,Care Establishment,2 - Commissioning - Older people Pool,Older People - City & South,Nursing Independent Sector
Cambridgeshire County Council,05-Jan-17,22326485-14630071,-750,St Georges Nursing Home,Care Establishment,2 - Commissioning - Older people Pool,Older People - City & South,Nursing Independent Sector
Cambridgeshire County Council,05-Jan-17,22326489-14630075,-750,St Georges Nursing Home,Care Establishment,2 - Commissioning - Older people Pool,Older People - City & South,Nursing Independent Sector
Cambridgeshire County Council,05-Jan-17,22326490-14630076,-750,St Georges Nursing Home,Care Establishment,2 - Commissioning - Older people Pool,Older People - City & South,Nursing Independent Sector
Cambridgeshire County Council,05-Jan-17,22326491-14630077,-750,St Georges Nursing Home,Care Establishment,2 - Commissioning - Older people Pool,Older People - City & South,Nursing Independent Sector
Cambridgeshire County Council,05-Jan-17,22072817-14617737,-746.25,Glennfield Care Centre (Op),Care Establishment,2 - Commissioning - Older people Pool,Older People Mental Health Fenland,Nursing Independent Sector
Cambridgeshire County Council,05-Jan-17,22073173-14617738,-746.25,Glennfield Care Centre (Op),Care Establishment,2 - Commissioning - Older people Pool,Older People Mental Health Fenland,Nursing Independent Sector
Cambridgeshire County Council,05-Jan-17,22073174-14617739,-746.25,Glennfield Care Centre (Op),Care Establishment,2 - Commissioning - Older people Pool,Older People Mental Health Fenland,Nursing Independent Sector
Cambridgeshire County Council,05-Jan-17,22073180-14617740,-746.25,Glennfield Care Centre (Op),Care Establishment,2 - Commissioning - Older people Pool,Older People Mental Health Fenland,Nursing Independent Sector
Cambridgeshire County Council,05-Jan-17,22073181-14617741,-746.25,Glennfield Care Centre (Op),Care Establishment,2 - Commissioning - Older people Pool,Older People Mental Health Fenland,Nursing Independent Sector
Cambridgeshire County Council,05-Jan-17,22073184-14617742,-746.25,Glennfield Care Centre (Op),Care Establishment,2 - Commissioning - Older people Pool,Older People Mental Health Fenland,Nursing Independent Sector
Cambridgeshire County Council,05-Jan-17,22073185-14617743,-746.25,Glennfield Care Centre (Op),Care Establishment,2 - Commissioning - Older people Pool,Older People Mental Health Fenland,Nursing Independent Sector
Cambridgeshire County Council,05-Jan-17,22073186-14617744,-746.25,Glennfield Care Centre (Op),Care Establishment,2 - Commissioning - Older people Pool,Older People Mental Health Fenland,Nursing Independent Sector
Cambridgeshire County Council,05-Jan-17,22073190-14617745,-746.25,Glennfield Care Centre (Op),Care Establishment,2 - Commissioning - Older people Pool,Older People Mental Health Fenland,Nursing Independent Sector
Cambridgeshire County Council,05-Jan-17,22073193-14617746,-746.25,Glennfield Care Centre (Op),Care Establishment,2 - Commissioning - Older people Pool,Older People Mental Health Fenland,Nursing Independent Sector
Cambridgeshire County Council,05-Jan-17,22073201-14617748,-746.25,Glennfield Care Centre (Op),Care Establishment,2 - Commissioning - Older people Pool,Older People Mental Health Fenland,Nursing Independent Sector
Cambridgeshire County Council,05-Jan-17,22073202-14617749,-746.25,Glennfield Care Centre (Op),Care Establishment,2 - Commissioning - Older people Pool,Older People Mental Health Fenland,Nursing Independent Sector
Cambridgeshire County Council,05-Jan-17,22073203-14617750,-746.25,Glennfield Care Centre (Op),Care Establishment,2 - Commissioning - Older people Pool,Older People Mental Health Fenland,Nursing Independent Sector
Cambridgeshire County Council,05-Jan-17,22073204-14617751,-746.25,Glennfield Care Centre (Op),Care Establishment,2 - Commissioning - Older people Pool,Older People Mental Health Fenland,Nursing Independent Sector
Cambridgeshire County Council,05-Jan-17,22122263-14617651,-746.25,Glennfield Care Centre (Op),Care Establishment,2 - Commissioning - Older people Pool,Older People Mental Health City & South,Nursing Independent Sector
Cambridgeshire County Council,05-Jan-17,22122264-14617652,-746.25,Glennfield Care Centre (Op),Care Establishment,2 - Commissioning - Older people Pool,Older People Mental Health City & South,Nursing Independent Sector
Cambridgeshire County Council,05-Jan-17,22122266-14617654,-746.25,Glennfield Care Centre (Op),Care Establishment,2 - Commissioning - Older people Pool,Older People Mental Health City & South,Nursing Independent Sector
Cambridgeshire County Council,05-Jan-17,22122267-14617655,-746.25,Glennfield Care Centre (Op),Care Establishment,2 - Commissioning - Older people Pool,Older People Mental Health City & South,Nursing Independent Sector
Cambridgeshire County Council,05-Jan-17,22122268-14617656,-746.25,Glennfield Care Centre (Op),Care Establishment,2 - Commissioning - Older people Pool,Older People Mental Health City & South,Nursing Independent Sector
Cambridgeshire County Council,05-Jan-17,22122269-14617657,-746.25,Glennfield Care Centre (Op),Care Establishment,2 - Commissioning - Older people Pool,Older People Mental Health City & South,Nursing Independent Sector
Cambridgeshire County Council,05-Jan-17,22122270-14617658,-746.25,Glennfield Care Centre (Op),Care Establishment,2 - Commissioning - Older people Pool,Older People Mental Health City & South,Nursing Independent Sector
Cambridgeshire County Council,05-Jan-17,22122271-14617659,-746.25,Glennfield Care Centre (Op),Care Establishment,2 - Commissioning - Older people Pool,Older People Mental Health City & South,Nursing Independent Sector
Cambridgeshire County Council,05-Jan-17,22124449-14617661,-746.25,Glennfield Care Centre (Op),Care Establishment,2 - Commissioning - Older people Pool,Older People - Fenland,Nursing Independent Sector
Cambridgeshire County Council,05-Jan-17,22124450-14617662,-746.25,Glennfield Care Centre (Op),Care Establishment,2 - Commissioning - Older people Pool,Older People - Fenland,Nursing Independent Sector
Cambridgeshire County Council,05-Jan-17,22124451-14617663,-746.25,Glennfield Care Centre (Op),Care Establishment,2 - Commissioning - Older people Pool,Older People - Fenland,Nursing Independent Sector
Cambridgeshire County Council,05-Jan-17,22124452-14617664,-746.25,Glennfield Care Centre (Op),Care Establishment,2 - Commissioning - Older people Pool,Older People - Fenland,Nursing Independent Sector
Cambridgeshire County Council,05-Jan-17,22124609-14617666,-746.25,Glennfield Care Centre (Op),Care Establishment,2 - Commissioning - Older people Pool,Older People - Fenland,Nursing Independent Sector
Cambridgeshire County Council,05-Jan-17,22124610-14617667,-746.25,Glennfield Care Centre (Op),Care Establishment,2 - Commissioning - Older people Pool,Older People - Fenland,Nursing Independent Sector
Cambridgeshire County Council,05-Jan-17,22124611-14617668,-746.25,Glennfield Care Centre (Op),Care Establishment,2 - Commissioning - Older people Pool,Older People - Fenland,Nursing Independent Sector
Cambridgeshire County Council,05-Jan-17,22124612-14617669,-746.25,Glennfield Care Centre (Op),Care Establishment,2 - Commissioning - Older people Pool,Older People - Fenland,Nursing Independent Sector
Cambridgeshire County Council,05-Jan-17,22124613-14617670,-746.25,Glennfield Care Centre (Op),Care Establishment,2 - Commissioning - Older people Pool,Older People - Fenland,Nursing Independent Sector
Cambridgeshire County Council,05-Jan-17,22124614-14617671,-746.25,Glennfield Care Centre (Op),Care Establishment,2 - Commissioning - Older people Pool,Older People - Fenland,Nursing Independent Sector
Cambridgeshire County Council,05-Jan-17,22124615-14617672,-746.25,Glennfield Care Centre (Op),Care Establishment,2 - Commissioning - Older people Pool,Older People - Fenland,Nursing Independent Sector
Cambridgeshire County Council,05-Jan-17,22122257-14617645,-746.25,Glennfield Care Centre (Op),Care Establishment,2 - Commissioning - Older people Pool,Older People Mental Health City & South,Nursing Independent Sector
Cambridgeshire County Council,05-Jan-17,22122258-14617646,-746.25,Glennfield Care Centre (Op),Care Establishment,2 - Commissioning - Older people Pool,Older People Mental Health City & South,Nursing Independent Sector
Cambridgeshire County Council,05-Jan-17,22122259-14617647,-746.25,Glennfield Care Centre (Op),Care Establishment,2 - Commissioning - Older people Pool,Older People Mental Health City & South,Nursing Independent Sector
Cambridgeshire County Council,05-Jan-17,22122260-14617648,-746.25,Glennfield Care Centre (Op),Care Establishment,2 - Commissioning - Older people Pool,Older People Mental Health City & South,Nursing Independent Sector
Cambridgeshire County Council,05-Jan-17,22122261-14617649,-746.25,Glennfield Care Centre (Op),Care Establishment,2 - Commissioning - Older people Pool,Older People Mental Health City & South,Nursing Independent Sector
Cambridgeshire County Council,05-Jan-17,22122262-14617650,-746.25,Glennfield Care Centre (Op),Care Establishment,2 - Commissioning - Older people Pool,Older People Mental Health City & South,Nursing Independent Sector
Cambridgeshire County Council,19-Jan-17,22345073-14696446,-740,Farrington Care Homes Ltd T/A Woodlands Residential Care Home,Care Establishment,2 - Commissioning - Older people Pool,Older People - City & South,Residential Independent Sector
Cambridgeshire County Council,19-Jan-17,22345074-14696447,-740,Farrington Care Homes Ltd T/A Woodlands Residential Care Home,Care Establishment,2 - Commissioning - Older people Pool,Older People - City & South,Residential Independent Sector
Cambridgeshire County Council,19-Jan-17,22345075-14696448,-740,Farrington Care Homes Ltd T/A Woodlands Residential Care Home,Care Establishment,2 - Commissioning - Older people Pool,Older People - City & South,Residential Independent Sector
Cambridgeshire County Council,19-Jan-17,22345076-14696449,-740,Farrington Care Homes Ltd T/A Woodlands Residential Care Home,Care Establishment,2 - Commissioning - Older people Pool,Older People - City & South,Residential Independent Sector
Cambridgeshire County Council,19-Jan-17,22345077-14696450,-740,Farrington Care Homes Ltd T/A Woodlands Residential Care Home,Care Establishment,2 - Commissioning - Older people Pool,Older People - City & South,Residential Independent Sector
Cambridgeshire County Council,19-Jan-17,22345079-14696452,-740,Farrington Care Homes Ltd T/A Woodlands Residential Care Home,Care Establishment,2 - Commissioning - Older people Pool,Older People - City & South,Residential Independent Sector
Cambridgeshire County Council,19-Jan-17,22345080-14696453,-740,Farrington Care Homes Ltd T/A Woodlands Residential Care Home,Care Establishment,2 - Commissioning - Older people Pool,Older People - City & South,Residential Independent Sector
Cambridgeshire County Council,19-Jan-17,22345081-14696454,-740,Farrington Care Homes Ltd T/A Woodlands Residential Care Home,Care Establishment,2 - Commissioning - Older people Pool,Older People - City & South,Residential Independent Sector
Cambridgeshire County Council,19-Jan-17,22345082-14696455,-740,Farrington Care Homes Ltd T/A Woodlands Residential Care Home,Care Establishment,2 - Commissioning - Older people Pool,Older People - City & South,Residential Independent Sector
Cambridgeshire County Council,19-Jan-17,22345083-14696456,-740,Farrington Care Homes Ltd T/A Woodlands Residential Care Home,Care Establishment,2 - Commissioning - Older people Pool,Older People - City & South,Residential Independent Sector
Cambridgeshire County Council,19-Jan-17,22345084-14696457,-740,Farrington Care Homes Ltd T/A Woodlands Residential Care Home,Care Establishment,2 - Commissioning - Older people Pool,Older People - City & South,Residential Independent Sector
Cambridgeshire County Council,19-Jan-17,22413987-14697625,-737.67,Redacted Personal Data,Individual,3 - Operations - Countywide Services,Countywide PD Service - Care,Direct Payments - Social Services
Cambridgeshire County Council,19-Jan-17,22413988-14697626,-737.67,Redacted Personal Data,Individual,3 - Operations - Countywide Services,Countywide PD Service - Care,Direct Payments - Social Services
Cambridgeshire County Council,19-Jan-17,22413990-14697628,-737.67,Redacted Personal Data,Individual,3 - Operations - Countywide Services,Countywide PD Service - Care,Direct Payments - Social Services
Cambridgeshire County Council,19-Jan-17,22413991-14697629,-737.67,Redacted Personal Data,Individual,3 - Operations - Countywide Services,Countywide PD Service - Care,Direct Payments - Social Services
Cambridgeshire County Council,19-Jan-17,22413992-14697630,-737.67,Redacted Personal Data,Individual,3 - Operations - Countywide Services,Countywide PD Service - Care,Direct Payments - Social Services
Cambridgeshire County Council,19-Jan-17,22413995-14697633,-737.67,Redacted Personal Data,Individual,3 - Operations - Countywide Services,Countywide PD Service - Care,Direct Payments - Social Services
Cambridgeshire County Council,19-Jan-17,22413996-14697634,-737.67,Redacted Personal Data,Individual,3 - Operations - Countywide Services,Countywide PD Service - Care,Direct Payments - Social Services
Cambridgeshire County Council,19-Jan-17,22412371-14697645,-737.67,Redacted Personal Data,Individual,3 - Operations - Countywide Services,Countywide PD Service - Care,Direct Payments - Social Services
Cambridgeshire County Council,19-Jan-17,22412372-14697646,-737.67,Redacted Personal Data,Individual,3 - Operations - Countywide Services,Countywide PD Service - Care,Direct Payments - Social Services
Cambridgeshire County Council,19-Jan-17,22412374-14697648,-737.67,Redacted Personal Data,Individual,3 - Operations - Countywide Services,Countywide PD Service - Care,Direct Payments - Social Services
Cambridgeshire County Council,19-Jan-17,22412375-14697649,-737.67,Redacted Personal Data,Individual,3 - Operations - Countywide Services,Countywide PD Service - Care,Direct Payments - Social Services
Cambridgeshire County Council,05-Jan-17,22064117-14617673,-737.44,Glennfield Care Centre (Op),Care Establishment,2 - Commissioning - Older people Pool,Older People Mental Health Fenland,Nursing Independent Sector
Cambridgeshire County Council,05-Jan-17,22064119-14617675,-737.44,Glennfield Care Centre (Op),Care Establishment,2 - Commissioning - Older people Pool,Older People Mental Health Fenland,Nursing Independent Sector
Cambridgeshire County Council,05-Jan-17,22064120-14617676,-737.44,Glennfield Care Centre (Op),Care Establishment,2 - Commissioning - Older people Pool,Older People Mental Health Fenland,Nursing Independent Sector
Cambridgeshire County Council,05-Jan-17,22064121-14617677,-737.44,Glennfield Care Centre (Op),Care Establishment,2 - Commissioning - Older people Pool,Older People Mental Health Fenland,Nursing Independent Sector
Cambridgeshire County Council,05-Jan-17,22064122-14617678,-737.44,Glennfield Care Centre (Op),Care Establishment,2 - Commissioning - Older people Pool,Older People Mental Health Fenland,Nursing Independent Sector
Cambridgeshire County Council,05-Jan-17,22064123-14617679,-737.44,Glennfield Care Centre (Op),Care Establishment,2 - Commissioning - Older people Pool,Older People Mental Health Fenland,Nursing Independent Sector
Cambridgeshire County Council,05-Jan-17,22064124-14617680,-737.44,Glennfield Care Centre (Op),Care Establishment,2 - Commissioning - Older people Pool,Older People Mental Health Fenland,Nursing Independent Sector
Cambridgeshire County Council,05-Jan-17,22064125-14617681,-737.44,Glennfield Care Centre (Op),Care Establishment,2 - Commissioning - Older people Pool,Older People Mental Health Fenland,Nursing Independent Sector
Cambridgeshire County Council,05-Jan-17,22064126-14617682,-737.44,Glennfield Care Centre (Op),Care Establishment,2 - Commissioning - Older people Pool,Older People Mental Health Fenland,Nursing Independent Sector
Cambridgeshire County Council,05-Jan-17,22064127-14617683,-737.44,Glennfield Care Centre (Op),Care Establishment,2 - Commissioning - Older people Pool,Older People Mental Health Fenland,Nursing Independent Sector
Cambridgeshire County Council,05-Jan-17,22064128-14617684,-737.44,Glennfield Care Centre (Op),Care Establishment,2 - Commissioning - Older people Pool,Older People Mental Health Fenland,Nursing Independent Sector
Cambridgeshire County Council,05-Jan-17,22064129-14617685,-737.44,Glennfield Care Centre (Op),Care Establishment,2 - Commissioning - Older people Pool,Older People Mental Health Fenland,Nursing Independent Sector
Cambridgeshire County Council,05-Jan-17,22064130-14617686,-737.44,Glennfield Care Centre (Op),Care Establishment,2 - Commissioning - Older people Pool,Older People Mental Health Fenland,Nursing Independent Sector
Cambridgeshire County Council,05-Jan-17,22064131-14617687,-737.44,Glennfield Care Centre (Op),Care Establishment,2 - Commissioning - Older people Pool,Older People Mental Health Fenland,Nursing Independent Sector
Cambridgeshire County Council,19-Jan-17,22412584-14695625,-730.57,Crescent Trust Care Services Ltd,Care Establishment,2 - Operations - Learning Disability,LDP E Cambs Locality - Care,Day and Domicillary Care Independent Sector
Cambridgeshire County Council,05-Jan-17,22339085-14629916,-721.7,St Georges Nursing Home,Care Establishment,2 - Commissioning - Older people Pool,Older People - City & South,Nursing Independent Sector
Cambridgeshire County Council,05-Jan-17,22339086-14629917,-721.7,St Georges Nursing Home,Care Establishment,2 - Commissioning - Older people Pool,Older People - City & South,Nursing Independent Sector
Cambridgeshire County Council,05-Jan-17,22339088-14629919,-721.7,St Georges Nursing Home,Care Establishment,2 - Commissioning - Older people Pool,Older People - City & South,Nursing Independent Sector
Cambridgeshire County Council,05-Jan-17,22339090-14629921,-721.7,St Georges Nursing Home,Care Establishment,2 - Commissioning - Older people Pool,Older People - City & South,Nursing Independent Sector
Cambridgeshire County Council,05-Jan-17,22339092-14629923,-721.7,St Georges Nursing Home,Care Establishment,2 - Commissioning - Older people Pool,Older People - City & South,Nursing Independent Sector
Cambridgeshire County Council,05-Jan-17,22339093-14629924,-721.7,St Georges Nursing Home,Care Establishment,2 - Commissioning - Older people Pool,Older People - City & South,Nursing Independent Sector
Cambridgeshire County Council,05-Jan-17,22339094-14629925,-721.7,St Georges Nursing Home,Care Establishment,2 - Commissioning - Older people Pool,Older People - City & South,Nursing Independent Sector
Cambridgeshire County Council,05-Jan-17,22339368-14629814,-721.7,St Georges Nursing Home,Care Establishment,2 - Commissioning - Older people Pool,Older People - City & South,Nursing Independent Sector
Cambridgeshire County Council,05-Jan-17,22339370-14629816,-721.7,St Georges Nursing Home,Care Establishment,2 - Commissioning - Older people Pool,Older People - City & South,Nursing Independent Sector
Cambridgeshire County Council,05-Jan-17,22339371-14629817,-721.7,St Georges Nursing Home,Care Establishment,2 - Commissioning - Older people Pool,Older People - City & South,Nursing Independent Sector
Cambridgeshire County Council,05-Jan-17,22339376-14629822,-721.7,St Georges Nursing Home,Care Establishment,2 - Commissioning - Older people Pool,Older People - City & South,Nursing Independent Sector
Cambridgeshire County Council,05-Jan-17,22339379-14629825,-721.7,St Georges Nursing Home,Care Establishment,2 - Commissioning - Older people Pool,Older People - City & South,Nursing Independent Sector
Cambridgeshire County Council,05-Jan-17,22339382-14629828,-721.7,St Georges Nursing Home,Care Establishment,2 - Commissioning - Older people Pool,Older People - City & South,Nursing Independent Sector
Cambridgeshire County Council,05-Jan-17,22339384-14629830,-721.7,St Georges Nursing Home,Care Establishment,2 - Commissioning - Older people Pool,Older People - City & South,Nursing Independent Sector
Cambridgeshire County Council,05-Jan-17,22339385-14629831,-721.7,St Georges Nursing Home,Care Establishment,2 - Commissioning - Older people Pool,Older People - City & South,Nursing Independent Sector
Cambridgeshire County Council,05-Jan-17,22339386-14629832,-721.7,St Georges Nursing Home,Care Establishment,2 - Commissioning - Older people Pool,Older People - City & South,Nursing Independent Sector
Cambridgeshire County Council,05-Jan-17,22339388-14629834,-721.7,St Georges Nursing Home,Care Establishment,2 - Commissioning - Older people Pool,Older People - City & South,Nursing Independent Sector
Cambridgeshire County Council,05-Jan-17,22339389-14629835,-721.7,St Georges Nursing Home,Care Establishment,2 - Commissioning - Older people Pool,Older People - City & South,Nursing Independent Sector
Cambridgeshire County Council,05-Jan-17,22339390-14629836,-721.7,St Georges Nursing Home,Care Establishment,2 - Commissioning - Older people Pool,Older People - City & South,Nursing Independent Sector
Cambridgeshire County Council,05-Jan-17,22339392-14629838,-721.7,St Georges Nursing Home,Care Establishment,2 - Commissioning - Older people Pool,Older People - City & South,Nursing Independent Sector
Cambridgeshire County Council,05-Jan-17,22339395-14629841,-721.7,St Georges Nursing Home,Care Establishment,2 - Commissioning - Older people Pool,Older People - City & South,Nursing Independent Sector
Cambridgeshire County Council,05-Jan-17,22339396-14629842,-721.7,St Georges Nursing Home,Care Establishment,2 - Commissioning - Older people Pool,Older People - City & South,Nursing Independent Sector
Cambridgeshire County Council,05-Jan-17,22339401-14629847,-721.7,St Georges Nursing Home,Care Establishment,2 - Commissioning - Older people Pool,Older People - City & South,Nursing Independent Sector
Cambridgeshire County Council,05-Jan-17,22339402-14629848,-721.7,St Georges Nursing Home,Care Establishment,2 - Commissioning - Older people Pool,Older People - City & South,Nursing Independent Sector
Cambridgeshire County Council,05-Jan-17,22339405-14629851,-721.7,St Georges Nursing Home,Care Establishment,2 - Commissioning - Older people Pool,Older People - City & South,Nursing Independent Sector
Cambridgeshire County Council,05-Jan-17,22339406-14629852,-721.7,St Georges Nursing Home,Care Establishment,2 - Commissioning - Older people Pool,Older People - City & South,Nursing Independent Sector
Cambridgeshire County Council,05-Jan-17,22339407-14629853,-721.7,St Georges Nursing Home,Care Establishment,2 - Commissioning - Older people Pool,Older People - City & South,Nursing Independent Sector
Cambridgeshire County Council,05-Jan-17,22339408-14629854,-721.7,St Georges Nursing Home,Care Establishment,2 - Commissioning - Older people Pool,Older People - City & South,Nursing Independent Sector
Cambridgeshire County Council,05-Jan-17,22339410-14629856,-721.7,St Georges Nursing Home,Care Establishment,2 - Commissioning - Older people Pool,Older People - City & South,Nursing Independent Sector
Cambridgeshire County Council,05-Jan-17,22339411-14629857,-721.7,St Georges Nursing Home,Care Establishment,2 - Commissioning - Older people Pool,Older People - City & South,Nursing Independent Sector
Cambridgeshire County Council,05-Jan-17,22339412-14629858,-721.7,St Georges Nursing Home,Care Establishment,2 - Commissioning - Older people Pool,Older People - City & South,Nursing Independent Sector
Cambridgeshire County Council,05-Jan-17,22339413-14629859,-721.7,St Georges Nursing Home,Care Establishment,2 - Commissioning - Older people Pool,Older People - City & South,Nursing Independent Sector
Cambridgeshire County Council,05-Jan-17,22339417-14629863,-721.7,St Georges Nursing Home,Care Establishment,2 - Commissioning - Older people Pool,Older People - City & South,Nursing Independent Sector
Cambridgeshire County Council,05-Jan-17,22339418-14629864,-721.7,St Georges Nursing Home,Care Establishment,2 - Commissioning - Older people Pool,Older People - City & South,Nursing Independent Sector
Cambridgeshire County Council,05-Jan-17,22339423-14629869,-721.7,St Georges Nursing Home,Care Establishment,2 - Commissioning - Older people Pool,Older People - City & South,Nursing Independent Sector
Cambridgeshire County Council,05-Jan-17,22339428-14629874,-721.7,St Georges Nursing Home,Care Establishment,2 - Commissioning - Older people Pool,Older People - City & South,Nursing Independent Sector
Cambridgeshire County Council,05-Jan-17,22339432-14629878,-721.7,St Georges Nursing Home,Care Establishment,2 - Commissioning - Older people Pool,Older People - City & South,Nursing Independent Sector
Cambridgeshire County Council,05-Jan-17,22339435-14629881,-721.7,St Georges Nursing Home,Care Establishment,2 - Commissioning - Older people Pool,Older People - City & South,Nursing Independent Sector
Cambridgeshire County Council,05-Jan-17,22339437-14629883,-721.7,St Georges Nursing Home,Care Establishment,2 - Commissioning - Older people Pool,Older People - City & South,Nursing Independent Sector
Cambridgeshire County Council,05-Jan-17,22339438-14629884,-721.7,St Georges Nursing Home,Care Establishment,2 - Commissioning - Older people Pool,Older People - City & South,Nursing Independent Sector
Cambridgeshire County Council,16-Jan-17,22398542-14675644,-721.36,Emg Anglia Ltd,Trade Supplier,Corporate Services,Support  - Van (Camb East),Repairs & Servicing
Cambridgeshire County Council,25-Jan-17,22232791-14724629,-719.81,Compass Fostering,Care Establishment,S&C,Placements - Social Care,Agency Placements - Out County
Cambridgeshire County Council,05-Jan-17,22332187-14620288,-712.58,St George'S Court,Care Establishment,2 - Commissioning - Older people Pool,Older People - City & South,Nursing Independent Sector
Cambridgeshire County Council,05-Jan-17,22332189-14620289,-712.58,St George'S Court,Care Establishment,2 - Commissioning - Older people Pool,Older People - City & South,Nursing Independent Sector
Cambridgeshire County Council,13-Jan-17,22389112-14662117,-688.19,Royal Mencap Society,Care Establishment,2 - Operations - Learning Disability,LDP City Locality - Care,Residential Independent Sector
Cambridgeshire County Council,13-Jan-17,22389113-14662118,-688.19,Royal Mencap Society,Care Establishment,2 - Operations - Learning Disability,LDP City Locality - Care,Residential Independent Sector
Cambridgeshire County Council,13-Jan-17,22389116-14662121,-688.19,Royal Mencap Society,Care Establishment,2 - Operations - Learning Disability,LDP City Locality - Care,Residential Independent Sector
Cambridgeshire County Council,13-Jan-17,22389117-14662122,-688.19,Royal Mencap Society,Care Establishment,2 - Operations - Learning Disability,LDP City Locality - Care,Residential Independent Sector
Cambridgeshire County Council,13-Jan-17,22389118-14662123,-688.19,Royal Mencap Society,Care Establishment,2 - Operations - Learning Disability,LDP City Locality - Care,Residential Independent Sector
Cambridgeshire County Council,13-Jan-17,22389120-14662125,-688.19,Royal Mencap Society,Care Establishment,2 - Operations - Learning Disability,LDP City Locality - Care,Residential Independent Sector
Cambridgeshire County Council,13-Jan-17,22389122-14662127,-688.19,Royal Mencap Society,Care Establishment,2 - Operations - Learning Disability,LDP City Locality - Care,Residential Independent Sector
Cambridgeshire County Council,13-Jan-17,22389124-14662129,-688.19,Royal Mencap Society,Care Establishment,2 - Operations - Learning Disability,LDP City Locality - Care,Residential Independent Sector
Cambridgeshire County Council,13-Jan-17,22389125-14662130,-688.19,Royal Mencap Society,Care Establishment,2 - Operations - Learning Disability,LDP City Locality - Care,Residential Independent Sector
Cambridgeshire County Council,13-Jan-17,22389126-14662131,-688.19,Royal Mencap Society,Care Establishment,2 - Operations - Learning Disability,LDP City Locality - Care,Residential Independent Sector
Cambridgeshire County Council,13-Jan-17,22389127-14662132,-688.19,Royal Mencap Society,Care Establishment,2 - Operations - Learning Disability,LDP City Locality - Care,Residential Independent Sector
Cambridgeshire County Council,26-Jan-17,22458034-14728575,-680,Polebrook Nursing & Residential Home,Care Establishment,2 - Commissioning - Older people Pool,Older People Mental Health Hunts,Nursing Independent Sector
Cambridgeshire County Council,26-Jan-17,22458035-14728576,-680,Polebrook Nursing & Residential Home,Care Establishment,2 - Commissioning - Older people Pool,Older People Mental Health Hunts,Nursing Independent Sector
Cambridgeshire County Council,26-Jan-17,22458037-14728578,-680,Polebrook Nursing & Residential Home,Care Establishment,2 - Commissioning - Older people Pool,Older People Mental Health Hunts,Nursing Independent Sector
Cambridgeshire County Council,05-Jan-17,22067200-14617721,-667.96,Glennfield Care Centre (Op),Care Establishment,2 - Commissioning - Older people Pool,Older People - Fenland,Nursing Independent Sector
Cambridgeshire County Council,05-Jan-17,22250579-14611078,-667.8,Dimensions (Uk) Ltd,Care Establishment,2 - Operations - Learning Disability,LDP Cambs City - Special Needs,Supported Living
Cambridgeshire County Council,05-Jan-17,22326453-14611160,-667.8,Dimensions (Uk) Ltd,Care Establishment,2 - Operations - Learning Disability,LDP Cambs City - Special Needs,Supported Living
Cambridgeshire County Council,05-Jan-17,22310065-14611012,-667.8,Dimensions (Uk) Ltd,Care Establishment,2 - Operations - Learning Disability,LDP Cambs City - Special Needs,Supported Living
Cambridgeshire County Council,05-Jan-17,22279009-14611030,-667.8,Dimensions (Uk) Ltd,Care Establishment,2 - Operations - Learning Disability,LDP South Cambs - Special Needs,Supported Living
Cambridgeshire County Council,05-Jan-17,21323107-14632649,-664.33,Orchard Manor (Scope),Care Establishment,2 - Operations - Learning Disability,LDP Huntingdonshire Locality - Care,Residential Independent Sector
Cambridgeshire County Council,05-Jan-17,22325788-14614818,-649.53,Midas Care Ltd,Care Establishment,2 - Commissioning - Older people Pool,Older People - City & South,Day and Domicillary Care Independent Sector
Cambridgeshire County Council,05-Jan-17,22308755-14629072,-644.54,Midfield Lodge Care Centre,Care Establishment,2 - Commissioning - Older people Pool,Older People - City & South,Nursing Independent Sector
Cambridgeshire County Council,05-Jan-17,22308756-14629073,-644.54,Midfield Lodge Care Centre,Care Establishment,2 - Commissioning - Older people Pool,Older People - City & South,Nursing Independent Sector
Cambridgeshire County Council,05-Jan-17,22308757-14629074,-644.54,Midfield Lodge Care Centre,Care Establishment,2 - Commissioning - Older people Pool,Older People - City & South,Nursing Independent Sector
Cambridgeshire County Council,05-Jan-17,22308758-14629075,-644.54,Midfield Lodge Care Centre,Care Establishment,2 - Commissioning - Older people Pool,Older People - City & South,Nursing Independent Sector
Cambridgeshire County Council,05-Jan-17,22308759-14629076,-644.54,Midfield Lodge Care Centre,Care Establishment,2 - Commissioning - Older people Pool,Older People - City & South,Nursing Independent Sector
Cambridgeshire County Council,13-Jan-17,22389338-14665164,-643.75,Glennfield Care Centre (Op),Care Establishment,2 - Commissioning - Older people Pool,Older People - City & South,Nursing Independent Sector
Cambridgeshire County Council,05-Jan-17,22073200-14617747,-639.64,Glennfield Care Centre (Op),Care Establishment,2 - Commissioning - Older people Pool,Older People Mental Health Fenland,Nursing Independent Sector
Cambridgeshire County Council,05-Jan-17,22122265-14617653,-639.64,Glennfield Care Centre (Op),Care Establishment,2 - Commissioning - Older people Pool,Older People Mental Health City & South,Nursing Independent Sector
Cambridgeshire County Council,05-Jan-17,22124608-14617665,-639.64,Glennfield Care Centre (Op),Care Establishment,2 - Commissioning - Older people Pool,Older People - Fenland,Nursing Independent Sector
Cambridgeshire County Council,05-Jan-17,22064118-14617674,-632.09,Glennfield Care Centre (Op),Care Establishment,2 - Commissioning - Older people Pool,Older People Mental Health Fenland,Nursing Independent Sector
Cambridgeshire County Council,06-Jan-17,22168307-14634706,-630.33,Carter Jonas Llp,Trade Supplier,LGSS Managed,Histon Library,Buildings service charges
Cambridgeshire County Council,05-Jan-17,22333466-14616777,-627.01,The Edmund Trust,Care Establishment,2 - Operations - Learning Disability,LDP Cambs City - Special Needs,Supported Living
Cambridgeshire County Council,05-Jan-17,22333467-14616778,-627.01,The Edmund Trust,Care Establishment,2 - Operations - Learning Disability,LDP Cambs City - Special Needs,Supported Living
Cambridgeshire County Council,05-Jan-17,22333473-14616780,-627.01,The Edmund Trust,Care Establishment,2 - Operations - Learning Disability,LDP South Cambs - Special Needs,Supported Living
Cambridgeshire County Council,05-Jan-17,22333476-14616781,-627.01,The Edmund Trust,Care Establishment,2 - Operations - Learning Disability,LDP South Cambs - Special Needs,Supported Living
Cambridgeshire County Council,05-Jan-17,22333493-14616788,-627.01,The Edmund Trust,Care Establishment,2 - Operations - Learning Disability,LDP South Cambs - Special Needs,Supported Living
Cambridgeshire County Council,05-Jan-17,22333498-14616791,-627.01,The Edmund Trust,Care Establishment,2 - Operations - Learning Disability,LDP South Cambs - Special Needs,Supported Living
Cambridgeshire County Council,05-Jan-17,22333500-14616792,-627.01,The Edmund Trust,Care Establishment,2 - Operations - Learning Disability,LDP Cambs City - Special Needs,Supported Living
Cambridgeshire County Council,05-Jan-17,22309550-14616534,-627.01,The Edmund Trust,Care Establishment,2 - Operations - Learning Disability,LDP South Cambs - Special Needs,Supported Living
Cambridgeshire County Council,05-Jan-17,22309557-14616540,-627.01,The Edmund Trust,Care Establishment,2 - Operations - Learning Disability,LDP South Cambs - Special Needs,Supported Living
Cambridgeshire County Council,05-Jan-17,22309558-14616541,-627.01,The Edmund Trust,Care Establishment,2 - Operations - Learning Disability,LDP South Cambs - Special Needs,Supported Living
Cambridgeshire County Council,05-Jan-17,22309564-14616546,-627.01,The Edmund Trust,Care Establishment,2 - Operations - Learning Disability,LDP Cambs City - Special Needs,Supported Living
Cambridgeshire County Council,05-Jan-17,22309566-14616547,-627.01,The Edmund Trust,Care Establishment,2 - Operations - Learning Disability,LDP South Cambs - Special Needs,Supported Living
Cambridgeshire County Council,05-Jan-17,22309568-14616549,-627.01,The Edmund Trust,Care Establishment,2 - Operations - Learning Disability,LDP South Cambs - Special Needs,Supported Living
Cambridgeshire County Council,05-Jan-17,22309570-14616550,-627.01,The Edmund Trust,Care Establishment,2 - Operations - Learning Disability,LDP Cambs City - Special Needs,Supported Living
Cambridgeshire County Council,05-Jan-17,22309571-14616551,-627.01,The Edmund Trust,Care Establishment,2 - Operations - Learning Disability,LDP Cambs City - Special Needs,Supported Living
Cambridgeshire County Council,05-Jan-17,22337923-14616595,-627.01,The Edmund Trust,Care Establishment,2 - Operations - Learning Disability,LDP South Cambs - Special Needs,Supported Living
Cambridgeshire County Council,19-Jan-17,22395785-14692618,-627.01,The Edmund Trust,Care Establishment,2 - Operations - Learning Disability,LDP South Cambs - Special Needs,Supported Living
Cambridgeshire County Council,19-Jan-17,22395788-14692621,-627.01,The Edmund Trust,Care Establishment,2 - Operations - Learning Disability,LDP Cambs City - Special Needs,Supported Living
Cambridgeshire County Council,19-Jan-17,22395793-14692626,-627.01,The Edmund Trust,Care Establishment,2 - Operations - Learning Disability,LDP Cambs City - Special Needs,Supported Living
Cambridgeshire County Council,19-Jan-17,22395794-14692627,-627.01,The Edmund Trust,Care Establishment,2 - Operations - Learning Disability,LDP Cambs City - Special Needs,Supported Living
Cambridgeshire County Council,19-Jan-17,22395796-14692629,-627.01,The Edmund Trust,Care Establishment,2 - Operations - Learning Disability,LDP South Cambs - Special Needs,Supported Living
Cambridgeshire County Council,19-Jan-17,22395798-14692631,-627.01,The Edmund Trust,Care Establishment,2 - Operations - Learning Disability,LDP Cambs City - Special Needs,Supported Living
Cambridgeshire County Council,19-Jan-17,22395799-14692632,-627.01,The Edmund Trust,Care Establishment,2 - Operations - Learning Disability,LDP Cambs City - Special Needs,Supported Living
Cambridgeshire County Council,19-Jan-17,22395802-14692635,-627.01,The Edmund Trust,Care Establishment,2 - Operations - Learning Disability,LDP South Cambs - Special Needs,Supported Living
Cambridgeshire County Council,19-Jan-17,22411088-14692637,-627.01,The Edmund Trust,Care Establishment,2 - Operations - Learning Disability,LDP Cambs City - Special Needs,Supported Living
Cambridgeshire County Council,19-Jan-17,22411089-14692638,-627.01,The Edmund Trust,Care Establishment,2 - Operations - Learning Disability,LDP Cambs City - Special Needs,Supported Living
Cambridgeshire County Council,19-Jan-17,22411090-14692639,-627.01,The Edmund Trust,Care Establishment,2 - Operations - Learning Disability,LDP Cambs City - Special Needs,Supported Living
Cambridgeshire County Council,19-Jan-17,22411092-14692641,-627.01,The Edmund Trust,Care Establishment,2 - Operations - Learning Disability,LDP Cambs City - Special Needs,Supported Living
Cambridgeshire County Council,19-Jan-17,22411099-14692645,-627.01,The Edmund Trust,Care Establishment,2 - Operations - Learning Disability,LDP Cambs City - Special Needs,Supported Living
Cambridgeshire County Council,19-Jan-17,22411100-14692646,-627.01,The Edmund Trust,Care Establishment,2 - Operations - Learning Disability,LDP South Cambs - Special Needs,Supported Living
Cambridgeshire County Council,19-Jan-17,22411106-14692649,-627.01,The Edmund Trust,Care Establishment,2 - Operations - Learning Disability,LDP Cambs City - Special Needs,Supported Living
Cambridgeshire County Council,19-Jan-17,22411109-14692650,-627.01,The Edmund Trust,Care Establishment,2 - Operations - Learning Disability,LDP Cambs City - Special Needs,Supported Living
Cambridgeshire County Council,13-Jan-17,22388304-14663933,-619.08,Bracknell Care Home,Care Establishment,2 - Commissioning - Older people Pool,Older People - City & South,Nursing Independent Sector
Cambridgeshire County Council,13-Jan-17,22388310-14663939,-619.08,Bracknell Care Home,Care Establishment,2 - Commissioning - Older people Pool,Older People - City & South,Nursing Independent Sector
Cambridgeshire County Council,13-Jan-17,22388312-14663941,-619.08,Bracknell Care Home,Care Establishment,2 - Commissioning - Older people Pool,Older People - City & South,Nursing Independent Sector
Cambridgeshire County Council,13-Jan-17,22388318-14663947,-619.08,Bracknell Care Home,Care Establishment,2 - Commissioning - Older people Pool,Older People - City & South,Nursing Independent Sector
Cambridgeshire County Council,13-Jan-17,22388321-14663950,-619.08,Bracknell Care Home,Care Establishment,2 - Commissioning - Older people Pool,Older People - City & South,Nursing Independent Sector
Cambridgeshire County Council,13-Jan-17,22388243-14663952,-619.08,Bracknell Care Home,Care Establishment,2 - Commissioning - Older people Pool,Older People - City & South,Nursing Independent Sector
Cambridgeshire County Council,13-Jan-17,22388244-14663953,-619.08,Bracknell Care Home,Care Establishment,2 - Commissioning - Older people Pool,Older People - City & South,Nursing Independent Sector
Cambridgeshire County Council,13-Jan-17,22388245-14663954,-619.08,Bracknell Care Home,Care Establishment,2 - Commissioning - Older people Pool,Older People - City & South,Nursing Independent Sector
Cambridgeshire County Council,13-Jan-17,22388249-14663878,-619.08,Bracknell Care Home,Care Establishment,2 - Commissioning - Older people Pool,Older People - City & South,Nursing Independent Sector
Cambridgeshire County Council,13-Jan-17,22388250-14663879,-619.08,Bracknell Care Home,Care Establishment,2 - Commissioning - Older people Pool,Older People - City & South,Nursing Independent Sector
Cambridgeshire County Council,13-Jan-17,22388251-14663880,-619.08,Bracknell Care Home,Care Establishment,2 - Commissioning - Older people Pool,Older People - City & South,Nursing Independent Sector
Cambridgeshire County Council,13-Jan-17,22388253-14663882,-619.08,Bracknell Care Home,Care Establishment,2 - Commissioning - Older people Pool,Older People - City & South,Nursing Independent Sector
Cambridgeshire County Council,13-Jan-17,22388257-14663886,-619.08,Bracknell Care Home,Care Establishment,2 - Commissioning - Older people Pool,Older People - City & South,Nursing Independent Sector
Cambridgeshire County Council,13-Jan-17,22388260-14663889,-619.08,Bracknell Care Home,Care Establishment,2 - Commissioning - Older people Pool,Older People - City & South,Nursing Independent Sector
Cambridgeshire County Council,13-Jan-17,22388261-14663890,-619.08,Bracknell Care Home,Care Establishment,2 - Commissioning - Older people Pool,Older People - City & South,Nursing Independent Sector
Cambridgeshire County Council,13-Jan-17,22388262-14663891,-619.08,Bracknell Care Home,Care Establishment,2 - Commissioning - Older people Pool,Older People - City & South,Nursing Independent Sector
Cambridgeshire County Council,13-Jan-17,22388263-14663892,-619.08,Bracknell Care Home,Care Establishment,2 - Commissioning - Older people Pool,Older People - City & South,Nursing Independent Sector
Cambridgeshire County Council,13-Jan-17,22388264-14663893,-619.08,Bracknell Care Home,Care Establishment,2 - Commissioning - Older people Pool,Older People - City & South,Nursing Independent Sector
Cambridgeshire County Council,13-Jan-17,22388265-14663894,-619.08,Bracknell Care Home,Care Establishment,2 - Commissioning - Older people Pool,Older People - City & South,Nursing Independent Sector
Cambridgeshire County Council,13-Jan-17,22388269-14663898,-619.08,Bracknell Care Home,Care Establishment,2 - Commissioning - Older people Pool,Older People - City & South,Nursing Independent Sector
Cambridgeshire County Council,13-Jan-17,22388270-14663899,-619.08,Bracknell Care Home,Care Establishment,2 - Commissioning - Older people Pool,Older People - City & South,Nursing Independent Sector
Cambridgeshire County Council,13-Jan-17,22388272-14663901,-619.08,Bracknell Care Home,Care Establishment,2 - Commissioning - Older people Pool,Older People - City & South,Nursing Independent Sector
Cambridgeshire County Council,13-Jan-17,22388273-14663902,-619.08,Bracknell Care Home,Care Establishment,2 - Commissioning - Older people Pool,Older People - City & South,Nursing Independent Sector
Cambridgeshire County Council,13-Jan-17,22388275-14663904,-619.08,Bracknell Care Home,Care Establishment,2 - Commissioning - Older people Pool,Older People - City & South,Nursing Independent Sector
Cambridgeshire County Council,13-Jan-17,22388277-14663906,-619.08,Bracknell Care Home,Care Establishment,2 - Commissioning - Older people Pool,Older People - City & South,Nursing Independent Sector
Cambridgeshire County Council,13-Jan-17,22388278-14663907,-619.08,Bracknell Care Home,Care Establishment,2 - Commissioning - Older people Pool,Older People - City & South,Nursing Independent Sector
Cambridgeshire County Council,13-Jan-17,22388281-14663910,-619.08,Bracknell Care Home,Care Establishment,2 - Commissioning - Older people Pool,Older People - City & South,Nursing Independent Sector
Cambridgeshire County Council,13-Jan-17,22388282-14663911,-619.08,Bracknell Care Home,Care Establishment,2 - Commissioning - Older people Pool,Older People - City & South,Nursing Independent Sector
Cambridgeshire County Council,13-Jan-17,22388283-14663912,-619.08,Bracknell Care Home,Care Establishment,2 - Commissioning - Older people Pool,Older People - City & South,Nursing Independent Sector
Cambridgeshire County Council,13-Jan-17,22388284-14663913,-619.08,Bracknell Care Home,Care Establishment,2 - Commissioning - Older people Pool,Older People - City & South,Nursing Independent Sector
Cambridgeshire County Council,13-Jan-17,22388286-14663915,-619.08,Bracknell Care Home,Care Establishment,2 - Commissioning - Older people Pool,Older People - City & South,Nursing Independent Sector
Cambridgeshire County Council,13-Jan-17,22388287-14663916,-619.08,Bracknell Care Home,Care Establishment,2 - Commissioning - Older people Pool,Older People - City & South,Nursing Independent Sector
Cambridgeshire County Council,13-Jan-17,22388288-14663917,-619.08,Bracknell Care Home,Care Establishment,2 - Commissioning - Older people Pool,Older People - City & South,Nursing Independent Sector
Cambridgeshire County Council,13-Jan-17,22388290-14663919,-619.08,Bracknell Care Home,Care Establishment,2 - Commissioning - Older people Pool,Older People - City & South,Nursing Independent Sector
Cambridgeshire County Council,13-Jan-17,22388292-14663921,-619.08,Bracknell Care Home,Care Establishment,2 - Commissioning - Older people Pool,Older People - City & South,Nursing Independent Sector
Cambridgeshire County Council,13-Jan-17,22388293-14663922,-619.08,Bracknell Care Home,Care Establishment,2 - Commissioning - Older people Pool,Older People - City & South,Nursing Independent Sector
Cambridgeshire County Council,13-Jan-17,22388294-14663923,-619.08,Bracknell Care Home,Care Establishment,2 - Commissioning - Older people Pool,Older People - City & South,Nursing Independent Sector
Cambridgeshire County Council,13-Jan-17,22388296-14663925,-619.08,Bracknell Care Home,Care Establishment,2 - Commissioning - Older people Pool,Older People - City & South,Nursing Independent Sector
Cambridgeshire County Council,13-Jan-17,22388300-14663929,-619.08,Bracknell Care Home,Care Establishment,2 - Commissioning - Older people Pool,Older People - City & South,Nursing Independent Sector
Cambridgeshire County Council,05-Jan-17,22332184-14620290,-610.78,St George'S Court,Care Establishment,2 - Commissioning - Older people Pool,Older People - City & South,Nursing Independent Sector
Cambridgeshire County Council,25-Jan-17,22417563-14724815,-610.39,Nexus Fostering Ltd,Care Establishment,S&C,Placements - Social Care,Agency Placements - Out County
Cambridgeshire County Council,05-Jan-17,22277714-14616886,-604.98,Availl Healthcare,Care Establishment,2 - Operations - Learning Disability,LDP City Locality - Care,Day and Domicillary Care Independent Sector
Cambridgeshire County Council,05-Jan-17,22277716-14616887,-604.98,Availl Healthcare,Care Establishment,2 - Operations - Learning Disability,LDP City Locality - Care,Day and Domicillary Care Independent Sector
Cambridgeshire County Council,05-Jan-17,22277719-14616888,-604.98,Availl Healthcare,Care Establishment,2 - Operations - Learning Disability,LDP City Locality - Care,Day and Domicillary Care Independent Sector
Cambridgeshire County Council,05-Jan-17,22277721-14616889,-604.98,Availl Healthcare,Care Establishment,2 - Operations - Learning Disability,LDP City Locality - Care,Day and Domicillary Care Independent Sector
Cambridgeshire County Council,05-Jan-17,22277722-14616890,-604.98,Availl Healthcare,Care Establishment,2 - Operations - Learning Disability,LDP City Locality - Care,Day and Domicillary Care Independent Sector
Cambridgeshire County Council,05-Jan-17,22277723-14616891,-604.98,Availl Healthcare,Care Establishment,2 - Operations - Learning Disability,LDP City Locality - Care,Day and Domicillary Care Independent Sector
Cambridgeshire County Council,26-Jan-17,22459398-14729148,-600,The Elms Nursing Home,Care Establishment,2 - Commissioning - Older people Pool,Older People - Fenland,Nursing Independent Sector
Cambridgeshire County Council,26-Jan-17,22459399-14729149,-600,The Elms Nursing Home,Care Establishment,2 - Commissioning - Older people Pool,Older People - Fenland,Nursing Independent Sector
Cambridgeshire County Council,26-Jan-17,22459400-14729150,-600,The Elms Nursing Home,Care Establishment,2 - Commissioning - Older people Pool,Older People - Fenland,Nursing Independent Sector
Cambridgeshire County Council,05-Jan-17,22253182-14632260,-596.04,Ringshill Care Home,Care Establishment,2 - Commissioning - Older people Pool,Hunts O P  Team,Nursing Independent Sector
Cambridgeshire County Council,05-Jan-17,22253183-14632261,-596.04,Ringshill Care Home,Care Establishment,2 - Commissioning - Older people Pool,Hunts O P  Team,Nursing Independent Sector
Cambridgeshire County Council,05-Jan-17,22253184-14632262,-596.04,Ringshill Care Home,Care Establishment,2 - Commissioning - Older people Pool,Hunts O P  Team,Nursing Independent Sector
Cambridgeshire County Council,05-Jan-17,22253186-14632264,-596.04,Ringshill Care Home,Care Establishment,2 - Commissioning - Older people Pool,Hunts O P  Team,Nursing Independent Sector
Cambridgeshire County Council,05-Jan-17,22254952-14630546,-596,Aliwal Healthcare Ltd,Care Establishment,2 - Commissioning - Older people Pool,Hunts O P  Team,Residential Independent Sector
Cambridgeshire County Council,05-Jan-17,22066643-14617709,-596,Glennfield Care Centre (Op),Care Establishment,2 - Commissioning - Older people Pool,Older People - Fenland,Residential Independent Sector
Cambridgeshire County Council,05-Jan-17,22066644-14617710,-596,Glennfield Care Centre (Op),Care Establishment,2 - Commissioning - Older people Pool,Older People - Fenland,Residential Independent Sector
Cambridgeshire County Council,05-Jan-17,22072666-14617726,-596,Glennfield Care Centre (Op),Care Establishment,2 - Commissioning - Older people Pool,Older People - Fenland,Residential Independent Sector
Cambridgeshire County Council,05-Jan-17,22072667-14617727,-596,Glennfield Care Centre (Op),Care Establishment,2 - Commissioning - Older people Pool,Older People - Fenland,Residential Independent Sector
Cambridgeshire County Council,05-Jan-17,22072668-14617728,-596,Glennfield Care Centre (Op),Care Establishment,2 - Commissioning - Older people Pool,Older People - Fenland,Residential Independent Sector
Cambridgeshire County Council,05-Jan-17,22072670-14617730,-596,Glennfield Care Centre (Op),Care Establishment,2 - Commissioning - Older people Pool,Older People - Fenland,Residential Independent Sector
Cambridgeshire County Council,05-Jan-17,22072671-14617731,-596,Glennfield Care Centre (Op),Care Establishment,2 - Commissioning - Older people Pool,Older People - Fenland,Residential Independent Sector
Cambridgeshire County Council,05-Jan-17,22072672-14617732,-596,Glennfield Care Centre (Op),Care Establishment,2 - Commissioning - Older people Pool,Older People - Fenland,Residential Independent Sector
Cambridgeshire County Council,05-Jan-17,22072673-14617733,-596,Glennfield Care Centre (Op),Care Establishment,2 - Commissioning - Older people Pool,Older People - Fenland,Residential Independent Sector
Cambridgeshire County Council,05-Jan-17,22072674-14617734,-596,Glennfield Care Centre (Op),Care Establishment,2 - Commissioning - Older people Pool,Older People - Fenland,Residential Independent Sector
Cambridgeshire County Council,05-Jan-17,22072675-14617735,-596,Glennfield Care Centre (Op),Care Establishment,2 - Commissioning - Older people Pool,Older People - Fenland,Residential Independent Sector
Cambridgeshire County Council,05-Jan-17,22072676-14617736,-596,Glennfield Care Centre (Op),Care Establishment,2 - Commissioning - Older people Pool,Older People - Fenland,Residential Independent Sector
Cambridgeshire County Council,05-Jan-17,22064328-14617688,-596,Glennfield Care Centre (Op),Care Establishment,2 - Commissioning - Older people Pool,Older People - Fenland,Residential Independent Sector
Cambridgeshire County Council,05-Jan-17,22064329-14617689,-596,Glennfield Care Centre (Op),Care Establishment,2 - Commissioning - Older people Pool,Older People - Fenland,Residential Independent Sector
Cambridgeshire County Council,05-Jan-17,22064330-14617690,-596,Glennfield Care Centre (Op),Care Establishment,2 - Commissioning - Older people Pool,Older People - Fenland,Residential Independent Sector
Cambridgeshire County Council,05-Jan-17,22064331-14617691,-596,Glennfield Care Centre (Op),Care Establishment,2 - Commissioning - Older people Pool,Older People - Fenland,Residential Independent Sector
Cambridgeshire County Council,05-Jan-17,22064332-14617692,-596,Glennfield Care Centre (Op),Care Establishment,2 - Commissioning - Older people Pool,Older People - Fenland,Residential Independent Sector
Cambridgeshire County Council,05-Jan-17,22064333-14617693,-596,Glennfield Care Centre (Op),Care Establishment,2 - Commissioning - Older people Pool,Older People - Fenland,Residential Independent Sector
Cambridgeshire County Council,05-Jan-17,22064334-14617694,-596,Glennfield Care Centre (Op),Care Establishment,2 - Commissioning - Older people Pool,Older People - Fenland,Residential Independent Sector
Cambridgeshire County Council,05-Jan-17,22064335-14617695,-596,Glennfield Care Centre (Op),Care Establishment,2 - Commissioning - Older people Pool,Older People - Fenland,Residential Independent Sector
Cambridgeshire County Council,05-Jan-17,22064336-14617696,-596,Glennfield Care Centre (Op),Care Establishment,2 - Commissioning - Older people Pool,Older People - Fenland,Residential Independent Sector
Cambridgeshire County Council,05-Jan-17,22064337-14617697,-596,Glennfield Care Centre (Op),Care Establishment,2 - Commissioning - Older people Pool,Older People - Fenland,Residential Independent Sector
Cambridgeshire County Council,05-Jan-17,22064338-14617698,-596,Glennfield Care Centre (Op),Care Establishment,2 - Commissioning - Older people Pool,Older People - Fenland,Residential Independent Sector
Cambridgeshire County Council,05-Jan-17,22064340-14617700,-596,Glennfield Care Centre (Op),Care Establishment,2 - Commissioning - Older people Pool,Older People - Fenland,Residential Independent Sector
Cambridgeshire County Council,05-Jan-17,22064341-14617701,-596,Glennfield Care Centre (Op),Care Establishment,2 - Commissioning - Older people Pool,Older People - Fenland,Residential Independent Sector
Cambridgeshire County Council,05-Jan-17,22064342-14617702,-596,Glennfield Care Centre (Op),Care Establishment,2 - Commissioning - Older people Pool,Older People - Fenland,Residential Independent Sector
Cambridgeshire County Council,05-Jan-17,22066637-14617703,-596,Glennfield Care Centre (Op),Care Establishment,2 - Commissioning - Older people Pool,Older People - Fenland,Residential Independent Sector
Cambridgeshire County Council,05-Jan-17,22066638-14617704,-596,Glennfield Care Centre (Op),Care Establishment,2 - Commissioning - Older people Pool,Older People - Fenland,Residential Independent Sector
Cambridgeshire County Council,05-Jan-17,22066639-14617705,-596,Glennfield Care Centre (Op),Care Establishment,2 - Commissioning - Older people Pool,Older People - Fenland,Residential Independent Sector
Cambridgeshire County Council,05-Jan-17,22066640-14617706,-596,Glennfield Care Centre (Op),Care Establishment,2 - Commissioning - Older people Pool,Older People - Fenland,Residential Independent Sector
Cambridgeshire County Council,05-Jan-17,22066642-14617708,-596,Glennfield Care Centre (Op),Care Establishment,2 - Commissioning - Older people Pool,Older People - Fenland,Residential Independent Sector
Cambridgeshire County Council,13-Jan-17,22389114-14662119,-589.88,Royal Mencap Society,Care Establishment,2 - Operations - Learning Disability,LDP City Locality - Care,Residential Independent Sector
Cambridgeshire County Council,13-Jan-17,22389115-14662120,-589.88,Royal Mencap Society,Care Establishment,2 - Operations - Learning Disability,LDP City Locality - Care,Residential Independent Sector
Cambridgeshire County Council,19-Jan-17,22393992-14694622,-585.63,The Elms Nursing Home,Care Establishment,2 - Commissioning - Older people Pool,Hunts O P  Team,Nursing Independent Sector
Cambridgeshire County Council,19-Jan-17,22393993-14694623,-585.63,The Elms Nursing Home,Care Establishment,2 - Commissioning - Older people Pool,Hunts O P  Team,Nursing Independent Sector
Cambridgeshire County Council,19-Jan-17,22393994-14694624,-585.63,The Elms Nursing Home,Care Establishment,2 - Commissioning - Older people Pool,Hunts O P  Team,Nursing Independent Sector
Cambridgeshire County Council,05-Jan-17,22277461-14632423,-577,Hunters Healthcare (Hunters Down),Care Establishment,2 - Commissioning - Older people Pool,Hunts O P  Team,Nursing Independent Sector
Cambridgeshire County Council,05-Jan-17,22277463-14632425,-577,Hunters Healthcare (Hunters Down),Care Establishment,2 - Commissioning - Older people Pool,Hunts O P  Team,Nursing Independent Sector
Cambridgeshire County Council,05-Jan-17,22277464-14632426,-577,Hunters Healthcare (Hunters Down),Care Establishment,2 - Commissioning - Older people Pool,Hunts O P  Team,Nursing Independent Sector
Cambridgeshire County Council,09-Jan-17,22317763-14637229,-567.84,Ccs Media Limited,Trade Supplier,Corporate Services,Volunteer Co-ordinator,Computer hardware
Cambridgeshire County Council,05-Jan-17,22310645-14622675,-566.39,Millfield Lodge Care Home Ltd,Care Establishment,2 - Commissioning - Older people Pool,Older People - City & South,Nursing Independent Sector
Cambridgeshire County Council,05-Jan-17,22310646-14622676,-566.39,Millfield Lodge Care Home Ltd,Care Establishment,2 - Commissioning - Older people Pool,Older People - City & South,Nursing Independent Sector
Cambridgeshire County Council,05-Jan-17,22310648-14622678,-566.39,Millfield Lodge Care Home Ltd,Care Establishment,2 - Commissioning - Older people Pool,Older People - City & South,Nursing Independent Sector
Cambridgeshire County Council,05-Jan-17,22310649-14622679,-566.39,Millfield Lodge Care Home Ltd,Care Establishment,2 - Commissioning - Older people Pool,Older People - City & South,Nursing Independent Sector
Cambridgeshire County Council,05-Jan-17,22310650-14622680,-566.39,Millfield Lodge Care Home Ltd,Care Establishment,2 - Commissioning - Older people Pool,Older People - City & South,Nursing Independent Sector
